{"text_format":"1","workbook":"xlsx","n_sheets":7,"sheets":["деканаты","Предметы","форма","!справочники","Отчисленные","Для диплома","ВЫПУСКНИКИ БУ 5лет"],"not_rendered":{"charts":0,"images":1,"macros":1,"external_links":4,"defined_names":12,"comments":1,"pivot_tables":0},"unopened":[],"bounds":{"document_bytes":16777216,"sheet_cells":100000,"rows_first":2000,"rows_last":500,"rows_between":2000,"halvings":0,"cell_chars":16384,"cell_head_chars":4096},"cells_cut":0,"cells_raw":0,"read":"whole","date_system":"1900"}

{"sheet":"деканаты","index":0,"n_rows":7,"n_cols":15,"rows_kept":7,"cut":false,"hidden":false,"merged":[[0,0,0,2],[0,11,0,14],[0,6,0,10]]}
["Факультет",null,null,"подпись декана",null,"Должность","Декан факультета",null,null,null,null,"Специалист по УМР"]
[2,"Экономический","Экфак","Н.А. Середа","экономического","И.о. декана","Середа","Надежда","Александровна",null,"доцент","О.В. Сосова","Сосова","Ольга","Васильевна"]
[3,"Архитектурно-строительный","АСФ","С.В. Цыбакин","архитектурно-строительного","Декан","Цыбакин","Сергей","Валерьевич","к.т.н.","доцент",".. "]
[4,"Агробизнеса","Агробизнес","Ю.В. Панкратов","агробизнеса","Декан","Панкратов","Юрий","Владимирович","к.сх.н.","доцент",".. "]
[5,"Ветеринарной медицины и зоотехнии","ВМиЗ","Н.Ю. Парамонова","ветеринарной медицины и зоотехнии","Декан","Парамонова","Наталья","Юрьевна","к.в.н.","доцент",".. "]
[6,"Инженерно-технологический","ИТФ","С.А. Полозов","инженерно-технологического","Декан","Полозов","Сергей","Александрович","к.т.н.","доцент","А.А. Шашкова","Шашкова","Анна","Андреевна"]
[7,"Электроэнергетический","ЭЭФ","А.В. Рожнов","электроэнергетического","Декан","Рожнов","Александр","Валентинович","к.т.н.","доцент",".. "]

{"sheet":"Предметы","index":1,"n_rows":120,"n_cols":283,"rows_kept":120,"cut":false,"hidden":false,"merged":[]}
[1,2,3,4,5,6,7,8,9,10,11,12,13,14,15,16,17,18,19,20,21,22,23,24,25,26,27,28,29,30,31,32,33,34,35,36,37,38,39,40,41,42,43,44,45,46,47,48,49,50,51,52,53,54,55,56,57,58,59,60,61,62,63,64,65,66,67,68,69,70,71,72,73,74,75,76,77,78,79,80,81,"1900-03-22",83,84,85,86,87,88,89,90,91,92,93,94,95,96,97,98,99,100,101,102,103,104,105,106,107,108,109,110,111,112,113,114,115,116,117,118,119,120,121,122,123,124,125,126,127,128,129,130,131,132,133,134,135,136,137,138,139,140,141,142,143,144,145,146,147,148,149,150,151,152,153,154,155,156,157,158,159,160,161,162,163,164,165,166,167,168,169,170,171,172,173,174,175,176,177,178,179,180,181,182,183,184,185,186,187,188,189,190,191,192,193,194,195,196,197,198,199,200,201,202,203,204,205,206,207,208,209,210,211,212,213,214,215,216,217,218,219,220,221,222,223,224,225,226,227,228,229,230,231,232,233,234,235,236,237,238,239,240,241,242,243,244,245,246,247,248,249,250,251,252,253,254,255,256,257,258,259,260,261,262,263,264,265,266,267]
[1,null,null,null,null,null,null,null,null,null,null,null,null,null,null,null,null,null,null,null,null,null,null,null,null,null,null,null,null,null,null,null,null,null,null,null,null,null,null,null,null,null,null,null,null,null,null,null,null,null,null,null,null,null,null,null,null,null,null,null,null,null,null,null,null,null,null,null,null,null,null,null,null,null,null,null,null,null,null,null,2,null,null,2,null,null,2,null,null,2,null,null,2,null,null,2,null,null,2,null,null,2,null,null,3,null,null,3,null,null,3,null,null,3,null,null,3,null,null,4,null,null,4,null,null,4,null,null,4,null,null,4,null,null,4,null,null,4,null,null,4,null,null,4,null,null,5,null,null,5,null,null,5,null,null,5,null,null,5,null,null,5,null,null,6,null,null,6,null,null,6,null,null,6,null,null,6,null,null,6,null,null,6,null,null,6,null,null,7,null,null,7,null,null,7,null,null,7,null,null,7,null,null,8,null,null,8,null,null,8,null,null,8,null,null,8,null,null,8,null,null,8,null,null,8,null,null,9,null,null,9,null,null,9,null,null,9,null,null,9,null,null,9,null,null,9,null,null,9,null,null,9,null,null,9,null,null,9,null,null,9,null,null,10,null,null,10]
[null,null,null,null,null,null,null,null,null,null,null,null,null,null,null,null,null,null,null,null,null,null,null,null,null,null,null,null,null,null,null,null,null,null,null,null,null,null,null,null,null,null,null,null,null,null,null,null,null,null,null,null,null,null,null,null,null,null,null,null,null,null,null,null,null,null,null,null,null,null,null,null,null,null,null,null,null,null,null,null,216,null,null,108,null,null,108,null,null,72,null,null,216,null,null,252,null,null,360,null,null,216,null,null,97,null,null,72,null,null,180,null,null,144,null,null,136,null,null,180,null,null,119,null,null,152,null,null,216,null,null,144,null,null,72,null,null,null,null,null,72,null,null,null,null,null,108,null,null,144,null,null,144,null,null,144,null,null,216,null,null,144,null,null,144,null,null,72,null,null,144,null,null,252,null,null,null,null,null,288,null,null,null,null,null,null,null,null,144,null,null,160,null,null,180,null,null,null,null,null,144,null,null,144,null,null,200,null,null,null,null,null,180,null,null,180,null,null,144,null,null,null,null,null,null,null,null,144,null,null,108,null,null,144,null,null,144,null,null,null,null,null,144,null,null,108,null,null,180,null,null,180,null,null,108,null,null,108,null,null,72]
[0,"Фамилия","Имя","Отчество","ФИО","ФИО","Фамилия","Имя","Отчество","Дата ","Место ","Гражданство","Пол","Что окончил(а)","Год ","Семейное",null,"Трудовая  книжка",null,null,"Паспорт",null,null,null,null,null,null,null,"Профиль / специализация","Срок обучения","Квалификация","Приказ","Дата","вид зачисления"," контракта /договора",null,"Переведен на бюджет",null,"Отчислен",null,null,"Восстановлен ",null,null,"Академический  отпуск",null,null,null,null,"Переводной приказ\n1 курс",null,"Переводной приказ\n2 курс",null,"Переводной приказ\n3 курс",null,"Переводной приказ\n4 курс",null,"Переводной приказ\n5 курс",null,"Переводной приказ\n6 курс",null,"допуск к защите дипломного проекта",null,"гос. экзамен",null,null,null,null,null,"Диплом",null,null,null,null,null,null,null,null,"Курс","Группа","1курс",null,null,null,null,null,null,null,null,null,null,null,null,null,null,null,null,null,null,null,null,null,null,null,"2 курс",null,null,null,null,null,null,null,null,null,null,null,null,null,null,null,null,null,null,null,null,null,null,null,null,null,null,null,null,null,null,null,null,null,null,null,null,null,null,null,null,null,"3 курс",null,null,null,null,null,null,null,null,null,null,null,null,null,null,null,null,null,null,null,null,null,null,null,null,null,null,null,null,null,null,null,null,null,null,null,null,null,null,null,null,null,"4 курс",null,null,null,null,null,null,null,null,null,null,null,null,null,null,null,null,null,null,null,null,null,null,null,null,null,null,null,null,null,null,null,null,null,null,null,null,null,null,"5 курс",null,null,null,null,null,null,null,null,null,null,null,null,null,null,null,null,null,null,null,null,null,null,null,null,null,null,null,null,null,null,null,null,null,null,null,null,null,null,null,null,null,null,null,"Оценки по предметам"]
[0,null,null,null,null,"Дател. Падеж","Дател. Падеж","Дател. Падеж","Дател. Падеж","рождения","рождения",null,null,null,"окончания"," положение","Адрес места жительства","Номер","Дата выдачи","кем выдана","серия","Номер","Дата выдачи","кем выдан","6ной","Факультет","Направление /специальность",null,null,null,null,null,null,null," договора","Дата"," договора","Дата","Приказ","Дата","Причина отчисления","Приказ","Дата","Причина востановления","Приказ","Дата","Причина","с даты","по дату","Приказ","Дата","Приказ","Дата","Приказ","Дата","Приказ","Дата","Приказ","Дата","Приказ","Дата","Приказ","Дата","Название экзамена","Дата ","оценка","Название экзамена","Дата ","оценка","Тема","оценка"," протокола","Дата защиты","Отличие","Регистр.","Серия","Номер","Дата выдачи",null,null,"Делопроизводство и документооборот",null,null,"Введение в профессию и основы научных исследований",null,null,"История",null,null,"Психология",null,null,"Математический анализ",null,null,"Линейная алгебра",null,null,"Информатика и информационное обеспечение бухгалтерского учета",null,null,"Микроэкономика",null,null,"Иностранный язык (З)",null,null,"Социология",null,null,"Политология",null,null,"Теория вероятностей и математическая статистика",null,null,"Макроэкономика(З)",null,null,"Эконометрика",null,null,"Иностранный язык",null,null,"Макроэкономика",null,null,"Статистика",null,null,"Менеджмент",null,null,"Физическая культура и спорт",null,null,"Общая физическая подготовка",null,null,"Деловые коммуникации",null,null,"Практика по ПППУ и Н",null,null,"Философия  ",null,null,"Право",null,null,"Регионалистика",null,null,"Информационные технологии и базы данных в бухгалтерском учете",null,null,"Инструментальные средства программирования бухгалтерских операций",null,null,"Мировая экономика и международные экономические отношения",null,null,"Методы оптимальных решений",null,null,"Методы принятия управленческих решений в сфере бухгалтерского учета",null,null,"Финансы",null,null,"Бухгалтерский учет и анализ",null,null,"Бухгалтерский учет и анализ (КР)",null,null,"Моделирование социально-экономических систем",null,null,"Моделирование социально -экономических систем (КП)",null,null,"Практика по ППУ и ОПД",null,null,"Корпоративные финансы",null,null,"Бухгалтерский финансовый учет (з)",null,null,"Экономика организаций (предприятий)",null,null,"Экономика организаций (предприятий) (КР)",null,null,"Планирование на предприятии",null,null,"Деньги, кредит, банки",null,null,"Бухгалтерский финансовый учет",null,null,"Бухгалтерский финансовый учет (КР)",null,null,"Бухгалтерский управленческий учет",null,null,"Бухгалтерская (финансовая) отчетность",null,null,"Аудит",null,null,"Аудит (КР)",null,null,"Производственная (технологическая) практика ",null,null,"Безопасность жизнедеятельности",null,null,"Маркетинг",null,null,"Макроэкономическое планирование и прогнозирование",null,null,"Комплексный анализ хозяйственной деятельности",null,null,"Комплексный анализ хозяйственной деятельности (КР)",null,null,"Лабораторный практикум по бухгалтерскому учету",null,null,"Международные стандарты финансовой отчетности",null,null,"Бухгалтерский учет на предприятиях малого бизнеса",null,null,"Логистика",null,null,"Налоги и налогообложение",null,null,"Анализ финансовой отчетности",null,null,"Практикум 1С:Бухгалтерия",null,null,"НИР",null,null,"Преддипломная практика",null,null,"Средний балл",null,"из них с оценками   3","из них с оценками   4","из них с оценками   5","из них с 6ом","итого предметов","  Часы    всего","из них аудиторных"," из них с оценками   3","из них с оценками   4","из них с оценками   5",null,"Количество долгов"]
[{"$f":"A5+1","v":1},"Агаева","Гульнара","Фейрузовна",{"$f":"CONCATENATE(B6,\" \",LEFT(C6,1),\". \",LEFT(D6,1),\".\")","v":"Агаева Г. Ф."},{"$f":"DativeCase(CONCATENATE(B6,\" \", C6,\" \",D6))","v":{"$error":"#NAME?"}},"Агаевой","Гульнаре","Фейрузовне","1996-02-03","п. Ветлужский г. Шарья Костромской обл.","РФ","ж","МБОУ СОШ 21 г. Шарья",2013,"не замужем","Костромская обл., г. Шарья, ул. Адмирала Виноградова, д. 17, кв. 1",null,null,null,null,null,null,null,13131,"Экономический","38.03.01","Экономика","Бухгалтерский учет, анализ и аудит","5 лет","БАКАЛАВР","2-552","2013-08-30","по договору с полным возмещение затрат","000001013","2013-08-19",null,null,null,null,null,null,null,null,"2-233","2018-04-02","по семейным обстоятельствам","2018-03-23","2018-03-22","2-532","2014-09-01","2-571","2015-09-01","2-561","2016-09-01",null,null,null,null,null,null,null,null,null,null,null,null,null,null,null,null,null,null,null,null,null,null,null,5,"АО",4,"2017-11-01",null,6,"2017-11-01",null,4,"29.05.2014  ",null,6,"03.06.2014  ",null,3,"25.12.2015  ",null,3,"03.06.2014  ",null,4,"30.05.2014  ",null,3,"26.05.2015  ",null,6,"24.12.2014  ",null,6,"23.12.2014  ",null,3,"25.12.2014  ",null,3,"25.12.2014  ",null,6,"26.06.2015  ",null,3,"29.06.2015  ",null,null,"  ",null,3,"26.06.2015  ",null,null,"  ",null,3,"07.12.2015  ",null,6,"21.05.2014  ",null,null,"  ",null,null,"  ",null,null,null,null,6,"01.11.2015  ",null,4,"02.12.2015  ",null,5,"19.11.2015  ",null,3,"27.11.2015  ",null,null,"  ",null,4,"23.11.2015  ",null,null,"  ",null,6,"05.06.2016  ",null,null,"  ",null,null,"  ",null,null,null,null,3,"05.06.2016  ",null,3,"06.04.2017",null,null,"  ","ООО \"МедТехникаПоинт\" Ленинградской обл.",3,"01.12.2016  ",null,6,"2018-03-13",522,null,"  ",null,null,null,null,null,"  ",null,4,"11.04.2017  ",null,3,"11.04.2017  ",null,null,null,null,3,"11.04.2017  ",null,3,"11.04.2017  ",null,null,"  ",null,null,null,null,null,"  ","ООО \"МедТехникаПоинт\" Ленинградская обл.",4,"01.11.2017  ",null,null,"  ",null,3,"01.11.2017  ",null,null,"  ",null,null,null,null,3,"2018-03-22",565,3,"01.11.2017  ",null,3,"2018-03-20",555,4,"2018-03-13",521,null,"  ",null,null,"  ",null,6,"01.11.2017  ",null,null,"  ","ФГБОУ ВО Костромская ГСХА, кафедра бухгалтерский учет, анализ и аудит",null,"  ","ООО \"Абсолют\" г. Санкт-Петербург Ленинградской обл.",{"$f":"(JL6*3+JM6*4+JN6*5)/50","v":1.88},null,{"$f":"COUNTIF(CC6:JG6,3)","v":19},{"$f":"COUNTIF(CC6:JG6,4)","v":8},{"$f":"COUNTIF(CC6:JG6,5)","v":1},{"$f":"COUNTIF(CC6:JG6,6)","v":10},{"$f":"SUM(JL6:JN6)","v":28},{"$f":"SUMIF(CC6:JG6,\">0\",$CC$3:$JG$3)","v":5749},{"$f":"INT(JQ6/8+0.5)","v":719}]
[{"$f":"A6+1","v":2},"Восканян","Ирина ","Константиновна","Восканян И. К.",null,"Восканян","Ирине","Константиновне","1994-03-10","г. Москва","РФ","ж","МБОУ гимназия 4 г. Озеры Московской обл.",2012,"замужем","г. Кострома, ул. Ленина, д. 100б, кв. 32",null,null,null,null,null,null,null,13132,"Экономический","38.03.01","Экономика","Бухгалтерский учет, анализ и аудит","5 лет","БАКАЛАВР","2-552","2013-08-30","по договору с полным возмещение затрат","000001055","2013-08-20",null,null,null,null,null,null,null,null,"2-448","2018-05-31","по семейным обстоятельствам","2018-05-18","2019-05-17","2-532","2014-09-01","2-571","2015-09-01","2-561","2016-09-01","2-703","2017-09-01",null,null,null,null,null,null,null,null,null,null,null,null,"Бухгалтерский учет и анализ продаж ювелирных изделий (на примере ИП Филипповой О.В. г. Кострома)",null,null,null,null,null,null,null,null,5,"АО",4,"2017-11-01",null,6,"2017-11-01",null,4,"21.12.2013  ",null,6,"16.01.2014  ",null,3,"18.06.2014  ",null,3,"24.01.2014  ",null,5,"27.06.2014  ",null,4,"26.06.2014  ",null,6,"15.09.2015  ",null,6,"17.09.2015  ",null,4,"25.12.2014  ",null,4,"26.12.2014  ",null,6,"27.12.2014  ",null,5,"27.04.2015  ",null,4,"20.09.2016  ",null,5,"21.04.2015  ",null,3,"03.07.2015  ",null,4,"25.04.2015  ",null,6,"24.04.2014  ",null,null,"  ",null,null,"  ",null,5,"2016-09-09","ФГБОУ ВО Костромская ГСХА, кафедра экономической кибернетики",6,"03.12.2015  ",null,4,"02.12.2015  ",null,5,"31.08.2016  ",null,3,"29.01.2016  ",null,4,"12.09.2016  ",null,5,"31.08.2016  ",null,3,"01.05.2016  ",null,6,"05.06.2016  ",null,5,"04.06.2016  ",null,5,"04.06.2016  ",null,3,"04.06.2016","История развития бухгалтерского учёта",4,"02.03.2016  ",null,4,"2016-06-04","Оптимизация рационов кормления птицы",null,"  ",null,5,"10.12.2016  ",null,6,"10.12.2016  ",null,5,"18.10.2017  ",null,3,"2018-05-16","Ценовая политика организации (предприятия)",4,"10.12.2016  ",null,5,"11.04.2017  ",null,null,"  ",null,null,null,"Учет денежных средств",5,"11.04.2017  ",null,4,"11.04.2017  ",null,4,"11.04.2017  ",null,4,"08.06.2017","Завершение аудита и аудиторское\nзаключение",null,"  ","ООО Такос Стиль г. Кострома",3,"2017-11-01","   Z-7679499",5,"2018-05-16",861,4,"2018-04-17",676,5,"2017-11-01","  Z-7679523",null,null,"Аналииз общего уровня экономического развития предприятия",4,"2018-04-16",662,4,"2018-04-16",666,5,"2017-11-01","   Z-7679503",5,"2017-11-01","   Z-7679715",6,"2018-05-16",860,6,"2017-11-01","  Z-7679562",6,"2017-11-01","  Z-7679747",null,"  ","ФГБОУ ВО Костромская ГСХА, кафедра бухгалтерский учет, анализ и аудит",null,"  ","ООО \"Гарант-займ\" г. Кострома Костромской обл.",3.52,null,8,18,16,12,42,7576,947]
[3,"Старикова (Крутикова)","Татьяна","Сергеевна","Старикова (Крутикова) Т. С.",null,"Стариковой","Татьяне","Сергеевне","1993-05-18","с. Георгиевское Межевского р-на Костромской обл.","РФ","ж","Муниципальное общеобразовательное  учреждение Межевская средняя общеобразовательная школа Межевского муниципального района Костромской области с. Георгиевское",2011,"замужем","Костромская обл., г. Шарья, ул. Лугова, д. 11, кв. 2",null,null,null,null,null,null,null,11476,"Экономический","38.03.01","Экономика","Бухгалтерский учет, анализ и аудит","5 лет","БАКАЛАВР","2-371","2011-08-17","по договору с полным возмещение затрат","196-2011","2011-08-12",null,null,null,null,null,null,null,null,"2-803\n2-391","26.12.2016\n18.05.2018","по состоянию здоровья\nпо уходу за ребенком","17.11.2016\n27.04.2018","16.11.2017\n26.04.2019","2-648","2012-10-01","2-554","2013-08-30","2-571","2015-09-01","2-561","2016-09-01",null,null,null,null,null,null,null,null,null,null,null,null,"Бухгалтерский учет и анализ затрат на производство зерна в ООО «Минское» Костромского района Костромской области",null,null,null,null,null,null,null,null,5,"АО",3,"2017-11-01",null,6,"2017-11-01",null,3,"п/зач  ",null,6,"п/зач  ",null,3,"п/зач  ",null,3,"02.11.2015  ",null,3,"01.12.2015  ",null,3,"п/зач  ",null,6,"п/зач  ",null,6,"п/зач  ",null,3,"п/зач  ",null,3,"30.10.2015  ",null,6,"п/зач  ",null,4,"19.04.2013  ",null,3,"09.12.2014  ",null,3,"п/зач  ",null,4,"20.04.2013  ",null,4,"23.12.2015  ",null,6,"п/зач  ",null,null,"  ",null,null,"  ",null,3,"п/зач",null,6,"03.12.2013  ",null,4,"09.12.2013  ",null,3,"05.12.2013  ",null,3,"20.11.2015  ",null,null,"  ",null,3,"04.12.2013  ",null,null,"  ",null,6,"25.11.2015  ",null,null,"  ",null,3,"26.10.2015  ",null,3,"26.10.2015",null,3,"22.12.2015  ",null,null,null,null,null,"  ",null,3,"08.12.2014  ",null,null,"  ",null,4,"14.12.2014  ",null,3,"16.12.2014",null,3,"16.12.2014  ",null,3,"22.12.2014  ",null,null,"  ",null,null,null,null,3,"30.11.2015  ",null,null,"  ",null,null,"  ",null,null,null,null,null,"  ",null,3,"п/зач  ",null,4,"01.11.2017  ",null,null,"  ",null,3,"01.11.2017  ",null,null,null,null,null,"  ",null,4,"01.11.2017  ",null,3,"01.11.2017  ",null,4,"01.11.2017  ",null,6,"02.11.2016  ",null,6,"01.11.2017  ",null,null,"  ",null,null,"  ","ФГБОУ ВО Костромская ГСХА, кафедра бухгалтерский учет, анализ и аудит",null,"  ","OOO \"Минское\" Костромского р-на Костромской обл.",2.14,null,25,8,0,10,33,6228,779]
[4,"Будкова","Ольга ","Андреевна","Будкова О. А.",null,"Будковой","Ольге","Андреевне","1996-02-06","г. Кострома","РФ","ж","МБОУ г. Костромы СОШ 6",2014,"не замужем","г. Кострома, ул. Малышковская, д. 74, кв. 32 ",null,null,null,null,null,null,null,14102,"Экономический","38.03.01","Экономика","Бухгалтерский учет, анализ и аудит","5 лет","БАКАЛАВР","2-525","2014-08-21","по договору с полным возмещение затрат","000002774","2014-08-06",null,null,null,null,null,null,null,null,null,null,null,null,null,"2-571","2015-09-01","2-561","2016-09-01","2-703","2017-09-01",null,null,null,null,null,null,null,null,null,null,null,null,null,null,null,null,null,null,null,null,null,null,null,5,"253z",null,null,null,6,"2018-04-13",null,3,"01.06.2015  ",null,6,"02.06.2015  ",null,3,"02.06.2015  ",null,3,"06.06.2015  ",null,4,"30.05.2015  ",null,3,"05.06.2015  ",null,6,"23.12.2015  ",null,6,"22.12.2015  ",null,5,"26.12.2015  ",null,3,"25.12.2015  ",null,6,"23.12.2015  ",null,3,"27.04.2016  ",null,3,"27.04.2016  ",null,4,"13.04.2016  ",null,4,"25.04.2016  ",null,4,"21.04.2016  ",null,6,"22.05.2015  ",null,null,"  ",null,null,"  ",null,null,"  ",null,6,"01.12.2016  ",null,4,"01.12.2016  ",null,3,"01.12.2016  ",null,3,"01.12.2016  ",null,3,"01.12.2016  ",null,3,"24.11.2016  ",null,3,"03.06.2017  ",null,6,"03.06.2017  ",null,3,"03.06.2017  ",null,3,"03.06.2017  ",null,3,"03.06.2017",null,4,"03.06.2017  ",null,3,"03.06.2017",null,null,"  ",null,4,"06.12.2017  ",null,6,"2018-04-03",599,3,"06.12.2017  ",null,4,"06.12.2017",null,4,"06.12.2017  ",null,4,"2018-04-13",7729558,3,"2018-04-13",7729519,4,"2018-04-13","Учет собственного капитала",3,"2018-04-13",7729504,4,"2018-04-13",7729513,4,"2018-04-13",7729511,4,"2018-04-13","Планирование аудита",null,"  ","ООО \"Мечта\" Костромского р-на Костромской обл.",null,"  ",null,null,"  ",null,null,"  ",null,null,"  ",null,null,null,0,null,"  ",null,null,"  ",null,null,"  ",null,null,"  ",null,null,"  ",null,null,"  ",null,null,"  ",null,null,"  ",null,null,"  "]
[5,"Ваваева","Ольга ","Алексеевна","Ваваева О. А.",null,"Ваваевой","Ольге","Алексеевне","1987-12-11","д. Ефино Макарьевского р-на Костромской обл.","РФ","ж","ГОУ НПО Профессиональный лицей 29",2007,"замужем","г. Кострома, ул. Войкова, д. 40, кв.133",null,null,null,null,null,null,null,12119,"Экономический","38.03.01","Экономика","Бухгалтерский учет, анализ и аудит","5 лет","БАКАЛАВР","2-560","2012-08-16","по договору с полным возмещение затрат","696-2012","2012-08-14",null,null,null,null,null,null,null,null,"2-708\n2-616","26.10.2015\n28.09.2016","по семейным обстоятельствам\nпо уходу за ребенком","06.10.2015\n06.10.2016","05.10.2016\n05.10.2017","2-554","2013-08-30","2-532","2014-09-01","2-571","2015-09-01",null,null,null,null,null,null,null,null,null,null,null,null,null,null,null,null,null,null,null,null,null,null,null,5,"253z",null,null,null,6,"2018-04-13",null,3,"27.05.2013  ",null,6,"21.05.2013  ",null,3,"11.06.2013  ",null,3,"07.06.2013  ",null,4,"01.06.2013  ",null,3,"08.06.2013  ",null,6,"17.12.2013  ",null,6,"11.12.2013  ",null,4,"13.12.2013  ",null,3,"19.12.2013  ",null,6,"14.12.2013  ",null,4,"22.04.2014  ",null,3,"17.04.2014  ",null,4,"18.04.2014  ",null,4,"23.04.2014  ",null,3,"14.04.2014  ",null,6,"05.06.2013  ",null,null,"  ",null,null,"  ",null,4,"п/зач",null,6,"06.12.2014  ",null,4,"27.11.2014  ",null,5,"01.12.2014  ",null,4,"28.11.2014  ",null,3,"05.12.2014  ",null,4,"03.12.2014  ",null,3,"01.06.2015  ",null,6,"27.05.2015  ",null,3,"02.06.2015  ",null,3,"30.05.2015  ",null,3,"30.05.2015",null,4,"29.05.2015  ",null,4,"05.06.2015",null,4,"2018-04-11",null,3,"06.12.2017  ",null,6,"06.12.2017  ",null,3,"06.12.2017  ",null,4,"06.12.2017",null,5,"06.12.2017  ",null,4,"2018-04-13",7729558,3,"2018-04-13",7729519,4,"2018-04-13","Организация бухгалтерского учета на предприятии",3,"2018-04-13",7729504,5,"2018-04-13",7729513,4,"2018-04-14",7729511,5,"2018-04-13","Правовое регулирование аудиторской деятельности в\nРоссийской Федерации",null,"  ","ООО \"Север+\" Октябрьского р-на Костромской обл. ",null,"  ",null,null,"  ",null,null,"  ",null,null,"  ",null,null,null,0,null,"  ",null,null,"  ",null,null,"  ",null,null,"  ",null,null,"  ",null,null,"  ",null,null,"  ",null,null,"  ",null,null,"  "]
[6,"Вахнина","Наталья ","Сергеевна","Вахнина Н. С.",null,"Вахниной","Наталье","Сергеевне","1994-09-21","г. Кострома","РФ","ж","ОГБОУ СПО \"Костромской техникум торговли и питания\"",2013,"не замужем","г. Кострома, ул. Сплавщиков, д. 27, кв. 1 ",null,null,null,null,null,null,null,14103,"Экономический","38.03.01","Экономика","Бухгалтерский учет, анализ и аудит","5 лет","БАКАЛАВР","2-525","2014-08-21","по договору с полным возмещение затрат","000002960","2014-08-15",null,null,null,null,null,null,null,null,null,null,null,null,null,"2-571","2015-09-01","2-561","2016-09-01","2-703","2017-09-01",null,null,null,null,null,null,null,null,null,null,null,null,null,null,null,null,null,null,null,null,null,null,null,5,"253z",null,null,null,6,"2018-04-13",null,4,"01.06.2015  ",null,6,"02.06.2015  ",null,3,"02.06.2015  ",null,3,"06.06.2015  ",null,4,"30.05.2015  ",null,3,"05.06.2015  ",null,6,"23.12.2015  ",null,6,"22.12.2015  ",null,5,"26.12.2015  ",null,3,"25.12.2015  ",null,6,"23.12.2015  ",null,4,"27.04.2016  ",null,null,"  ",null,4,"13.04.2016  ",null,3,"31.05.2017  ",null,4,"21.04.2016  ",null,6,"22.12.2015  ",null,null,"  ",null,null,"  ",null,null,"  ",null,6,"01.12.2016  ",null,4,"26.05.2017  ",null,3,"01.12.2016  ",null,3,"20.06.2016  ",1126,3,"2018-09-19",40,4,"02.06.2017  ",null,3,"03.06.2017  ",null,6,"03.06.2017  ",null,null,"  ",null,4,"03.06.2017  ",null,null,null,null,3,"03.06.2017  ",null,3,"03.06.2017","Оптимизация структуры кормопроизводства предприятия",null,"  ",null,null,"  ",null,6,"2018-04-03",600,null,"  ",null,null,null,null,4,"2018-04-02",596,4,"2018-04-13",7729558,3,"2018-04-13",7729519,null,null,null,4,"2018-04-13",7729504,3,"2018-04-13",7729513,4,"2018-04-14",7729511,null,null,null,null,"  ","ООО \"Мечта\" Костромского р-на Костромской обл.",null,"  ",null,null,"  ",null,null,"  ",null,null,"  ",null,null,null,0,null,"  ",null,null,"  ",null,null,"  ",null,null,"  ",null,null,"  ",null,null,"  ",null,null,"  ",null,null,"  ",null,null,"  "]
[7,"Кут","Мария ","Михайловна","Кут М. М.",null,"Кут","Марии","Михайловне","1995-12-08","г. Кострома","РФ","ж","МБОУ г. Костромы СОШ 31",2014,"не замужем","г. Кострома, ул. Ивана Сусанина, д. 25, кв. 139   ",null,null,null,null,null,null,null,14106,"Экономический","38.03.01","Экономика","Бухгалтерский учет, анализ и аудит","5 лет","БАКАЛАВР","2-525","2014-08-21","по договору с полным возмещение затрат","000002709","2014-07-29",null,null,null,null,null,null,null,null,null,null,null,null,null,"2-571","2015-09-01","2-561","2016-09-01","2-703","2017-09-01",null,null,null,null,null,null,null,null,null,null,null,null,null,null,null,null,null,null,null,null,null,null,null,5,"253z",null,null,null,6,"2018-04-13",null,4,"01.06.2015  ",null,6,"02.06.2015  ",null,3,"02.06.2015  ",null,3,"06.06.2015  ",null,5,"30.05.2015  ",null,3,"05.06.2015  ",null,6,"23.12.2015  ",null,6,"22.12.2015  ",null,5,"26.12.2015  ",null,3,"17.10.2016  ",null,6,"23.12.2015  ",null,5,"2016-04-27",null,3,"2016-04-27",null,5,"2016-04-13",null,4,"2016-04-25",null,5,"2016-04-21",null,6,"22.05.2015  ",null,null,"  ",null,null,"  ",null,4,"2018-04-10","ФГБОУ ВО Костромская ГСХА, кафедра экономической кибернетики",6,"01.12.2016  ",null,4,"01.12.2016  ",null,3,"01.12.2016  ",null,3,"01.12.2016  ",null,5,"01.12.2016  ",null,4,"24.11.2016  ",null,4,"03.06.2017  ",null,6,"03.06.2017  ",null,4,"03.06.2017  ",null,4,"03.06.2017  ",null,3,"03.06.2017",null,4,"03.06.2017  ",null,3,"03.06.2017",null,4,"2018-04-13",null,4,"06.12.2017  ",null,6,"06.12.2017  ",null,3,"06.12.2017  ",null,4,null,null,5,"06.12.2017  ",null,4,"2018-04-13",7729558,3,"2018-04-13",7729519,4,"2018-04-13","Учет продаж продукции (работ, услуг) в организации",3,"2018-04-13",7729504,4,"2018-04-13",7729513,4,"2018-04-14",7729511,4,"2018-04-13","Образование аудитора и контроль качества\nпроведения аудита",null,"  ","ООО \"Нерехтахлебопродукт\" г. Нерехта Костромской обл.",null,"  ",null,null,"  ",null,null,"  ",null,null,"  ",null,null,null,0,null,"  ",null,null,"  ",null,null,"  ",null,null,"  ",null,null,"  ",null,null,"  ",null,null,"  ",null,null,"  ",null,null,"  "]
[8,"Мудрова","Анастасия","Сергеевна","Мудрова А. С.",null,"Мудровой","Анастасии","Сергеевне","1991-05-16","г. Кострома","РФ","ж","ГОУ СПО Костромской механико-технологический техникум",2009,"замужем","Кострома г. пр-т Рабочий, д. 69, кв. 91",null,null,null,null,null,null,null,170824,"Экономический","38.03.01","Экономика","Бухгалтерский учет, анализ и аудит","5 лет","БАКАЛАВР","2-374","2009-08-17","по договору с полным возмещение затрат","57","2009-08-12",null,null,"2-511","2015-07-15","невыполнение учебного плана","2-770","2017-09-29",null,null,null,null,null,null,"2-400","2010-09-01","2-784","2012-12-04","2-554","2013-08-30",null,null,null,null,null,null,null,null,null,null,null,null,null,null,null,null,null,null,null,null,null,null,null,5,"253z",null,null,null,6,"2018-04-13",null,3,"п/атт 15.11.2017",206,6,"п/атт 26.12.2017",318,null,"  ",null,null,"  ",null,3,"п/атт 12.10.2017",301,3,"п/атт 02.04.2018",597,6,"п/зач 02.11.2017",317,6,"п/атт 20.11.2017",208,3,"п/атт 20.11.2017",207,null,"  ",null,null,"  ",null,3,"п/атт 28.10.2017",300,3,"п/зач 02.11.2017",316,null,"  ",null,3,"п/атт 30.10.2017",304,5,"п/атт 17.10.2017",307,null,"  ",null,null,"  ",null,null,"  ",null,null,"  ","ФГБОУ ВО Костромская ГСХА, кафедра экономической кибернетики",6,"п/атт 20.11.2017",209,4,"п/атт 31.10.2017",309,null,"  ",null,3,"п/атт 13.10.2017",303,3,"п/атт 28.10.2017",302,3,"п/атт 28.10.2017",308,null,"  ",null,null,"  ",null,4,"п/атт 01.11.2017",314,3,"п/атт 27.12.2017",304,null,null,null,3,"п/атт 28.10.2017",305,3,"п/атт 28.10.2017",null,null,"  ","ООО \"Мечта\" Костромского р-на Костромской обл.",4,"2018-12-06",null,6,"2017-12-06",null,3,"п/атт 28.12.2017",328,3,"п/атт 28.12.2017",null,3,"п/атт 28.12.2017",339,3,"п/атт 28.10.2017",312,null,"  ",null,null,null,null,3,"п/зач 27.12.2017",301,null,"  ",null,4,"п/зач 27.12.2017",303,3,"п/зач 27.12.2017",null,null,"  ","ООО \"Мечта\" Костромского р-на Костромской обл.",3,"п/атт 26.12.2017",315,4,"п/зач 16.10.2017",310,null,"  ",null,3,"п/атт 27.12.2017",306,3,"п/атт 27.12.2017",null,3,"п/атт 27.12.2017",305,3,"п/атт 27.12.2017",308,3,"п/атт 27.12.2017",307,null,"  ",null,6,"п/зач 26.12.2017",313,6,"п/зач 26.12.2017",311,null,"  ",null,null,"  ",null,null,"  ",null,{"$f":"(JL13*3+JM13*4+JN13*5)/50","v":2},null,{"$f":"COUNTIF(CC13:JG13,3)","v":25},{"$f":"COUNTIF(CC13:JG13,4)","v":5},{"$f":"COUNTIF(CC13:JG13,5)","v":1},{"$f":"COUNTIF(CC13:JG13,6)","v":8},{"$f":"SUM(JL13:JN13)","v":31},{"$f":"SUMIF(CC13:JG13,\">0\",$CC$3:$JG$3)","v":5452},{"$f":"INT(JQ13/8+0.5)","v":682}]
[9,"Осинкина","Полина","Сергеевна","Осинкина П. С.",null,"Осинкиной","Полине","Сергеевне","1994-11-05","г. Кострома","РФ","ж","МБОУ г. Костромы СОШ 35",2013,"не замужем","г. Кострома, пр-кт Рабочий, д. 13, кв. 26",null,null,null,null,null,null,null,13558,"Экономический","38.03.01","Экономика","Бухгалтерский учет, анализ и аудит","5 лет","БАКАЛАВР","2-509","2013-08-05","по договору с полным возмещение затрат","000000763","2013-08-01",null,null,"2-571","2015-09-01","за академическую неуспеваемость","2-641","2016-10-06",null,null,null,null,null,null,"2-533","2014-09-01",null,null,null,null,null,null,null,null,null,null,null,null,null,null,null,null,null,null,null,null,null,null,null,null,null,null,null,5,"253z",null,null,null,6,"2018-04-13",null,3,"п/зач",null,6,"п/зач  ",null,3,"п/зач  ",null,3,"п/зач  ",null,3,"30.08.2017  ",null,3,"п/зач  ",null,6,"п/зач",null,6,"п/зач  ",null,4,"п/зач  ",null,3,"п/зач  ",null,6,"п/зач  ",null,3,"2018-05-22",926,4,"2018-05-22",927,3,"04.10.2017  ",null,3,"07.06.2017  ",null,3,"п/зач",null,6,"п/зач  ",null,null,"  ",null,null,"  ",null,4,"  ",null,6,"п/зач",null,4,"01.12.2016  ",null,3,"2018-03-29",587,3,"2018-06-25",975,4,"п/зач",null,3,"п/зач",null,3,"2018-06-05",935,6,"03.06.2017  ",null,3,"2018-05-22",928,3,"03.06.2017  ",null,4,"2018-05-29",931,3,"2018-03-28",584,3,"2018-03-27",null,3,"2018-09-04",null,4,"06.12.2017  ",null,6,"06.12.2017  ",null,3,"06.12.2017  ",null,3,"2018-06-05",null,3,"2017-12-06",null,4,"2018-04-13",7729558,null,"  ",null,null,null,null,3,"2018-04-13",7729504,4,"2018-04-13",7729513,4,"2018-04-14",7729511,5,"2018-04-13","Профессионально-этические нормы аудита",null,"  ","АО \"Шувалово\" Костромского р-на Костромской обл.",6,"п/зач",null,null,"  ",null,null,"  ",null,null,"  ",null,null,null,0,null,"  ",null,null,"  ",null,null,"  ",null,null,"  ",null,null,"  ",null,null,"  ",null,null,"  ",null,null,"  ",null,null,"  ",null,{"$f":"(JL14*3+JM14*4+JN14*5)/50","v":2.2799999999999998},null,{"$f":"COUNTIF(CC14:JG14,3)","v":23},{"$f":"COUNTIF(CC14:JG14,4)","v":10},{"$f":"COUNTIF(CC14:JG14,5)","v":1},{"$f":"COUNTIF(CC14:JG14,6)","v":10},{"$f":"SUM(JL14:JN14)","v":34},{"$f":"SUMIF(CC14:JG14,\">0\",$CC$3:$JG$3)","v":6064},{"$f":"INT(JQ14/8+0.5)","v":758}]
[10,"Александрова ","Елена ","Сергеевна","Александрова  Е. С.",null,"Александровой","Елене","Сергеевне","1987-07-08","п. Караваево Костромского р-на Костромской обл.","РФ","ж","МОУ Караваевская СОШ Костромского р-на Костромской обл.",2004,"не замужем","г. Кострома, ул. Индустриальная, д. 30, кв. 49  ",null,null,null,null,null,null,null,14132,"Экономический","38.03.01","Экономика","Бухгалтерский учет, анализ и аудит","5 лет","БАКАЛАВР","2-525","2014-08-21","по договору с полным возмещение затрат","000002870","2014-08-13",null,null,null,null,null,null,null,null,null,null,null,null,null,"2-571","2015-09-01","2-561","2016-09-01","2-703","2017-09-01",null,null,null,null,null,null,null,null,null,null,null,null,null,null,null,null,null,null,null,null,null,null,null,5,"254z",null,null,null,null,null,null,5,"01.06.2015  ",null,6,"02.06.2015  ",null,4,"02.06.2015  ",null,4,"20.01.2016  ",null,5,"30.05.2015  ",null,3,"05.06.2015  ",null,6,"22.12.2015  ",null,6,"22.12.2015  ",null,4,"26.12.2015  ",null,4,"08.09.2016  ",null,6,"23.12.2015  ",null,4,"27.05.2016  ",null,4,"20.09.2016  ",null,4,"27.04.2016  ",null,4,"31.08.2016  ",null,null,"  ",null,6,"12.09.2016  ",null,null,"  ",null,null,"  ",null,5,"02.07.2016  ",null,6,"01.12.2016  ",null,4,"17.10.2017  ",null,4,"2018-05-04",754,4,"01.12.2016  ",null,3,"16.05.2017  ",null,null,"  ",null,4,"03.06.2017  ",null,6,"20.03.2017  ",null,5,"03.06.2007  ",null,5,"03.06.2017  ",null,4,"2018-05-04",null,4,"03.06.2017  ",null,null,null,null,null,"  ",null,null,"  ",null,6,"2018-04-28",727,null,"  ",null,null,null,null,null,"  ",null,null,"  ",null,null,"  ",null,null,null,null,null,"  ",null,4,"2018-04-26","7749513-1",4,"2018-05-07","7749511-2",4,"2018-05-07",null,null,"  ","ООО «Ирбис» г. Солночнегорск Московской обл.",null,"  ",null,null,"  ",null,null,"  ",null,null,"  ",null,null,null,0,null,"  ",null,null,"  ",null,null,"  ",null,null,"  ",null,null,"  ",null,null,"  ",null,null,"  ",null,null,"  ",null,null,"  ",null,1.98,null,2,17,5,8,24,4732,592]
[11,"Колонистова","Наталия","Олеговна","Колонистова Н. О.",null,"Колонистовой","Наталии","Олеговне","1995-04-09","г. Нея","РФ","ж","МОУ СОШ 2 г. Нея",2012,"не замужем","г. Кострома, ул. Боевая, д. 27, кв. 36",null,null,null,null,null,null,null,12510,"Экономический","38.03.01","Экономика","Бухгалтерский учет, анализ и аудит","5 лет","БАКАЛАВР","2-555","2012-08-10","по договору с полным возмещение затрат","632-2012","2012-08-07",null,null,"2-642","2014-10-09","за академическую неуспеваемость","2-641","2016-10-06",null,null,null,null,null,null,"2-592","2013-09-16","2-533","2014-09-01","2-703","2017-09-01",null,null,null,null,null,null,null,null,null,null,null,null,null,null,null,null,null,null,null,null,null,null,null,5,"254z",null,null,null,null,"  ",null,4,"п/зач   ",null,6,"п/зач   ",null,3,"п/зач  ",null,3,"п/зач  ",null,4,"  п/зач ",null,5,"п/зач  ",null,6,"п/зач  ",null,6,"п/зач ",null,4,"п/зач   ",null,3,"  п/зач ",null,6,"  п/зач   ",null,4,"  п/зач  ",null,5,"  п/зач  ",null,4,"  п/зач  ",null,3,"30.12.2016  ",null,5,"17.06.2017  ",null,6,"  п/зач  ",null,6,"  п/зач  ",null,null,"  ",null,4,"  п/зач  ",null,6,"01.12.2016  ",null,4,"01.12.2016  ",null,5,"01.12.2016  ",null,4,"01.12.2016  ",null,5,"01.12.2016  ",null,5,"01.12.2016  ",null,4,"03.06.2017  ",null,6,"03.06.2017  ",null,5,"03.06.2017  ",null,5,"03.06.2017  ",null,3,"03.06.2017",null,5,"03.06.2017  ",null,3,"2017-06-03",null,null,"  ",null,5,"2017-12-06","   Z-7749995",6,"2017-12-06","   Z-7749809",4,"2017-12-06","   Z-7749708",3,"06.12.2017",null,4,"2017-12-06","   Z-7749717",5,"2018-04-13",7749558,null,"  ",null,null,null,null,5,"2018-04-13",7749504,5,"2018-04-13",7749513,5,"2018-04-13",7749511,5,"2018-04-13","Профессионально-этические нормы аудита",null,"  ","ООО \"Лайт\" г. Кострома",null,"  ",null,null,"  ",null,null,"  ",null,null,"  ",null,null,null,0,null,"  ",null,null,"  ",null,null,"  ",null,null,"  ",null,null,"  ",null,null,"  ",null,null,"  ",null,null,"  ",null,null,"  ",null,2.8,null,7,11,15,9,33,5812,727]
[12,"Монахова","Инна","Леонидовна","Монахова И. Л.",null,"Монаховой","Инне","Леонидовне","1985-05-25","г. Кострома","РФ","ж","ФГОУ СПО \"Буйский сельскохозяйственный техникум\"",2009,"замужем","г. Кострома, ул. Даремская, д.3, кор. 2, кв. 23",null,null,null,null,null,null,null,180002,"Экономический","38.03.01","Экономика","Бухгалтерский учет, анализ и аудит","5 лет","БАКАЛАВР","2-378","2010-08-13","по договору с полным возмещение затрат","4-Бэ-2010","2010-10-13",null,null,"2-511","2015-07-15","невыполнение учебного плана","2-73","2018-02-02",null,null,null,null,null,null,"2-383","2011-09-01","2-582","2012-08-31","2-554","2013-08-30",null,null,null,null,null,null,null,null,null,null,null,null,null,null,null,null,null,null,null,null,null,null,null,5,"254z",null,null,null,null,"  ",null,3,"п/атт 29.01.2018  ",null,6,"п/атт 29.01.2018  ",null,3,"п/атт 09.02.2018  ",null,3,"п/атт 09.02.2018  ",null,3,"п/атт 25.01.2018  ",null,4,"п/атт 30.01.2018  ",null,6,"п/зач 31.01.2018  ",null,6,"п/атт 29.01.2018  ",null,4,"п/атт 29.01.2018  ",null,3,"п/атт 09.02.2018  ",null,null,"  ",null,3,"п/атт 25.01.2018  ",null,4,"п/зач 31.01.2018  ",null,null,"  ",null,null,"  ",null,4,"п/атт 29.01.2018  ",null,null,"  ",null,null,"  ",null,null,"  ",null,null,"  ","ФГБОУ ВО Костромская ГСХА, кафедра экономической кибернетики",6,"п/атт 30.01.2018  ",null,4,"п/атт 29.01.2018  ",null,null,"  ",null,null,"  ",null,3,"п/атт 29.01.2018  ",null,5,"п/атт 29.01.2018  ",null,null,"  ",null,null,"  ",null,4,"п/атт 29.01.2018  ",null,3,"п/атт 29.01.2018  ",null,null,null,null,4,"п/атт 29.01.2018  ",null,4,"п/атт 29.01.2018",null,null,"  ","ООО \"Агрофирма \"Планета\" Буйского р-на Костромской обл.",null,"  ",null,null,"  ",null,4,"п/зач 30.01.2018  ",null,3,"п/зач 30.01.2018",null,3,"п/атт 15.01.2018  ",null,null,"  ",null,5,"п/атт 31.01.2018  ",null,null,null,null,null,"  ",null,4,"п/атт 29.01.2018  ",null,3,"п/атт 29.01.2018  ",null,4,"п/атт 29.01.2018",null,null,"  ","ООО \"Агрофирма \"Планета\" Буйского р-на Костромской обл.",null,"  ",null,null,"  ",null,4,"п/атт 29.01.2018  ",null,null,"  ",null,3,"п/атт 29.01.2018",0,4,"п/атт 29.01.2018  ",null,3,"п/атт 29.01.2018  ",null,null,"  ",null,4,"п/атт 29.01.2018  ",null,null,"  ",null,6,"п/зач 29.01.2018  ",null,6,"п/атт 29.01.2018  ",null,null,"  ",null,null,"  ",null,2.1,null,13,14,2,6,29,5060,633]
[13,"Гришина","Елизавета","Владимировна","Гришина Е. В.",null,null,null,null,null,null,null,null,null,null,null,null,null,null,null,null,null,null,null,null,null,"38.03.01",null,null,null,null,null,null,null,null,null,null,null,null,null,null,null,null,null,null,null,null,null,null,null,null,null,null,null,null,null,null,null,null,null,null,null,null,null,null,null,null,null,null,null,null,null,null,null,null,null,null,null,4,"245z",null,null,null,null,null,null,3,"п/зач 24.05.2018",null,6,"п/зач 18.05.2018",null,3,"п/атт 21.05.2018",915,4,"п/атт 21.05.2018",913,4,"2018-07-03",989,3,"п/зач 06.06.2018",null,6,"п/зач 08.05.2018",null,3,"п/зач 04.06.2018",null,3,"2018-06-18",null,3,"п/атт 21.05.2018",914,6,"2018-06-06",null,3,"2018-06-06",934,5,"п/зач 08.05.2018",null,4,"2018-06-06",953,null,null,null,4,"2018-06-19",null,6,"п/зач 30.05.2018",null,6,"п/зач 30.05.2018",null,6,"2018-06-19",965,3,"п/зач 16.05.2018",null,3,"п/зач 24.05.2018",null,3,"п/зач 31.05.2018",null,null,null,null,3,"2018-07-06",990,4,"2018-07-03",null,4,"п/зач 31.05.2018",null,3,"2018-06-05",7809539,6,"2018-06-05",7809542,4,"п/зач 01.06.2018",null,3,"п/зач 04.06.2018",null,null,null,null,3,"2018-06-22",null,3,"2018-06-22","Определение оптимальной структуры\nкормопроизводства сельскохозяйственных\nпредприятий.",3,"п/зач 04.06.2018",null,null,null,null,null,null,null,4,"п/атт 05.09.2018",49,null,null,null,null,null,null,3,"п/зач 01.06.2018",null,null,null,null,null,null,null,null,null,null,null,null,null,null,null,null,null,null,null,null,null,null,3,"п/зач 18.06.2018",null,null,null,null,null,null,null,null,null,null,null,null,null,null,null,null,null,null,null,null,null,null,null,null,null,6,"п/зач 01.06.2018",null,null,null,null,null,null,null,null,null,null,null,null,null,1.82,null,18,8,1,8,27,4824,603]
[14,"Иванова","Оксана","Геннадьевна","Иванова О. Г.",null,"Ивановой","Оксане","Геннадьевне","1989-07-03","г. Кострома","РФ","ж","Вечерняя (общеобразовательная) школа  2",2015,"не замужем","г. Кострома, ул.Голубкова,  д. 14а, кв. 74",null,null,null,null,null,null,null,15815,"Экономический","38.03.01","Экономика","Бухгалтерский учет, анализ и аудит","5 лет","БАКАЛАВР","2-547","2015-08-17","в рамках контрольных цифр на основное место",null,null,null,null,null,null,null,null,null,null,null,null,null,null,null,"2-561","2016-09-01","2-703","2017-09-01",null,null,null,null,null,null,null,null,null,null,null,null,null,null,null,null,null,null,null,null,null,null,null,null,null,4,"245z",null,null,78010135,6,"2018-06-05",78010110,5,"11.06.2016  ",null,6,"11.06.2016  ",null,3,"11.06.2016  ",null,4,"14.11.2016  ",null,4,"11.06.2016  ",null,5,"11.06.2016  ",null,6,"23.12.2016  ",null,6,"23.12.2016  ",null,5,"23.12.2016  ",null,3,"23.12.2016  ",null,6,"23.12.2016  ",null,3,"22.04.2017  ",null,3,"22.04.2017  ",null,5,"22.04.2017  ",null,3,"22.04.2017  ",null,4,"22.04.2017  ",null,6,"22.04.2017  ",null,6,"22.04.2017  ",null,6,"22.04.2017  ",null,5,"14.09.2017  ","ФГБОУ ВО Костромская ГСХА, кафедра экономической кибернетики",6,"02.12.2017  ",null,4,"02.12.2017  ",null,5,"02.12.2017  ",null,4,"02.12.2017  ",null,5,"02.12.2017  ",null,4,"02.12.2017  ",null,3,"2018-06-05",7809539,6,"2018-06-05",7809542,4,"2018-06-05",7809556,4,"2018-06-05",7809514,4,"2018-06-05","Организация учета расчетов с поставщиками и\nподрядчиками",3,"2018-06-05",7809545,3,"2018-06-05","Определение оптимальной структуры\nкормопроизводства сельскохозяйственных\nпредприятий.",null,"  ","ИП Медникова Е.В. г. Кострома",null,"  ",null,null,"  ",null,null,"  ",null,null,null,null,null,"  ",null,null,"  ",null,null,"  ",null,null,null,null,null,"  ",null,null,"  ",null,null,"  ",null,null,null,null,null,"  ",null,null,"  ",null,null,"  ",null,null,"  ",null,null,"  ",null,null,null,null,null,"  ",null,null,"  ",null,null,"  ",null,null,"  ",null,null,"  ",null,null,"  ",null,null,"  ",null,null,"  ",null,null,"  ",null,1.9,null,8,9,7,10,24,4716,590]
[15,"Магомедов","Шамиль","Мусаатаевич","Магомедов Ш. М.",null,"Магомедову","Шамилю","Мусаатаевичу","1996-04-09","с. Муги Акушинского р-на Республики Дагестан","РФ","м","Мугинский многопрофильный лицей им. С.Абдуллаева",2013,"холост","респ. Дагестан , Акушинский р-н, с. Муги",null,null,null,null,null,null,null,14514,"Экономический","38.03.01","Экономика","Бухгалтерский учет, анализ и аудит","5 лет","БАКАЛАВР","2-524","2014-08-21","по договору с полным возмещением затрат","000002487","2014-06-23",null,null,null,null,null,null,null,null,"2-716","2016-11-10","по семейным обстоятельствам","2016-11-07","2017-11-06","2-571","2015-09-01","2-703","2017-09-01",null,null,null,null,null,null,null,null,null,null,null,null,null,null,null,null,null,null,null,null,null,null,null,null,null,3,"235z",null,null,null,null,"  ",null,3,"п/зач",null,null,"  ",null,3,"п/зач",null,3,"п/зач",null,3,"п/зач",null,3,"п/зач",null,null,null,null,null,"  ",null,3,"  ",null,3,"  ",null,null,"  ",null,3,"  ",null,4,"  ",null,3,"  ",null,null,"  ",null,null,"  ",null,null,"  ",null,null,"  ",null,null,"  ",null,5,"п/зач",null,null,"  ",null,3,"п/зач",null,null,"  ",null,null,"  ",null,null,"  ",null,3,"  ",null,null,"  ",null,null,"  ",null,null,"  ",null,null,"  ",null,null,null,null,null,"  ",null,null,null,null,null,"  ","ФГБОУ ВО Костромская ГСХА Костромского р-на Костромской обл. ",null,"  ",null,null,"  ",null,null,"  ",null,null,null,null,null,"  ",null,null,"  ",null,null,"  ",null,null,null,null,null,"  ",null,null,"  ",null,null,"  ",null,null,null,null,null,"  ",null,null,"  ",null,null,"  ",null,null,"  ",null,null,"  ",null,null,null,null,null,"  ",null,null,"  ",null,null,"  ",null,null,"  ",null,null,"  ",null,null,"  ",null,null,"  ",null,null,"  ",null,null,"  ",null,0.84,null,11,1,1,0,13,2215,277]
[16,"Рыбальченко","Евгения","Николаевна","Рыбальченко Е. Н.",null,"Рыбальченко","Евгении","Николаевне","1990-12-04","г. Кострома","РФ","ж","ГОУ СПО Костромской механико-технологический техникум",2010,"замужем","156019 г. Кострома, ул. Центральная, д. 6, кв. 1а",null,null,null,null,null,null,null,160688,"Экономический","38.03.01","Экономика","Бухгалтерский учет, анализ и аудит","5 лет","БАКАЛАВР","2-387","2010-08-25","по договору с полным возмещением затрат","577","2010-08-16",null,null,"2-186","2014-04-09","невыполнение условий договор","2-645","2016-10-07",null,null,null,null,null,null,"2-383","2011-09-01","2-703","2017-09-01",null,null,null,null,null,null,null,null,null,null,null,null,null,null,null,null,null,null,null,null,null,null,null,null,null,4,"245z",4,"2018-06-05",78010135,6,"2018-06-05",78010110,3,"п/зач",null,6,"п/зач",null,null,"  ",null,4,"25.04.2017  ",null,3,"п/зач",null,3,"2017-06-20",null,6,"п/зач",null,6,"п/зач",null,5,"23.12.2016  ",null,3,"  ",null,6,"23.12.2016  ",null,4,"22.04.2017  ",null,4,"  ",null,4,"22.04.2017  ",null,4,"22.04.2017  ",null,4,"22.04.2017  ",null,null,"  ",null,null,"  ",null,6,"22.04.2017  ",null,null,"  ",null,null,"  ",null,4,"02.12.2017  ",null,4,"02.12.2017  ",null,5,"02.12.2017  ",null,4,"02.12.2017  ",null,5,"02.12.2017  ",null,3,"2018-06-05",7809539,6,"2018-06-05",7809542,5,"2018-06-05",7809556,4,"2018-06-05",7809514,4,"2018-06-05","Учет расчетов с подотчетными лицами",4,"2018-06-05",7809545,4,"2018-06-05","Определение оптимальной структуры\nкормопроизводства сельскохозяйственных\nпредприятий.",null,"  ","ООО \"Студия Ремонта\" г. Кострома",null,"  ",null,null,"  ",null,null,"  ",null,null,null,null,null,"  ",null,null,"  ",null,null,"  ",null,null,null,null,null,"  ",null,null,"  ",null,null,"  ",null,null,null,null,null,"  ",null,null,"  ",null,null,"  ",null,null,"  ",null,null,"  ",null,null,null,null,null,"  ",null,null,"  ",null,null,"  ",null,null,"  ",null,null,"  ",null,null,"  ",null,null,"  ",null,null,"  ",null,null,"  ",null,1.82,null,5,14,4,7,23,4536,567]
[17,"Сарыгина","Ирина ","Ильинична","Сарыгина И. И.",null,"Сарыгиной","Ирине","Ильиничне","1994-10-19","г. Кострома","РФ","ж","Костромской политехнический колледж",2015,"не замужем"," г. Кострома, ул. Костромская, д. 45 ",null,null,null,null,null,null,null,"15818з","Экономический","38.03.01","Экономика","Бухгалтерский учет, анализ и аудит","5 лет","БАКАЛАВР","2-557","2015-08-21","по договору с полным возмещением затрат","000003690","2015-08-14",null,null,null,null,null,null,null,null,null,null,null,null,null,"2-561","2016-09-01",null,null,null,null,null,null,null,null,null,null,null,null,null,null,null,null,null,null,null,null,null,null,null,null,null,null,null,4,"245z",3,"2018-06-05",78010135,6,"2018-06-05",78010110,4,"11.06.2016  ",null,6,"11.06.2016  ",null,3,"11.06.2016  ",null,3,"11.06.2016  ",null,4,"11.06.2016  ",null,5,"11.06.2016  ",null,6,"23.12.2016  ",null,6,"23.12.2016  ",null,5,"23.12.2016  ",null,3,"2018-05-17",848,6,"18.04.2017  ",null,4,"22.04.2017  ",null,3,"22.04.2017  ",null,4,"08.11.2017  ",null,4,"22.04.2017  ",null,4,"22.04.2017  ",null,6,"22.04.2017  ",null,6,"22.04.2017  ",null,6,"22.04.2017  ",null,null,"  ",null,6,"02.12.2017  ",null,3,"02.12.2017  ",null,3,"02.12.2017  ",null,4,"02.12.2017  ",null,5,"02.12.2017  ",null,3,"02.12.2017  ",null,3,"2018-06-05",7809539,6,"2018-06-05",7809542,4,"2018-06-05",7809556,4,"2018-06-05",7809514,4,"2018-06-05","Основные направления и перспективы развития\nбухгалтерского учета в РФ",4,"2018-06-05",7809545,3,"2018-06-05","Определение оптимальной специализации и\nсочетания отраслей сельскохозяйственных\nпредприятий.",null,"  ","ГП \"Костромское ПАТП № 3\"  г. Кострома",null,"  ",null,null,"  ",null,null,"  ",null,null,null,null,null,"  ",null,null,"  ",null,null,"  ",null,null,null,null,null,"  ",null,null,"  ",null,null,"  ",null,null,null,null,null,"  ",null,null,"  ",null,null,"  ",null,null,"  ",null,null,"  ",null,null,null,null,null,"  ",null,null,"  ",null,null,"  ",null,null,"  ",null,null,"  ",null,null,"  ",null,null,"  ",null,null,"  ",null,null,"  ",null,1.78,null,10,11,3,10,24,4932,617]
[18,"Фомичева (Нестерчук)","Юлия","Сергеевна","Фомичева (Нестерчук) Ю. С.",null,"Фомичевой","Юлии","Сергеевне","1997-11-10","г. Олевск Олевского р-на Житомирской обл.","РФ","ж","МОУ Шолоховская СОШ Красносельского р-на Костромской области",2015,"замужем","Костромская обл., Красносельский р-н, п. Красное на Волге, мкр Восточный, д. 17, кв. 14",null,null,null,null,null,null,null,15634,"Экономический","38.03.01","Экономика","Бухгалтерский учет, анализ и аудит","5 лет","БАКАЛАВР","2-555","2015-08-21","по договору с полным возмещением затрат","000003413","2015-07-17",null,null,null,null,null,null,null,null,null,null,null,null,null,"2-561","2016-09-01","2-703","2017-09-01",null,null,null,null,null,null,null,null,null,null,null,null,null,null,null,null,null,null,null,null,null,null,null,null,null,4,"245z",3,"2018-06-05",78010135,6,"2018-06-05",78010110,3,"п/зач",null,6,"п/зач",null,3,"п/зач",null,4,"п/зач",null,4,"п/зач",null,3,"п/зач",null,6,"23.12.2016  ",null,6,"23.12.2016  ",null,5,"23.12.2016  ",null,4,"23.12.2016  ",null,6,"22.04.2017  ",null,4,"22.04.2017  ",null,4,"22.04.2017  ",null,5,"22.04.2017  ",null,4,"22.04.2017  ",null,4,"22.04.2017  ",null,6,"22.04.2017  ",null,6,"22.04.2017  ",null,6,"22.04.2017  ",null,4,"п/зач",null,6,"02.12.2017  ",null,4,"02.12.2017  ",null,4,"02.12.2017  ",null,4,"02.12.2017  ",null,4,"02.12.2017  ",null,5,"02.12.2017  ",null,4,"2018-06-05",7809539,6,"2018-06-05",7809542,5,"2018-06-05",7809556,4,"2018-06-05",7809514,4,"2018-06-05","Учет расчетов с персоналом по оплате труда",4,"2018-06-05",7809545,4,"2018-06-05","Определение оптимальной структуры\nкормопроизводства сельскохозяйственных\nпредприятий.",null,"  ","ООО \"АВМ\" Красносельского р-на Костромской обл.",null,"  ",null,null,"  ",null,null,"  ",null,null,null,null,null,"  ",null,null,"  ",null,null,"  ",null,null,null,null,null,"  ",null,null,"  ",null,null,"  ",null,null,null,null,null,"  ",null,null,"  ",null,null,"  ",null,null,"  ",null,null,"  ",null,null,null,null,null,"  ",null,null,"  ",null,null,"  ",null,null,"  ",null,null,"  ",null,null,"  ",null,null,"  ",null,null,"  ",null,null,"  ",null,2,null,4,17,4,10,25,4932,617]
[19,"Гришина","Татьяна","Александровна","Гришина Т. А.",null,"Гришиной","Татьяне","Александровне","1997-11-06","с. Минское Костромского р-на Костромской обл.","РФ","ж","МАОУ \"Гимназия 25\" г. Костромы",2015,"не замужем","Костромская обл., Костромской р-н, с. Минское, ул. Куколевского,  д.7, кв.79",null,null,null,null,null,null,null,170826,"Экономический","38.03.01","Экономика","Бухгалтерский учет, анализ и аудит","5 лет","БАКАЛАВР","2-555","2015-08-21","по договору с полным возмещением затрат","000003474","2015-08-03",null,null,null,null,null,null,null,null,null,null,null,null,null,"2-571","2015-09-01","2-561","2016-09-01",null,null,null,null,null,null,null,null,null,null,null,null,null,null,null,null,null,null,null,null,null,null,null,null,null,4,"247z",null,null,null,6,"2018-06-05",78210110,4,"п/зач",null,null,"  ",null,4,"п/зач 21.10.2017",null,4,"п/зач 21.10.2017",null,4,"п/зач 12.10.2017",null,4,"п/зач",null,6,"п/зач",null,6,"п/зач 31.10.2017",null,5,"п/зач 31.10.2017",null,4,"п/зач 12.10.2017",null,6,"п/зач",null,4,"п/зач 28.10.2017",null,null,null,null,4,"п/зач",null,3,"п/зач 30.10.2017",null,4,"п/зач 17.10.2017",null,6,"п/зач 31.01.2018",null,null,"  ",null,6,"п/зач 28.10.2017",null,4,"п/зач 24.10.2017",null,null,"  ",null,null,"  ",null,null,"  ",null,4,"п/зач 13.10.2017",null,3,"п/зач 28.10.2017",null,4,"п/зач 28.10.2017",null,null,"  ",null,6,"2018-09-17","7829542-1",null,"  ",null,4,"2018-06-05",7829514,null,null,null,4,"п/зач 28.10.2017",null,null,null,null,3,"п/зач 04.06.2018","ООО \"Минское\"  Костромского р-на Костромской обл.",null,"  ",null,null,"  ",null,null,"  ",null,null,null,null,null,"  ",null,null,"  ",null,null,"  ",null,null,null,null,null,"  ",null,null,"  ",null,null,"  ",null,null,null,null,null,"  ",null,4,"п/зач",null,null,"  ",null,null,"  ",null,null,"  ",null,null,null,null,null,"  ",null,null,"  ",null,null,"  ",null,null,"  ",null,null,"  ",null,null,"  ",null,null,"  ",null,null,"  ",null,null,"  ",null,1.48,null,3,15,1,7,19,3985,498]
[20,"Несмеянов ","Михаил ","Владимирович","Несмеянов  М. В.",null,"Несмеянову","Михаилу","Владимировичу","1992-01-09","г. Кострома","РФ","м","Костромской технологический техникум",2014,"холост","Московская обл Мытищинский р-н, п. Долгопрудный, ул.  Спортивная,  д. 5, кв. 138",null,null,null,null,null,null,null,15816,"Экономический","38.03.01","Экономика","Бухгалтерский учет, анализ и аудит","5 лет","БАКАЛАВР","2-557","2015-08-21","по договору с полным возмещением затрат","000003677","2015-08-14",null,null,null,null,null,null,null,null,null,null,null,null,null,"2-561","2016-09-01","2-703","2017-09-01",null,null,null,null,null,null,null,null,null,null,null,null,null,null,null,null,null,null,null,null,null,null,null,null,null,4,"247z",4,"2018-06-05",78210135,6,"2018-06-05",78210110,4,"11.06.2016  ",null,6,"11.06.2016  ",null,5,"08.09.2016  ",null,5,"30.06.2016  ",null,5,"11.06.2016  ",null,3,"11.06.2016  ",null,6,"23.12.2016  ",null,6,"23.12.2016  ",null,4,"23.12.2016  ",null,3,"23.12.2016  ",null,6,"23.12.2016  ",null,5,"22.04.2017  ",null,4,"30.05.2017  ",null,5,"22.04.2017  ",null,3,"22.04.2017  ",null,5,"22.04.2017  ",null,6,"22.04.2017  ",null,6,"22.04.2017  ",null,6,"22.04.2017  ",null,4,"01.07.2017  ","ФГБОУ ВО Костромская ГСХА, кафедра экономической кибернетики",null,"  ",null,5,"2017-12-02","   Z-7829490",4,"2017-12-02","   Z-7829492",4,"2017-12-02","   Z-7829536",4,"02.12.20174","   Z-782953",5,"2018-06-14",963,4,"2018-06-05",7829539,6,"2018-06-05",7829542,5,"2018-06-05",7829556,5,"2018-06-05",7829514,5,"2018-06-05","Бухгалтерский баланс и бухгалтерская отчетность",null,"  ",null,null,null,null,5,"2018-08-31","СПК \"Знамя Труда-1\" Красносельского р-на Костромской обл.",null,"  ",null,null,"  ",null,null,"  ",null,null,null,null,null,"  ",null,null,"  ",null,null,"  ",null,null,null,null,null,"  ",null,null,"  ",null,null,"  ",null,null,null,null,null,"  ",null,null,"  ",null,null,"  ",null,null,"  ",null,null,"  ",null,null,null,null,null,"  ",null,null,"  ",null,null,"  ",null,null,"  ",null,null,"  ",null,null,"  ",null,null,"  ",null,null,"  ",null,null,"  ",null,2.1,null,3,9,12,9,24,4536,567]
[21,"Смирнова","Людмила","Николаевна","Смирнова Л. Н.",null,null,null,null,"1987-08-31","г. Галич Костромской обл.","РФ","ж","Галичский педагогический колледж",2007,"замужем","Костромская обл.,  г.  Галич, ул. Красовского, д. 41 ",null,null,null,null,null,null,null,15820,"Экономический","38.03.01","Экономика","Бухгалтерский учет, анализ и аудит","5 лет","БАКАЛАВР","2-557","2015-08-21","по договору с полным возмещением затрат","000003650","2015-08-13",null,null,null,null,null,null,null,null,null,null,null,null,null,"2-561","2016-09-01","2-703","2017-09-01",null,null,null,null,null,null,null,null,null,null,null,null,null,null,null,null,null,null,null,null,null,null,null,null,null,4,"247z",4,"2018-06-05",78210135,6,"2018-06-05",78210110,4,"12.09.2016  ",null,6,"11.06.2016  ",null,4,"30.06.2016  ",null,5,"30.06.2016  ",null,5,"11.06.2016  ",null,4,"11.06.2016  ",null,6,"23.12.2016  ",null,6,"23.12.2016  ",null,3,"23.12.2016  ",null,4,"23.12.2016  ",null,6,"30.06.2017  ",null,null,"  ",null,4,"30.05.2017  ",null,5,"22.04.2017  ",null,null,"  ",null,5,"22.04.2017  ",null,6,"22.04.2017  ",null,6,"22.04.2017  ",null,null,"  ",null,4,"01.07.2017  ","ФГБОУ ВО Костромская ГСХА, кафедра экономической кибернетики",null,"  ",null,5,"02.12.20170","   Z-782949",null,"  ",null,null,"  ",null,null,"  ",null,4,"2017-12-02","   Z-7829484",null,"  ",null,6,"2018-09-17","7829542-2",null,"  ",null,5,"2018-06-05",7829514,5,"2018-06-05","История развития бухгалтерского учета",null,"  ",null,null,null,null,4,"2018-08-31","ООО \"Галловей Кострома\" Галичского ьр-на Костромской обл.",null,"  ",null,null,"  ",null,null,"  ",null,null,null,null,null,"  ",null,null,"  ",null,null,"  ",null,null,null,null,null,"  ",null,null,"  ",null,null,"  ",null,null,null,null,null,"  ",null,null,"  ",null,null,"  ",null,null,"  ",null,null,"  ",null,null,null,null,null,"  ",null,null,"  ",null,null,"  ",null,null,"  ",null,null,"  ",null,null,"  ",null,null,"  ",null,null,"  ",null,null,"  ",null,{"$f":"(JL26*3+JM26*4+JN26*5)/50","v":1.48},null,{"$f":"COUNTIF(CC26:JG26,3)","v":1},{"$f":"COUNTIF(CC26:JG26,4)","v":9},{"$f":"COUNTIF(CC26:JG26,5)","v":7},{"$f":"COUNTIF(CC26:JG26,6)","v":8},{"$f":"SUM(JL26:JN26)","v":17},{"$f":"SUMIF(CC26:JG26,\">0\",$CC$3:$JG$3)","v":3276},{"$f":"INT(JQ26/8+0.5)","v":410}]
[22,"Соловьев","Олег ","Иольевич","Соловьев О. И.",null,"Соловьеву","Олегу","Иольевичу","1969-08-05","г. Кострома","РФ","м","СПТУ 20 г. Костромы",1987,"холост","г. Кострома, ул. Суслова,  д. 4, кв. 113",null,null,null,null,null,null,null,15821,"Экономический","38.03.01","Экономика","Бухгалтерский учет, анализ и аудит","5 лет","БАКАЛАВР","2-557","2015-08-21","по договору с полным возмещением затрат","000003571","2015-08-10",null,null,null,null,null,null,null,null,null,null,null,null,null,"2-561","2016-09-01","2-703","2017-09-01",null,null,null,null,null,null,null,null,null,null,null,null,null,null,null,null,null,null,null,null,null,null,null,null,null,4,"247z",4,"2018-06-05",78210135,6,"2018-06-05",78210110,5,"12.09.2016  ",null,6,"11.06.2016  ",null,3,"30.06.2016  ",null,4,"30.06.2016  ",null,4,"09.09.2016  ",null,4,"11.06.2016  ",null,6,"23.12.2016  ",null,6,"23.12.2016  ",null,4,"23.12.2016  ",null,4,"23.12.2016  ",null,6,"23.12.2016  ",null,4,"22.04.2017  ",null,4,"22.04.2017  ",null,5,"22.04.2017  ",null,4,"22.04.2017  ",null,4,"22.04.2017  ",null,6,"22.04.2017  ",null,6,"22.04.2017  ",null,6,"22.04.2017  ",null,5,"01.07.2017  ","ФГБОУ ВО Костромская ГСХА, кафедра экономической кибернетики",null,"  ",null,5,"2017-12-02","  Z-7829490",4,"2017-12-02","  Z-7829492",4,"2017-12-02","  Z-7829536",4,"2017-12-02","   Z-7829534",4,"2017-12-02","  Z-7829484",3,"2018-06-05",7829539,6,"2018-06-05",7829542,4,"2018-06-05",7829556,5,"2018-06-05",7829514,5,"2018-06-05","Основы организации и ведения бухгалтерского учета\nна предприятиях",4,"2018-06-05",7829545,4,"2018-06-05","Определение оптимальной специализации и\nсочетания отраслей сельскохозяйственного\nпредприятия.",5,"2018-08-31","ООО \"Славянский+\" г. Кострома",null,"  ",null,null,"  ",null,null,"  ",null,null,null,null,null,"  ",null,null,"  ",null,null,"  ",null,null,null,null,null,"  ",null,null,"  ",null,null,"  ",null,null,null,null,null,"  ",null,null,"  ",null,null,"  ",null,null,"  ",null,null,"  ",null,null,null,null,null,"  ",null,null,"  ",null,null,"  ",null,null,"  ",null,null,"  ",null,null,"  ",null,null,"  ",null,null,"  ",null,null,"  ",null,2.1800000000000002,null,2,17,7,9,26,4824,603]
[23,"Чадаев","Вадим ","Валентинович","Чадаев В. В.",null,"Чадаеву","Вадиму","Валентиновичу","1973-10-06","г. Галич Костромской обл.","РФ","м","Среднее ПТУ 11 г. Галича Костромской обл.",1992,"холост","Костромская обл. г. Галич ул. Гладышева, д.9а, кв. 54",null,null,null,null,null,null,null,14135,"Экономический","38.03.01","Экономика","Бухгалтерский учет, анализ и аудит","5 лет","БАКАЛАВР","2-525","2014-08-21","по договору с полным возмещением затрат","000002999","2014-08-19",null,null,"2-672","2017-08-01","за академическую неуспеваемость","2-29","2018-01-18",null,null,null,null,null,null,"2-571","2015-09-01","2-561","2016-09-01",null,null,null,null,null,null,null,null,null,null,null,null,null,null,null,null,null,null,null,null,null,null,null,null,null,4,"247z",null,null,null,6,"2018-06-05",78210110,4,"01.06.2015  ",null,6,"02.06.2015  ",null,5,"02.06.2015  ",null,5,"06.06.2015  ",null,5,"30.05.2015  ",null,null,"  ",null,6,"20.09.2016  ",null,6,"07.09.2016  ",null,3,"26.12.2015  ",null,null,"  ",null,null,"  ",null,null,"  ",null,4,"27.05.2016  ",null,3,"27.04.2016  ",null,null,"  ",null,null,"  ",null,6,"22.05.2015  ",null,null,"  ",null,null,"  ",null,null,"  ",null,null,"  ",null,null,"  ",null,null,"  ",null,null,"  ",null,null,"  ",null,null,"  ",null,null,"  ",null,null,"  ",null,5,"03.06.2017  ",null,null,"  ",null,null,null,null,null,"  ",null,null,null,null,null,"  ","ООО \"АТП\" г. Галич Костромской обл.",null,"  ",null,null,"  ",null,null,"  ",null,null,null,null,null,"  ",null,null,"  ",null,null,"  ",null,null,null,null,null,"  ",null,null,"  ",null,null,"  ",null,null,null,null,null,"  ",null,null,"  ",null,null,"  ",null,null,"  ",null,null,"  ",null,null,null,null,null,"  ",null,null,"  ",null,null,"  ",null,null,"  ",null,null,"  ",null,null,"  ",null,null,"  ",null,null,"  ",null,null,"  ",null,0.68,null,2,2,4,5,8,1952,244]
[24,"Тютя (Баталина)","Лилия","Ивановна","Тютя (Баталина) Л. И.",null,"Тютя (Баталиной)","Лилии","Ивановне","1995-03-09","с. Подольское Красносельского р-на Костромской обл.","РФ","ж","ОГБОУ НПО Профессиональное училище 30 п. Красное-на-Волге Костромской области",2013,"замужем"," 157940 Костромская обл., Красносельский р-н,  пгт. Красное-на-Волге,  ул. Песочная, д. 1, кв. 30",null,null,null,null,null,null,null,160609,"Экономический","38.03.01","Экономика","Бухгалтерский учет, анализ и аудит","5 лет","БАКАЛАВР","2-536","2016-08-15","в рамках контрольных цифр на основное место",null,null,null,null,null,null,null,null,null,null,null,null,null,null,null,null,null,null,null,null,null,null,null,null,null,null,null,null,null,null,null,null,null,null,null,null,null,null,null,null,null,null,null,null,3,"233z",4,"10.06.2017  ",null,6,"10.06.2017  ",null,4,"10.06.2017  ",null,6,"10.06.2017  ",null,3,"10.06.2017  ",null,4,"10.06.2017  ",null,3,"22.12.2017  ",null,3,"10.06.2017  ",null,6,"23.12.2017  ",null,6,"23.12.2017  ",null,3,"2017-12-23",785529,3,"23.12.2017  ",null,6,"23.12.2017  ",null,4,"2018-04-28",7859533,4,"28.04.2018  ",7859498,4,"28.04.2018  ",7859723,3,"28.04.2018  ",7859552,4,"28.04.2018  ",7859483,6,"28.04.2018  ",7859872,6,"28.04.2018  ",7859873,6,"28.04.2018  ",7859482,5,"2018-06-30","ФГБОУ ВО Костромская ГСХА, кафедра экономической кибернетики",null,"  ",null,null,"  ",null,null,"  ",null,null,"  ",null,null,"  ",null,null,"  ",null,null,"  ",null,null,"  ",null,null,"  ",null,null,"  ",null,null,null,null,null,"  ",null,null,null,null,null,"  ",null,null,"  ",null,null,"  ",null,null,"  ",null,null,null,null,null,"  ",null,null,"  ",null,null,"  ",null,null,null,null,null,"  ",null,null,"  ",null,null,"  ",null,null,null,null,null,"  ",null,null,"  ",null,null,"  ",null,null,"  ",null,null,"  ",null,null,null,0,null,"  ",null,null,"  ",null,null,"  ",null,null,"  ",null,null,"  ",null,null,"  ",null,null,"  ",null,null,"  ",null,null,"  ",null,{"$f":"(JL29*3+JM29*4+JN29*5)/50","v":1.02},null,{"$f":"COUNTIF(CC29:JG29,3)","v":6},{"$f":"COUNTIF(CC29:JG29,4)","v":7},{"$f":"COUNTIF(CC29:JG29,5)","v":1},{"$f":"COUNTIF(CC29:JG29,6)","v":8},{"$f":"SUM(JL29:JN29)","v":14},{"$f":"SUMIF(CC29:JG29,\">0\",$CC$3:$JG$3)","v":3132},{"$f":"INT(JQ29/8+0.5)","v":392}]
[25,"Бедарева","Ольга","Николаевна","Бедарева О. Н.",null,"Бедаревой","Ольге","Николаевне","1990-05-08","г. Кострома ","РФ","ж","ГОУ НПО Профессиональный лицей 29 г. Костромы",2009,"замужем","Кострома г.  Боровая ул.  д. 8 а, кв. 13, к.1",null,null,null,null,null,null,null,170825,"Экономический","38.03.01","Экономика","Бухгалтерский учет, анализ и аудит","5 лет","БАКАЛАВР","2-383","2008-08-25","по договору с полным возмещение затрат","128","2009-08-19",null,null,"2-483","2014-07-16",null,"2-761","2017-09-27",null,null,null,null,null,null,null,null,null,null,null,null,null,null,null,null,null,null,null,null,null,null,null,null,null,null,null,null,null,null,null,null,null,null,null,3,"233z",null,null,null,null,null,null,4,"14.10.2014  ",null,6,"27.10.2017  ",null,3,"21.10.2017  ",null,3,"2018-04-02",591,null,"  ",null,3,"18.10.2017  ",null,6,"02.11.2017  ",null,6,"23.12.2017  ",null,4,"2017-12-23",785529,4,"23.12.2017  ",null,6,"23.12.2017  ",null,4,"2018-04-28",7859533,3,"02.11.2017  ",null,4,"28.04.2018  ",7859723,3,"30.10.2017  ",null,5,"28.04.2018  ",7859483,6,"28.04.2018  ",7859872,6,"28.04.2018  ",7859873,6,"28.04.2018  ",7859482,null,"  ","ФГБОУ ВО Костромская ГСХА, кафедра экономической кибернетики",6,"31.10.2017  ",null,null,"  ",null,null,"  ",null,null,"  ",null,null,"  ",null,null,"  ",null,null,"  ",null,null,"  ",null,null,"  ",null,null,"  ",null,null,null,null,null,"  ",null,null,null,null,null,"  ",null,null,"  ",null,null,"  ",null,null,"  ",null,null,null,null,null,"  ",null,null,"  ",null,null,"  ",null,null,null,null,null,"  ",null,null,"  ",null,null,"  ",null,null,null,null,null,"  ",null,null,"  ",null,null,"  ",null,null,"  ",null,null,"  ",null,null,null,0,null,"  ",null,null,"  ",null,null,"  ",null,null,"  ",null,null,"  ",null,null,"  ",null,null,"  ",null,null,"  ",null,null,"  ",null,0.8,null,5,5,1,8,11,2556,320]
[26,"Беляева","Анжелика","Сергеевна","Беляева А. С.",null,"Беляевой","Анжелике","Сергеевне","1997-08-25","п. Судиславль Костромской обл. ","РФ","ж","ОГБПОУ Костромской торгово-экономический колледж г. Кострома",2016,"не замужем","156003 г. Кострома, ул.  Водяная,  д. 2, кв. 1",null,null,null,null,null,null,null,160611,"Экономический","38.03.01","Экономика","Бухгалтерский учет, анализ и аудит","5 лет","БАКАЛАВР","2-536","2016-08-15","в рамках контрольных цифр на основное место",null,null,null,null,null,null,null,null,null,null,null,null,null,null,null,"2-703","2017-09-01",null,null,null,null,null,null,null,null,null,null,null,null,null,null,null,null,null,null,null,null,null,null,null,null,null,null,null,3,"233z",4,"10.06.2017  ",null,6,"10.06.2017  ",null,4,"10.06.2017  ",null,6,"10.06.2017  ",null,3,"10.06.2017  ",null,4,"10.06.2017  ",null,4,"10.06.2017  ",null,4,"10.06.2017  ",null,6,"23.12.2017  ",null,6,"23.12.2017  ",null,4,"2018-06-25",976,3,"23.12.2017  ",null,6,"2018-06-25",973,3,"2018-06-25","7859533-1",4,"28.04.2018  ",7859498,3,"28.04.2018  ",7859723,3,"28.04.2018  ",7859552,4,"28.04.2018  ",7859483,6,"28.04.2018  ",7859872,6,"28.04.2018  ",7859873,6,"28.04.2018  ",7859482,null,"  ","ФГБОУ ВО Костромская ГСХА, кафедра экономической кибернетики",null,"  ",null,null,"  ",null,null,"  ",null,null,"  ",null,null,"  ",null,null,"  ",null,null,"  ",null,null,"  ",null,null,"  ",null,null,"  ",null,null,null,null,null,"  ",null,null,null,null,null,"  ",null,null,"  ",null,null,"  ",null,null,"  ",null,null,null,null,null,"  ",null,null,"  ",null,null,"  ",null,null,null,null,null,"  ",null,null,"  ",null,null,"  ",null,null,null,null,null,"  ",null,null,"  ",null,null,"  ",null,null,"  ",null,null,"  ",null,null,null,0,null,"  ",null,null,"  ",null,null,"  ",null,null,"  ",null,null,"  ",null,null,"  ",null,null,"  ",null,null,"  ",null,null,"  ",null,0.94,null,5,8,0,8,13,3132,392]
[27,"Золотова (Беляева)","Ольга","Геннадьевна","Золотова (Беляева) О. Г.",null,"Беляевой","Ольге","Геннадьевне","1996-01-04","д. Никифорово Красносельского р-на Костромской обл.","РФ","ж","ОГБПОУ Костромской торгово-экономический колледж г. Кострома",2016,"не замужем"," 157940 Костромская обл.,  Красносельский р-н, пгт. Красное-на-Волге, ул.  Карла Маркса,  д. 40",null,null,null,null,null,null,null,160610,"Экономический","38.03.01","Экономика","Бухгалтерский учет, анализ и аудит","5 лет","БАКАЛАВР","2-542","2016-08-19","по договору с полным возмещение затрат","00004146","2016-08-12",null,null,null,null,null,null,null,null,null,null,null,null,null,"2-703","2017-09-01",null,null,null,null,null,null,null,null,null,null,null,null,null,null,null,null,null,null,null,null,null,null,null,null,null,null,null,3,"233z",4,"10.06.2017  ",null,6,"10.06.2017  ",null,4,"10.06.2017  ",null,6,"10.06.2017  ",null,3,"10.06.2017  ",null,4,"10.06.2017  ",null,3,"10.06.2017  ",null,3,"10.06.2017  ",null,6,"23.12.2017  ",null,6,"23.12.2017  ",null,3,"2017-12-23",785529,3,"23.12.2017  ",null,6,"23.12.2017  ",null,4,"2018-04-28",7859533,4,"28.04.2018  ",7859498,4,"28.04.2018  ",7859723,4,"28.04.2018  ",7859552,4,"28.04.2018  ",7859483,6,"28.04.2018  ",7859872,6,"28.04.2018  ",7859873,6,"28.04.2018  ",7859482,4,"2018-06-30","ФГБОУ ВО Костромская ГСХА, кафедра экономической кибернетики",null,"  ",null,null,"  ",null,null,"  ",null,null,"  ",null,null,"  ",null,null,"  ",null,null,"  ",null,null,"  ",null,null,"  ",null,null,"  ",null,null,null,null,null,"  ",null,null,null,null,null,"  ",null,null,"  ",null,null,"  ",null,null,"  ",null,null,null,null,null,"  ",null,null,"  ",null,null,"  ",null,null,null,null,null,"  ",null,null,"  ",null,null,"  ",null,null,null,null,null,"  ",null,null,"  ",null,null,"  ",null,null,"  ",null,null,"  ",null,null,null,0,null,"  ",null,null,"  ",null,null,"  ",null,null,"  ",null,null,"  ",null,null,"  ",null,null,"  ",null,null,"  ",null,null,"  ",null,1.02,null,5,9,0,8,14,3132,392]
[28,"Канорина","Екатерина","Викторовна","Канорина Е. В.",null,"Канориной","Екатерине","Викторовне","1990-10-07","д. Толтуново Галичского р-на Костромской обл.","РФ","ж","г. Галич Костромская обл., ФГОУ СПО Галичский аграрный техникум",2010,"замужем","157225 Костромская обл., Галичский р-н,  д. Толтуново, д. 40, кв. 2",null,null,null,null,null,null,null,160613,"Экономический","38.03.01","Экономика","Бухгалтерский учет, анализ и аудит","5 лет","БАКАЛАВР","2-542","2016-08-19","по договору с полным возмещение затрат","000004156","2016-08-15",null,null,null,null,null,null,null,null,null,null,null,null,null,"2-703","2017-09-01",null,null,null,null,null,null,null,null,null,null,null,null,null,null,null,null,null,null,null,null,null,null,null,null,null,null,null,3,"233z",4,"10.06.2017  ",null,6,"10.06.2017  ",null,4,"10.06.2017  ",null,6,"10.06.2017  ",null,3,"10.06.2017  ",null,5,"10.06.2017  ",null,4,"10.06.2017  ",null,4,"10.06.2017  ",null,6,"23.12.2017  ",null,6,"23.12.2017  ",null,4,"2017-12-23",785529,3,"23.12.2017  ",null,6,"23.12.2017  ",null,4,"2018-04-28",7859533,4,"28.04.2018  ",7859498,3,"28.04.2018  ",7859723,3,"28.04.2018  ",7859552,5,"28.04.2018  ",7859483,6,"28.04.2018  ",7859872,6,"28.04.2018  ",7859873,6,"28.04.2018  ",7859482,null,"  ","ФГБОУ ВО Костромская ГСХА, кафедра экономической кибернетики",null,"  ",null,null,"  ",null,null,"  ",null,null,"  ",null,null,"  ",null,null,"  ",null,null,"  ",null,null,"  ",null,null,"  ",null,null,"  ",null,null,null,null,null,"  ",null,null,null,null,null,"  ",null,null,"  ",null,null,"  ",null,null,"  ",null,null,null,null,null,"  ",null,null,"  ",null,null,"  ",null,null,null,null,null,"  ",null,null,"  ",null,null,"  ",null,null,null,null,null,"  ",null,null,"  ",null,null,"  ",null,null,"  ",null,null,"  ",null,null,null,0,null,"  ",null,null,"  ",null,null,"  ",null,null,"  ",null,null,"  ",null,null,"  ",null,null,"  ",null,null,"  ",null,null,"  ",null,1,null,4,7,2,8,13,3132,392]
[29,"Кузьмина","Анастасия","Леонидовна",{"$f":"CONCATENATE(B34,\" \",LEFT(C34,1),\". \",LEFT(D34,1),\".\")","v":"Кузьмина А. Л."},null,"Кузьминой","Анастасии","Леонидовне","1997-01-22","г. Кострома ","РФ","ж","ОГБПОУ Костромской торгово-экономический колледж г. Кострома",2016,"не замужем","156013 г. Кострома,  ул. Ленина,  д. 50, кв. 55",null,null,null,null,null,null,null,160614,"Экономический","38.03.01","Экономика","Бухгалтерский учет, анализ и аудит","5 лет","БАКАЛАВР","2-542","2016-08-19","по договору с полным возмещение затрат","000004121","2016-08-11",null,null,null,null,null,null,null,null,null,null,null,null,null,"2-703","2017-09-01",null,null,null,null,null,null,null,null,null,null,null,null,null,null,null,null,null,null,null,null,null,null,null,null,null,null,null,3,"233z",4,"10.06.2017  ",null,6,"10.06.2017  ",null,4,"10.06.2017  ",null,6,"10.06.2017  ",null,3,"10.06.2017  ",null,3,"10.06.2017  ",null,4,"10.06.2017  ",null,4,"10.06.2017  ",null,6,"23.12.2017  ",null,6,"23.12.2017  ",null,null,"  ",null,3,"23.12.2017  ",null,6,"23.12.2017  ",null,null,"  ",null,4,"28.04.2018  ",7859498,3,"28.04.2018  ",7859723,3,"28.04.2018  ",7859552,4,"28.04.2018  ",7859483,6,"28.04.2018  ",7859872,6,"28.04.2018  ",7859873,6,"28.04.2018  ",7859482,5,"2018-06-30","ФГБОУ ВО Костромская ГСХА, кафедра экономической кибернетики",null,"  ",null,null,"  ",null,null,"  ",null,null,"  ",null,null,"  ",null,null,"  ",null,null,"  ",null,null,"  ",null,null,"  ",null,null,"  ",null,null,null,null,null,"  ",null,null,null,null,null,"  ",null,null,"  ",null,null,"  ",null,null,"  ",null,null,null,null,null,"  ",null,null,"  ",null,null,"  ",null,null,null,null,null,"  ",null,null,"  ",null,null,"  ",null,null,null,null,null,"  ",null,null,"  ",null,null,"  ",null,null,"  ",null,null,"  ",null,null,null,0,null,"  ",null,null,"  ",null,null,"  ",null,null,"  ",null,null,"  ",null,null,"  ",null,null,"  ",null,null,"  ",null,null,"  ",null,0.88,null,5,6,1,8,12,2772,347]
[30,"Мальцева","Алина","Юрьевна","Мальцева А. Ю.",null,"Мальцевой","Алине","Юрьевне","1996-01-01","г. Кострома ","РФ","ж","ОГБПОУ Костромской торгово-экономический колледж г. Кострома",2016,"не замужем","156025 г. Кострома,  ул.  Полянская,  д. 31, кв. 63",null,null,null,null,null,null,null,160615,"Экономический","38.03.01","Экономика","Бухгалтерский учет, анализ и аудит","5 лет","БАКАЛАВР","2-542","2016-08-19","по договору с полным возмещение затрат","000004114","2016-08-11",null,null,null,null,null,null,null,null,null,null,null,null,null,"2-703","2017-09-01",null,null,null,null,null,null,null,null,null,null,null,null,null,null,null,null,null,null,null,null,null,null,null,null,null,null,null,3,"233z",4,"10.06.2017  ",null,6,"10.06.2017  ",null,4,"10.06.2017  ",null,6,"10.06.2017  ",null,3,"10.06.2017  ",null,3,"10.06.2017  ",null,3,"10.06.2017  ",null,4,"10.06.2017  ",null,6,"23.12.2017  ",null,6,"23.12.2017  ",null,null,"  ",null,3,"23.12.2017  ",null,6,"23.12.2017  ",null,null,"  ",null,4,"28.04.2018  ",7859498,4,"28.04.2018  ",7859723,null,"  ",null,4,"28.04.2018  ",7859483,6,"28.04.2018  ",7859872,6,"28.04.2018  ",7859873,6,"28.04.2018  ",7859482,4,"2018-06-30","ФГБОУ ВО Костромская ГСХА, кафедра экономической кибернетики",null,"  ",null,null,"  ",null,null,"  ",null,null,"  ",null,null,"  ",null,null,"  ",null,null,"  ",null,null,"  ",null,null,"  ",null,null,"  ",null,null,null,null,null,"  ",null,null,null,null,null,"  ",null,null,"  ",null,null,"  ",null,null,"  ",null,null,null,null,null,"  ",null,null,"  ",null,null,"  ",null,null,null,null,null,"  ",null,null,"  ",null,null,"  ",null,null,null,null,null,"  ",null,null,"  ",null,null,"  ",null,null,"  ",null,null,"  ",null,null,null,0,null,"  ",null,null,"  ",null,null,"  ",null,null,"  ",null,null,"  ",null,null,"  ",null,null,"  ",null,null,"  ",null,null,"  ",null,0.8,null,4,7,0,8,11,2556,320]
[31,"Новикова","Юлия","Павловна","Новикова Ю. П.",null,"Новиковой","Юлии","Павловне","1986-04-29","п. Никольское Костромского р-на Костромской обл.","РФ","ж","Костромской лесомеханический колледж",2005,"не замужем","156005 г. Кострома,   ул. Сусанина Ивана,  д. 54/17, кв. 74",null,null,null,null,null,null,null,160616,"Экономический","38.03.01","Экономика","Бухгалтерский учет, анализ и аудит","5 лет","БАКАЛАВР","2-542","2016-08-19","по договору с полным возмещение затрат","000004172","2016-08-15",null,null,null,null,null,null,null,null,null,null,null,null,null,"2-703","2017-09-01",null,null,null,null,null,null,null,null,null,null,null,null,null,null,null,null,null,null,null,null,null,null,null,null,null,null,null,3,"233z",4,"10.06.2017  ",null,6,"10.06.2017  ",null,3,"10.06.2017  ",null,6,"10.06.2017  ",null,3,"10.06.2017  ",null,4,"10.06.2017  ",null,3,"10.06.2017  ",null,3,"10.06.2017  ",null,6,"23.12.2017  ",null,6,"23.12.2017  ",null,4,"2017-12-23",785529,3,"23.12.2017  ",null,6,"23.12.2017  ",null,3,"2018-04-28",7859533,5,"28.04.2018  ",7859498,4,"28.04.2018  ",7859723,3,"28.04.2018  ",7859552,5,"28.04.2018  ",7859483,6,"28.04.2018  ",7859872,6,"28.04.2018  ",7859873,6,"28.04.2018  ",7859482,3,"2018-07-11","ФГБОУ ВО Костромская ГСХА, кафедра экономической кибернетики",null,"  ",null,null,"  ",null,null,"  ",null,null,"  ",null,null,"  ",null,null,"  ",null,null,"  ",null,null,"  ",null,null,"  ",null,null,"  ",null,null,null,null,null,"  ",null,null,null,null,null,"  ",null,null,"  ",null,null,"  ",null,null,"  ",null,null,null,null,null,"  ",null,null,"  ",null,null,"  ",null,null,null,null,null,"  ",null,null,"  ",null,null,"  ",null,null,null,null,null,"  ",null,null,"  ",null,null,"  ",null,null,"  ",null,null,"  ",null,null,null,0,null,"  ",null,null,"  ",null,null,"  ",null,null,"  ",null,null,"  ",null,null,"  ",null,null,"  ",null,null,"  ",null,null,"  ",null,1,null,8,4,2,8,14,3132,392]
[32,"Окишев","Максим","Сергеевич","Окишев М. С.",null,"Окишеву","Максиму","Сергеевичу","1991-12-07","п. Санино Петушинского р-на Владимирской обл.","РФ","м","МОУ Санинская средняя общеобразовательная школа п. Санинского ДОКа Петушинского р-н,а Владимирской области",2010,"холост","150045 Ярославская обл.,   г. Ярославль,  ул.  Панина,  д. 5-2, кв. 130",null,null,null,null,null,null,null,160617,"Экономический","38.03.01","Экономика","Бухгалтерский учет, анализ и аудит","5 лет","БАКАЛАВР","2-542","2016-08-19","по договору с полным возмещение затрат","000004112","2016-08-11",null,null,null,null,null,null,null,null,null,null,null,null,null,"2-703","2017-09-01",null,null,null,null,null,null,null,null,null,null,null,null,null,null,null,null,null,null,null,null,null,null,null,null,null,null,null,3,"233z",4,"10.06.2017  ",null,6,"10.06.2017  ",null,3,"10.06.2017  ",null,6,"10.06.2017  ",null,3,"10.06.2017  ",null,4,"10.06.2017  ",null,4,"10.06.2017  ",null,3,"10.06.2017  ",null,6,"23.12.2017  ",null,6,"23.12.2017  ",null,4,"2017-12-23",785529,4,"23.12.2017  ",null,6,"23.12.2017  ",null,4,"28.04.2018  ",7859533,5,"28.04.2018  ",7859498,4,"28.04.2018  ",7859723,4,"28.04.2018  ",7859552,5,"28.04.2018  ",7859483,6,"28.04.2018  ",7859872,6,"28.04.2018  ",7859873,6,"28.04.2018  ",7859482,5,"2018-06-30","ФГБОУ ВО Костромская ГСХА, кафедра экономической кибернетики",null,"  ",null,null,"  ",null,null,"  ",null,null,"  ",null,null,"  ",null,null,"  ",null,null,"  ",null,null,"  ",null,null,"  ",null,null,"  ",null,null,null,null,null,"  ",null,null,null,null,null,"  ",null,null,"  ",null,null,"  ",null,null,"  ",null,null,null,null,null,"  ",null,null,"  ",null,null,"  ",null,null,null,null,null,"  ",null,null,"  ",null,null,"  ",null,null,null,null,null,"  ",null,null,"  ",null,null,"  ",null,null,"  ",null,null,"  ",null,null,null,0,null,"  ",null,null,"  ",null,null,"  ",null,null,"  ",null,null,"  ",null,null,"  ",null,null,"  ",null,null,"  ",null,null,"  ",null,1.1200000000000001,null,3,8,3,8,14,3132,392]
[33,"Петрова","Юлия","Александровна","Петрова Ю. А.",null,"Петровой","Юлии","Александровне","1995-07-01","д. Бабаево Нерехтсвкого р-на Костромской обл.","РФ","ж","ОГБ ПОУ Костромской энергетический техникум имени Ф.В. Чижова г. Кострома",2015,"замужем","156016 г. Кострома,  ул.  Богатырская,  д. 34, кв. 6",null,null,null,null,null,null,null,160618,"Экономический","38.03.01","Экономика","Бухгалтерский учет, анализ и аудит","5 лет","БАКАЛАВР","2-536","2016-08-15","в рамках контрольных цифр на основное место",null,null,null,null,null,null,null,null,null,null,null,null,null,null,null,"2-703","2017-09-01",null,null,null,null,null,null,null,null,null,null,null,null,null,null,null,null,null,null,null,null,null,null,null,null,null,null,null,3,"233z",4,"10.06.2017  ",null,6,"10.06.2017  ",null,4,"10.06.2017  ",null,6,"10.06.2017  ",null,3,"10.06.2017  ",null,5,"10.06.2017  ",null,4,"10.06.2017  ",null,4,"10.06.2017  ",null,6,"23.12.2017  ",null,6,"23.12.2017  ",null,3,"2017-12-23",785529,4,"23.12.2017  ",null,6,"23.12.2017  ",null,5,"28.04.2018  ",7859533,4,"28.04.2018  ",7859498,4,"28.04.2018  ",7859723,4,"28.04.2018  ",7859552,4,"28.04.2018  ",7859483,6,"28.04.2018  ",7859872,6,"28.04.2018  ",7859873,6,"28.04.2018  ",7859482,4,"2018-06-30","ФГБОУ ВО Костромская ГСХА, кафедра экономической кибернетики",null,"  ",null,null,"  ",null,null,"  ",null,null,"  ",null,null,"  ",null,null,"  ",null,null,"  ",null,null,"  ",null,null,"  ",null,null,"  ",null,null,null,null,null,"  ",null,null,null,null,null,"  ",null,null,"  ",null,null,"  ",null,null,"  ",null,null,null,null,null,"  ",null,null,"  ",null,null,"  ",null,null,null,null,null,"  ",null,null,"  ",null,null,"  ",null,null,null,null,null,"  ",null,null,"  ",null,null,"  ",null,null,"  ",null,null,"  ",null,null,null,0,null,"  ",null,null,"  ",null,null,"  ",null,null,"  ",null,null,"  ",null,null,"  ",null,null,"  ",null,null,"  ",null,null,"  ",null,1.1200000000000001,null,2,10,2,8,14,3132,392]
[34,"Румянцева","Мария","Владимировна","Румянцева М. В.",null,"Румянцевой","Марии","Владимировне","1983-09-10","г. Кострома ","РФ","ж","Костромской механико-технологический техникум",2002,"не замужем","156007  г. Кострома,  мкр Якиманиха,  д. 6, кв. 6",null,null,null,null,null,null,null,160619,"Экономический","38.03.01","Экономика","Бухгалтерский учет, анализ и аудит","5 лет","БАКАЛАВР","2-536","2016-08-15","в рамках контрольных цифр на основное место",null,null,null,null,null,null,null,null,null,null,null,null,null,null,null,"2-703","2017-09-01",null,null,null,null,null,null,null,null,null,null,null,null,null,null,null,null,null,null,null,null,null,null,null,null,null,null,null,3,"233z",5,"10.06.2017  ",null,6,"10.06.2017  ",null,5,"10.06.2017  ",null,6,"10.06.2017  ",null,3,"10.06.2017  ",null,5,"10.06.2017  ",null,4,"10.06.2017  ",null,4,"10.06.2017  ",null,6,"23.12.2017  ",null,6,"23.12.2017  ",null,4,"2017-12-23",785529,4,"23.12.2017  ",null,6,"23.12.2017  ",null,4,"28.04.2018  ",7859533,4,"28.04.2018  ",7859498,5,"28.04.2018  ",7859723,3,"28.04.2018  ",7859552,5,"28.04.2018  ",7859483,6,"28.04.2018  ",7859872,6,"28.04.2018  ",7859873,6,"28.04.2018  ",7859482,5,"2018-06-30","ФГБОУ ВО Костромская ГСХА, кафедра экономической кибернетики",null,"  ",null,null,"  ",null,null,"  ",null,null,"  ",null,null,"  ",null,null,"  ",null,null,"  ",null,null,"  ",null,null,"  ",null,null,"  ",null,null,null,null,null,"  ",null,null,null,null,null,"  ",null,null,"  ",null,null,"  ",null,null,"  ",null,null,null,null,null,"  ",null,null,"  ",null,null,"  ",null,null,null,null,null,"  ",null,null,"  ",null,null,"  ",null,null,null,null,null,"  ",null,null,"  ",null,null,"  ",null,null,"  ",null,null,"  ",null,null,null,0,null,"  ",null,null,"  ",null,null,"  ",null,null,"  ",null,null,"  ",null,null,"  ",null,null,"  ",null,null,"  ",null,null,"  ",null,1.2,null,2,6,6,8,14,3132,392]
[35,"Серова","Алёна","Вячеславовна","Серова А. В.",null,"Серовой","Алёне","Вячеславовне","1997-11-17","г. Кострома ","РФ","ж","ОГБПОУ Костромской торгово-экономический колледж г. Кострома",2016,"не замужем","156012 г. Кострома,  ул. Опалиха,  д. 23, кв. 2",null,null,null,null,null,null,null,160621,"Экономический","38.03.01","Экономика","Бухгалтерский учет, анализ и аудит","5 лет","БАКАЛАВР","2-536","2016-08-15","в рамках контрольных цифр на основное место",null,null,null,null,null,null,null,null,null,null,null,null,null,null,null,"2-703","2017-09-01",null,null,null,null,null,null,null,null,null,null,null,null,null,null,null,null,null,null,null,null,null,null,null,null,null,null,null,3,"233z",4,"10.06.2017  ",null,6,"10.06.2017  ",null,4,"10.06.2017  ",null,6,"10.06.2017  ",null,3,"10.06.2017  ",null,4,"10.06.2017  ",null,4,"10.06.2017  ",null,4,"10.06.2017  ",null,6,"23.12.2017  ",null,6,"23.12.2017  ",null,4,"2018-06-25",977,3,"2018-06-22",972,6,"2018-06-25",974,3,"2018-06-25","7859533-2",3,"28.04.2018  ",7859498,3,"28.04.2018  ",7859723,3,"28.04.2018  ",7859552,5,"28.04.2018  ",7859483,6,"28.04.2018  ",7859872,6,"28.04.2018  ",7859873,6,"28.04.2018  ",7859482,null,"  ","ФГБОУ ВО Костромская ГСХА, кафедра экономической кибернетики",null,"  ",null,null,"  ",null,null,"  ",null,null,"  ",null,null,"  ",null,null,"  ",null,null,"  ",null,null,"  ",null,null,"  ",null,null,"  ",null,null,null,null,null,"  ",null,null,null,null,null,"  ",null,null,"  ",null,null,"  ",null,null,"  ",null,null,null,null,null,"  ",null,null,"  ",null,null,"  ",null,null,null,null,null,"  ",null,null,"  ",null,null,"  ",null,null,null,null,null,"  ",null,null,"  ",null,null,"  ",null,null,"  ",null,null,"  ",null,null,null,0,null,"  ",null,null,"  ",null,null,"  ",null,null,"  ",null,null,"  ",null,null,"  ",null,null,"  ",null,null,"  ",null,null,"  ",null,0.94,null,6,6,1,8,13,3132,392]
[36,"Смирнов","Семен","Сергеевич","Смирнов С. С.",null,"Смирнову","Семену","Сергеевичу","1989-12-24","г. Галич Костромской обл.","РФ","м","ФГОУ среднего профессионального образования Галичский аграрный техникум",2008,"холост","157202 Костромская обл., г. Галич, ул. Машиностроителей,  д. 6, кв. 36",null,null,null,null,null,null,null,160622,"Экономический","38.03.01","Экономика","Бухгалтерский учет, анализ и аудит","5 лет","БАКАЛАВР","2-542","2016-08-19","по договору с полным возмещение затрат","000004127","2016-08-12",null,null,null,null,null,null,null,null,null,null,null,null,null,"2-284","2018-04-17",null,null,null,null,null,null,null,null,null,null,null,null,null,null,null,null,null,null,null,null,null,null,null,null,null,null,null,3,"233z",4,"10.06.2017  ",null,6,"10.06.2017  ",null,4,"10.06.2017  ",null,6,"10.06.2017  ",null,3,"10.06.2017  ",null,4,"10.06.2017  ",null,4,"10.06.2017  ",null,4,"10.06.2017  ",null,6,"23.12.2017  ",null,6,"23.12.2017  ",null,4,"2017-12-23",785529,4,"23.12.2017  ",null,6,"23.12.2017  ",null,4,"28.04.2018  ",7859533,4,"28.04.2018  ",7859498,4,"28.04.2018  ",7859723,4,"28.04.2018  ",7859552,5,"28.04.2018  ",7859483,6,"28.04.2018  ",7859872,6,"28.04.2018  ",7859873,6,"28.04.2018  ",7859482,null,"  ","ФГБОУ ВО Костромская ГСХА, кафедра экономической кибернетики",null,"  ",null,null,"  ",null,null,"  ",null,null,"  ",null,null,"  ",null,null,"  ",null,null,"  ",null,null,"  ",null,null,"  ",null,null,"  ",null,null,null,null,null,"  ",null,null,null,null,null,"  ",null,null,"  ",null,null,"  ",null,null,"  ",null,null,null,null,null,"  ",null,null,"  ",null,null,"  ",null,null,null,null,null,"  ",null,null,"  ",null,null,"  ",null,null,null,null,null,"  ",null,null,"  ",null,null,"  ",null,null,"  ",null,null,"  ",null,null,null,0,null,"  ",null,null,"  ",null,null,"  ",null,null,"  ",null,null,"  ",null,null,"  ",null,null,"  ",null,null,"  ",null,null,"  ",null,1.04,null,1,11,1,8,13,3132,392]
[37,"Смирнова","Мария","Николаевна","Смирнова М. Н.",null,"Смирновой","Марии","Николаевне","1990-08-02","г. Нея Нейского р-на Костромской обл.","РФ","ж","ГОУ СПО Костромской областной медицинский колледж имени Героя Советского Союза С.А. Богомолова",2010,"замужем","187555 Ленинградская обл.,   г. Тихвин,   ул. Советская,  д. 1, кв. 50",null,null,null,null,null,null,null,160624,"Экономический","38.03.01","Экономика","Бухгалтерский учет, анализ и аудит","5 лет","БАКАЛАВР","2-536","2016-08-15","в рамках контрольных цифр на основное место",null,null,null,null,null,null,null,null,null,null,null,null,null,null,null,"2-703","2017-09-01",null,null,null,null,null,null,null,null,null,null,null,null,null,null,null,null,null,null,null,null,null,null,null,null,null,null,null,3,"233z",4,"10.06.2017  ",null,6,"10.06.2017  ",null,3,"10.06.2017  ",null,6,"10.06.2017  ",null,4,"10.06.2017  ",null,5,"10.06.2017  ",null,4,"10.06.2017  ",null,4,"10.06.2017  ",null,6,"23.12.2017  ",null,6,"23.12.2017  ",null,4,"2017-12-23",785529,4,"23.12.2017  ",null,6,"23.12.2017  ",null,4,"28.04.2018  ",7859533,4,"28.04.2018  ",7859498,4,"28.04.2018  ",7859723,3,"28.04.2018  ",7859552,5,"28.04.2018  ",7859483,6,"28.04.2018  ",7859872,6,"28.04.2018  ",7859873,6,"28.04.2018  ",7859482,null,"  ","ФГБОУ ВО Костромская ГСХА, кафедра экономической кибернетики",null,"  ",null,null,"  ",null,null,"  ",null,null,"  ",null,null,"  ",null,null,"  ",null,null,"  ",null,null,"  ",null,null,"  ",null,null,"  ",null,null,null,null,null,"  ",null,null,null,null,null,"  ",null,null,"  ",null,null,"  ",null,null,"  ",null,null,null,null,null,"  ",null,null,"  ",null,null,"  ",null,null,null,null,null,"  ",null,null,"  ",null,null,"  ",null,null,null,null,null,"  ",null,null,"  ",null,null,"  ",null,null,"  ",null,null,"  ",null,null,null,0,null,"  ",null,null,"  ",null,null,"  ",null,null,"  ",null,null,"  ",null,null,"  ",null,null,"  ",null,null,"  ",null,null,"  ",null,1.04,null,2,9,2,8,13,3132,392]
[38,"Сумерина","Лилия","Александровна","Сумерина Л. А.",null,"Сумериной","Лилии","Александровне","1983-09-17","г. Нерехта Костромской обл.","РФ","ж","Костромской механико-технологический техникум",2002,"замужем","157800 Костромская обл.,   г. Нерехта,   ул. Заречная,  д. 9, кв. 1",null,null,null,null,null,null,null,160625,"Экономический","38.03.01","Экономика","Бухгалтерский учет, анализ и аудит","5 лет","БАКАЛАВР","2-536","2016-08-15","в рамках контрольных цифр в пределах целевой квоты",null,null,null,null,null,null,null,null,null,null,null,null,null,null,null,"2-703","2017-09-01",null,null,null,null,null,null,null,null,null,null,null,null,null,null,null,null,null,null,null,null,null,null,null,null,null,null,null,3,"233z",4,"10.06.2017  ",null,6,"10.06.2017  ",null,4,"10.06.2017  ",null,6,"10.06.2017  ",null,3,"10.06.2017  ",null,5,"10.06.2017  ",null,4,"10.06.2017  ",null,4,"10.06.2017  ",null,6,"23.12.2017  ",null,6,"23.12.2017  ",null,4,"2017-12-23",785529,3,"23.12.2017  ",null,6,"23.12.2017  ",null,5,"28.04.2018  ",7859533,5,"28.04.2018  ",7859498,5,"28.04.2018  ",7859723,4,"28.04.2018  ",7859552,5,"28.04.2018  ",7859483,6,"28.04.2018  ",7859872,6,"28.04.2018  ",7859873,6,"28.04.2018  ",7859482,5,"2018-06-30","ФГБОУ ВО Костромская ГСХА, кафедра экономической кибернетики",null,"  ",null,null,"  ",null,null,"  ",null,null,"  ",null,null,"  ",null,null,"  ",null,null,"  ",null,null,"  ",null,null,"  ",null,null,"  ",null,null,null,null,null,"  ",null,null,null,null,null,"  ",null,null,"  ",null,null,"  ",null,null,"  ",null,null,null,null,null,"  ",null,null,"  ",null,null,"  ",null,null,null,null,null,"  ",null,null,"  ",null,null,"  ",null,null,null,null,null,"  ",null,null,"  ",null,null,"  ",null,null,"  ",null,null,"  ",null,null,null,0,null,"  ",null,null,"  ",null,null,"  ",null,null,"  ",null,null,"  ",null,null,"  ",null,null,"  ",null,null,"  ",null,null,"  ",null,1.2,null,2,6,6,8,14,3132,392]
[39,"Уткина (Гулютина)","Полина","Сергеевна","Уткина (Гулютина) П. С.",null,"Уткиной","Полине","Сергеевне","1997-05-14","г. Кострома ","РФ","ж","ОГБПОУ Костромской торгово-экономический колледж г. Кострома",2016,"замужем","156005 г. Кострома, ул.   Свердлова,  д. 88, кв. 34",null,null,null,null,null,null,null,160612,"Экономический","38.03.01","Экономика","Бухгалтерский учет, анализ и аудит","5 лет","БАКАЛАВР","2-542","2016-08-19","по договору с полным возмещение затрат","000004138","2016-08-12",null,null,null,null,null,null,null,null,null,null,null,null,null,"2-703","2017-09-01",null,null,null,null,null,null,null,null,null,null,null,null,null,null,null,null,null,null,null,null,null,null,null,null,null,null,null,3,"233z",4,"2017-06-28",1147,6,"10.06.2017  ",null,4,"2017-06-17",1123,6,"10.06.2017  ",null,3,"10.06.2017  ",null,3,"10.06.2017  ",null,4,"10.06.2017  ",null,4,"10.06.2017  ",null,6,"23.12.2017  ",null,6,"23.12.2017  ",null,4,"2017-12-23",785529,3,"23.12.2017  ",null,6,"23.12.2017  ",null,4,"28.04.2018  ",7859533,4,"28.04.2018  ",7859498,4,"28.04.2018  ",7859723,3,"28.04.2018  ",7859552,4,"28.04.2018  ",7859483,6,"28.04.2018  ",7859872,6,"28.04.2018  ",7859873,6,"28.04.2018  ",7859482,5,"2018-06-30","ФГБОУ ВО Костромская ГСХА, кафедра экономической кибернетики",null,"  ",null,null,"  ",null,null,"  ",null,null,"  ",null,null,"  ",null,null,"  ",null,null,"  ",null,null,"  ",null,null,"  ",null,null,"  ",null,null,null,null,null,"  ",null,null,null,null,null,"  ",null,null,"  ",null,null,"  ",null,null,"  ",null,null,null,null,null,"  ",null,null,"  ",null,null,"  ",null,null,null,null,null,"  ",null,null,"  ",null,null,"  ",null,null,null,null,null,"  ",null,null,"  ",null,null,"  ",null,null,"  ",null,null,"  ",null,null,null,0,null,"  ",null,null,"  ",null,null,"  ",null,null,"  ",null,null,"  ",null,null,"  ",null,null,"  ",null,null,"  ",null,null,"  ",null,1.06,null,4,9,1,8,14,3132,392]
[40,"Ткаченко","Евгения","Владимировна","Ткаченко Е. В.",null,"Ткаченко","Евгении","Владимировне","1990-07-13","г. Артем Приморского края","РФ","ж","г. Екатеринбург ГОУ СПО Уральский государственный колледж имени И.И. Ползунова",2010,"не замужем","620074 Свердловская обл.,   г. Екатеринбург,  ул.  Олега Кошевого, д. 36, кв. 52",null,null,null,null,null,null,null,160626,"Экономический","38.03.01","Экономика","Бухгалтерский учет, анализ и аудит","5 лет","БАКАЛАВР","2-542","2016-08-19","по договору с полным возмещение затрат","000004087","2016-08-08",null,null,null,null,null,null,null,null,null,null,null,null,null,"2-339","2018-05-03",null,null,null,null,null,null,null,null,null,null,null,null,null,null,null,null,null,null,null,null,null,null,null,null,null,null,null,3,"234z",3,"2018-05-08",784,6,"10.06.2017  ",null,4,"10.06.2017  ",null,6,"10.06.2017  ",null,5,"11.10.2017  ",null,5,"11.10.2017  ",null,4,"11.10.2017  ",null,4,"25.12.2017  ",null,6,"2017-12-23","   Z-7869497",6,"2017-12-23",7869528,4,"2018-12-23",7869529,3,"23.12.2017  ",null,6,"23.12.2017  ",null,5,"28.04.2018  ",null,4,"2018-04-28",7869498,null,"  ",null,null,"  ",null,null,"  ",null,6,"2018-04-28",7869872,6,"2018-04-28",7869873,null,"  ",null,null,"  ","ФГБОУ ВО Костромская ГСХА, кафедра экономической кибернетики",null,"  ",null,null,"  ",null,null,"  ",null,null,"  ",null,null,"  ",null,null,"  ",null,null,"  ",null,null,"  ",null,null,"  ",null,null,"  ",null,null,null,null,null,"  ",null,null,null,null,null,"  ",null,null,"  ",null,null,"  ",null,null,"  ",null,null,null,null,null,"  ",null,null,"  ",null,null,"  ",null,null,null,null,null,"  ",null,null,"  ",null,null,"  ",null,null,null,null,null,"  ",null,null,"  ",null,null,"  ",null,null,"  ",null,null,"  ",null,null,null,0,null,"  ",null,null,"  ",null,null,"  ",null,null,"  ",null,null,"  ",null,null,"  ",null,null,"  ",null,null,"  ",null,null,"  ",null,0.82,null,2,5,3,7,10,2548,319]
[41,"Асанова","Шукрона","Солехджоновна","Асанова Ш. С.",null,"Асановой","Шукроне","Солехджоновне","1998-02-08","Ишкашимский р-н Республики Таджикистан","Республика Таджикистан","ж","СОУ 21 Ишкашимского района Республики Таджикистан",2016,"не замужем",null,null,null,null,null,null,null,null,170781,"Экономический","38.03.01","Экономика","Бухгалтерский учет, анализ и аудит","5 лет","БАКАЛАВР","2-701","2017-08-31","по договору с полным возмещением затрат","000004586","2017-08-18",null,null,null,null,null,null,null,null,null,null,null,null,null,null,null,null,null,null,null,null,null,null,null,null,null,null,null,null,null,null,null,null,null,null,null,null,null,null,null,null,null,null,2,"225z",3,"2018-06-09",7899481,6,"2018-06-09",7899710,4,"2018-06-09",7899530,6,"2018-06-09",7899527,3,"2018-06-09",7899494,3,"2018-06-09",7899495,3,"2018-06-09",7899550,3,"2018-06-09",78910236,null,"  ",null,null,"  ",null,null,"  ",null,null,"  ",null,null,"  ",null,null,"  ",null,null,"  ",null,null,"  ",null,null,"  ",null,null,"  ",null,null,"  ",null,null,"  ",null,null,"  ",null,null,"  ",null,null,"  ",null,null,"  ",null,null,"  ",null,null,"  ",null,null,"  ",null,null,"  ",null,null,"  ",null,null,"  ",null,null,"  ",null,null,"  ",null,null,null,null,null,"  ",null,null,null,null,null,"  ",null,null,"  ",null,null,"  ",null,null,"  ",null,null,null,null,null,"  ",null,null,"  ",null,null,"  ",null,null,null,null,null,"  ",null,null,"  ",null,null,"  ",null,null,null,null,null,"  ",null,null,"  ",null,null,"  ",null,null,"  ",null,null,"  ",null,null,null,0,null,"  ",null,null,"  ",null,null,"  ",null,null,"  ",null,null,"  ",null,null,"  ",null,null,"  ",null,null,"  ",null,null,"  ",null,0.38,null,5,1,0,2,6,1548,194]
[42,"Афанасьева","Светлана","Владимировна","Афанасьева С. В.",null,"Афанасьевой","Светлане","Владимировне","1976-03-29","г. Нерехта Костромской обл.","РФ","ж","Костромской коммерческий колледж",1995,"замужем","156011 г. Кострома, Студенческий проезд, д.27, кв.108",null,null,null,null,null,null,null,170782,"Экономический","38.03.01","Экономика","Бухгалтерский учет, анализ и аудит","5 лет","БАКАЛАВР","2-687","2017-08-19","по договору с полным возмещением затрат","000004423","2017-08-02",null,null,null,null,null,null,null,null,null,null,null,null,null,null,null,null,null,null,null,null,null,null,null,null,null,null,null,null,null,null,null,null,null,null,null,null,null,null,null,null,null,null,2,"228z",4,"2018-06-09",7899481,6,"2018-06-09",7899710,4,"2018-06-09",7899530,6,"2018-06-09",7899527,3,"2018-06-09",7899494,3,"2018-06-09",7899495,4,"2018-06-09",7899550,3,"2018-06-09",78910236,null,"  ",null,null,"  ",null,null,"  ",null,null,"  ",null,null,"  ",null,null,"  ",null,null,"  ",null,null,"  ",null,null,"  ",null,null,"  ",null,6,"п/атт. 20.10.2017  ",null,null,"  ",null,null,"  ",null,4,"п/атт. 24.10.2017  ",null,null,"  ",null,null,"  ",null,null,"  ",null,null,"  ",null,null,"  ",null,null,"  ",null,null,"  ",null,null,"  ",null,null,"  ",null,null,"  ",null,null,null,null,null,"  ",null,null,null,null,5,"п/атт. 25.10.2017  ",null,null,"  ",null,null,"  ",null,null,"  ",null,null,null,null,null,"  ",null,null,"  ",null,null,"  ",null,null,null,null,null,"  ",null,null,"  ",null,null,"  ",null,null,null,null,null,"  ",null,null,"  ",null,null,"  ",null,null,"  ",null,null,"  ",null,null,null,0,null,"  ",null,null,"  ",null,null,"  ",null,null,"  ",null,null,"  ",null,null,"  ",null,null,"  ",null,null,"  ",null,null,"  ",null,0.6,null,3,4,1,3,8,1620,203]
[43,"Боркова","Яна","Андреевна","Боркова Я. А.",null,"Борковой","Яне","Андреевне","1991-09-03","д. Ченцы Красносельского р-на Костромской обл.","РФ","ж","ФГОУ СПО \"Костромской политехнический колледж\"",2011,"не замужем","Костромская обл., Красносельский р-н, ул. Рабочая, д. 26",null,null,null,null,null,null,null,12124,"Экономический","38.03.01","Экономика","Бухгалтерский учет, анализ и аудит","5 лет","БАКАЛАВР","2-576","2012-08-31","по договору с полным возмещением затрат","903-Д-2012","2012-08-30",null,null,"2-483","2014-07-16","невыполнение учебного плана","2-761","2017-09-27",null,null,null,null,null,null,null,null,null,null,null,null,null,null,null,null,null,null,null,null,null,null,null,null,null,null,null,null,null,null,null,null,null,null,null,2,"225z",5,"2018-06-09",7899481,6,"2018-06-09",7899710,4,"2018-06-09",7899530,6,"2018-06-09",7899527,4,"2018-06-09",7899494,5,"2018-06-09",7899495,5,"2018-06-09",7899550,4,"2018-06-09",78910236,null,"  ",null,null,"  ",null,null,"  ",null,null,"  ",null,null,"  ",null,null,"  ",null,null,"  ",null,null,"  ",null,null,"  ",null,null,"  ",null,null,"  ",null,null,"  ",null,null,"  ",null,null,"  ",null,null,"  ",null,null,"  ",null,null,"  ",null,null,"  ",null,null,"  ",null,null,"  ",null,null,"  ",null,null,"  ",null,null,"  ",null,null,"  ",null,null,null,null,null,"  ",null,null,null,null,null,"  ",null,null,"  ",null,null,"  ",null,null,"  ",null,null,null,null,null,"  ",null,null,"  ",null,null,"  ",null,null,null,null,null,"  ",null,null,"  ",null,null,"  ",null,null,null,null,null,"  ",null,null,"  ",null,null,"  ",null,null,"  ",null,null,"  ",null,null,null,0,null,"  ",null,null,"  ",null,null,"  ",null,null,"  ",null,null,"  ",null,null,"  ",null,null,"  ",null,null,"  ",null,null,"  ",null,0.54,null,0,3,3,2,6,1548,194]
[44,"Волкова","Анна","Васильевна","Волкова А. В.",null,null,null,null,null,null,null,null,null,null,null,null,null,null,null,null,null,null,null,null,null,"38.03.01",null,null,null,null,null,null,null,null,null,null,null,null,null,null,null,null,null,null,null,null,null,null,null,null,null,null,null,null,null,null,null,null,null,null,null,null,null,null,null,null,null,null,null,null,null,null,null,null,null,null,null,2,"225z",4,"2018-06-18","7899481-2",null,null,null,5,"2016-06-11",6237383,6,"2018-06-09",7899527,3,"2018-06-20","7899494-6",3,"2018-06-20","7899495-7",3,"2018-07-11",7899550,3,"2018-06-19","78910236-5",null,null,null,null,null,null,null,null,null,null,null,null,null,null,null,null,null,null,null,null,null,null,null,null,null,null,null,null,null,null,null,null,null,null,null,null,null,null,null,null,null,null,null,null,null,null,null,null,null,null,null,null,null,null,null,null,null,null,null,null,null,null,null,null,null,null,null,null,null,null,null,null,null,null,null,null,null,null,null,null,null,null,null,null,null,null,null,null,null,null,null,null,null,null,null,null,null,null,null,null,null,null,null,null,null,null,null,null,null,null,null,null,null,null,null,null,null,null,null,null,null,null,null,null,null,null,null,null,null,null,null,null,null,null,null,null,null,null,null,null,null,null,null,null,null,null,null,null,null,null,null,null,null,null,null,null,null,null,null,null,null,null,null,null,null,0.42,null,4,1,1,1,6,1440,180]
[45,"Голубева","Ксения","Александровна","Голубева К. А.",null,"Голубевой","Ксении","Александровне","1998-03-01","г. Кострома","РФ","ж","Областное государственное бюджетное профессиональное образовательное учреждение Костромской торгово-экономический колледж г. Кострома",2017,"не замужем","156000 г. Кострома, ул. Шагова, д.217, кв.21",null,null,null,null,null,null,null,170783,"Экономический","38.03.01","Экономика","Бухгалтерский учет, анализ и аудит","5 лет","БАКАЛАВР","2-687","2017-08-19","по договору с полным возмещением затрат","000004459","2017-08-09",null,null,null,null,null,null,null,null,null,null,null,null,null,null,null,null,null,null,null,null,null,null,null,null,null,null,null,null,null,null,null,null,null,null,null,null,null,null,null,null,null,null,2,"226z",4,"2018-06-09",7899481,6,"2018-06-09",7899710,4,"п/атт. 14.10.2017  ",null,6,"2018-06-09","7899527-1",3,"2018-06-09",7899494,4,"2018-06-09",7899495,5,"2018-06-09",7899550,4,"2018-06-09",78910236,null,"  ",null,null,"  ",null,null,"  ",null,null,"  ",null,null,"  ",null,null,"  ",null,null,"  ",null,null,"  ",null,null,"  ",null,null,"  ",null,6,"п/атт. 20.10.2017  ",null,null,"  ",null,null,"  ",null,4,"п/атт. 24.10.2017  ",null,6,"п/атт. 31.10.2017  ",null,null,"  ",null,null,"  ",null,null,"  ",null,null,"  ",null,null,"  ",null,null,"  ",null,null,"  ",null,null,"  ",null,null,"  ",null,null,null,null,null,"  ",null,null,null,null,5,"п/атт. 25.10.2017  ",null,null,"  ",null,null,"  ",null,null,"  ",null,null,null,null,null,"  ",null,null,"  ",null,null,"  ",null,null,null,null,null,"  ",null,null,"  ",null,null,"  ",null,null,null,null,5,"п/атт. 26.10.2017  ",null,null,"  ",null,null,"  ",null,null,"  ",null,null,"  ",null,null,null,0,null,"  ",null,null,"  ",null,null,"  ",null,null,"  ",null,null,"  ",null,null,"  ",null,null,"  ",null,null,"  ",null,null,"  ",null,0.76,null,1,5,3,4,9,1728,216]
[46,"Зайцева","Людмила","Леонидовна","Зайцева Л. Л.",null,"Зайцевой","Людмиле","Леонидовне","1978-04-06","п. Вохма Вохомского р-на Костромской обл.","РФ","ж","ФГОУ СПО Костромской лесомеханический колледж",2008,"не замужем","157760 Костромская обл., Вохомский р-н, п. Вохма, ул. Спортивная, д.6",null,null,null,null,null,null,null,170784,"Экономический","38.03.01","Экономика","Бухгалтерский учет, анализ и аудит","5 лет","БАКАЛАВР","2-687","2017-08-19","по договору с полным возмещением затрат","000004445","2017-08-07",null,null,null,null,null,null,null,null,null,null,null,null,null,null,null,null,null,null,null,null,null,null,null,null,null,null,null,null,null,null,null,null,null,null,null,null,null,null,null,null,null,null,2,"228z",3,"2018-06-09",7899481,null,null,null,4,"2018-06-09",7899530,6,"2018-06-14",7899527,null,null,null,null,null,null,null,null,null,null,null,null,6,"п/атт. 11.10.2017  ",null,6,"п/атт. 28.10.2017  ",null,null,"  ",null,null,"  ",null,null,"  ",null,null,"  ",null,null,"  ",null,null,"  ",null,null,"  ",null,null,"  ",null,6,"п/атт. 20.10.2017  ",null,null,"  ",null,null,"  ",null,null,"  ",null,6,"п/атт. 31.10.2017  ",null,null,"  ",null,null,"  ",null,null,"  ",null,null,"  ",null,null,"  ",null,null,"  ",null,null,"  ",null,null,"  ",null,null,"  ",null,null,null,null,null,"  ",null,null,null,null,5,"п/атт. 25.10.2017  ",null,null,"  ",null,null,"  ",null,null,"  ",null,null,null,null,null,"  ",null,null,"  ",null,null,"  ",null,null,null,null,null,"  ",null,null,"  ",null,null,"  ",null,null,null,null,null,"  ",null,null,"  ",null,null,"  ",null,null,"  ",null,null,"  ",null,null,null,0,null,"  ",null,null,"  ",null,null,"  ",null,null,"  ",null,null,"  ",null,null,"  ",null,null,"  ",null,null,"  ",null,null,"  ",null,0.24,null,1,1,1,5,3,745,93]
[{"$f":"A50+1","v":46},"Зайцев","Сергей","Васильевич","Зайцев С. В.",null,"Зайцеву","Сергею","Васильевичу","1975-08-15","г. Кинашма Ивановской обл.","РФ","м","ФГОУ СПО \"Буйский сельскохозяйственный техникум\"",2011,"женат","Костромская обл., Вохомский р-н, п. Вохма, ул. Спортивная, д.6",null,null,null,3400,74789,"2001-05-04","Отделом внутренних дел Вохомского района Костромской области",180029,"Экономический","38.03.01","Экономика","Бухгалтерский учет, анализ и аудит","5 лет","БАКАЛАВР","2-687","2017-08-19","по договору с полным возмещением затрат","000004444","2017-08-07",null,null,null,null,null,null,null,null,null,null,null,null,null,null,null,null,null,null,null,null,null,null,null,null,null,null,null,null,null,null,null,null,null,null,null,null,null,null,null,null,null,null,2,"227z",3,"2018-06-09",7899481,null,null,null,3,"2018-06-09",7899530,6,"2018-09-17","7899527-10",null,null,null,null,null,null,null,null,null,null,null,null,null,null,null,null,null,null,null,null,null,null,null,null,null,null,null,null,null,null,null,null,null,null,null,null,null,null,null,null,null,null,null,null,null,null,null,null,null,null,null,null,null,null,null,null,null,null,null,null,null,null,null,null,null,null,null,null,null,null,null,null,null,null,null,null,null,null,null,null,null,null,null,null,null,null,null,null,null,null,null,null,null,null,null,null,null,null,null,null,null,null,null,null,null,null,null,null,null,null,null,null,null,null,null,null,null,null,null,null,null,null,null,null,null,null,null,null,null,null,null,null,null,null,null,null,null,null,null,null,null,null,null,null,null,null,null,null,null,null,null,null,null,null,null,null,null,null,null,null,null,null,null,null,null,null,null,null,null,null,null,null,null,null,null,null,null,0.12,null,2,0,0,1,2,396,50]
[{"$f":"A51+1","v":47},"Калачева","Марина","Владимировна","Калачева М. В.",null,"Калачевой","Марине","Владимировне","1983-10-02","г. Нерехта Костромской обл.","РФ","ж","Костромской технологический техникум",2003,"не замужем","Костромская обл., г. Нерехта, ул. Восточная, д.7",null,null,null,null,null,null,null,170785,"Экономический","38.03.01","Экономика","Бухгалтерский учет, анализ и аудит","5 лет","БАКАЛАВР","2-687","2017-08-19","по договору с полным возмещением затрат","000004421","2017-08-02",null,null,null,null,null,null,null,null,null,null,null,null,null,null,null,null,null,null,null,null,null,null,null,null,null,null,null,null,null,null,null,null,null,null,null,null,null,null,null,null,null,null,2,"228z",4,"2018-06-09",7899481,6,"2018-06-09",7899710,4,"2018-06-09",7899530,6,"2018-06-09",7899527,3,"2018-06-09",7899494,3,"2018-06-09",7899495,5,"2018-06-09",7899550,4,"2018-06-09",78910236,null,"  ",null,6,"п/атт. 28.10.2017  ",null,null,"  ",null,null,"  ",null,null,"  ",null,null,"  ",null,null,"  ",null,null,"  ",null,null,"  ",null,null,"  ",null,6,"п/атт. 20.10.2017  ",null,null,"  ",null,null,"  ",null,4,"п/атт. 24.10.2017  ",null,6,"п/атт. 31.10.2017  ",null,null,"  ",null,null,"  ",null,null,"  ",null,null,"  ",null,null,"  ",null,null,"  ",null,null,"  ",null,null,"  ",null,null,"  ",null,null,null,null,null,"  ",null,null,null,null,3,"п/атт. 25.10.2017  ",null,null,"  ",null,null,"  ",null,null,"  ",null,null,null,null,null,"  ",null,null,"  ",null,null,"  ",null,null,null,null,null,"  ",null,null,"  ",null,null,"  ",null,null,null,null,null,"  ",null,null,"  ",null,null,"  ",null,null,"  ",null,null,"  ",null,null,null,0,null,"  ",null,null,"  ",null,null,"  ",null,null,"  ",null,null,"  ",null,null,"  ",null,null,"  ",null,null,"  ",null,null,"  ",null,0.6,null,3,4,1,5,8,1800,225]
[48,"Кашина","Наталия","Сергеевна","Кашина Н. С.",null,"Кашиной","Наталии","Сергеевне","1998-08-12","г. Кострома","РФ","ж","ОГБПОУ Костромской торгово-экономический колледж г. Кострома",2017,"не замужем","157940 Костромская обл., Красносельский р-н, пгт.  Красное-на-Волге, мкр. Восточный, д.12, кв.8",null,null,null,null,null,null,null,170786,"Экономический","38.03.01","Экономика","Бухгалтерский учет, анализ и аудит","5 лет","БАКАЛАВР","2-687","2017-08-19","по договору с полным возмещением затрат","000004443","2017-08-07",null,null,null,null,null,null,null,null,null,null,null,null,null,null,null,null,null,null,null,null,null,null,null,null,null,null,null,null,null,null,null,null,null,null,null,null,null,null,null,null,null,null,2,"226z",4,"2018-06-09",7899481,6,"2018-06-09",7899710,3,"п/атт. 14.10.2017  ",null,6,"2018-06-09",7899527,3,"2018-06-09",7899494,3,"2018-06-09",7899495,4,"2018-06-09",7899550,3,"2018-06-09",78910236,null,"  ",null,null,"  ",null,null,"  ",null,null,"  ",null,null,"  ",null,null,"  ",null,null,"  ",null,null,"  ",null,null,"  ",null,null,"  ",null,6,"п/атт. 20.10.2017  ",null,null,"  ",null,null,"  ",null,4,"п/атт. 24.10.2017  ",null,6,"п/атт. 31.10.2017  ",null,null,"  ",null,null,"  ",null,null,"  ",null,null,"  ",null,null,"  ",null,null,"  ",null,null,"  ",null,null,"  ",null,null,"  ",null,null,null,null,null,"  ",null,null,null,null,4,"п/атт. 25.10.2017  ",null,null,"  ",null,null,"  ",null,null,"  ",null,null,null,null,null,"  ",null,null,"  ",null,null,"  ",null,null,null,null,null,"  ",null,null,"  ",null,null,"  ",null,null,null,null,4,"п/атт. 26.10.2017  ",null,null,"  ",null,null,"  ",null,null,"  ",null,null,"  ",null,null,null,0,null,"  ",null,null,"  ",null,null,"  ",null,null,"  ",null,null,"  ",null,null,"  ",null,null,"  ",null,null,"  ",null,null,"  ",null,0.64,null,4,5,0,4,9,1728,216]
[49,"Крайнова (Криулина)","Алла","Александровна","Крайнова (Криулина) А. А.",null,"Криулиной","Алле","Александровне","1997-03-21","п. Гравийный Карьер Красносельского ра-на Костромской обл.","РФ","ж","ОГБПОУ Костромской торгово-экономический колледж г. Кострома",2017,"не замужем","157943 Костромская обл., Красносельский р-н, п. Гравийный Карьер, ул. Нагорная, д.8, кв.7",null,null,null,null,null,null,null,170787,"Экономический","38.03.01","Экономика","Бухгалтерский учет, анализ и аудит","5 лет","БАКАЛАВР","2-687","2017-08-19","по договору с полным возмещением затрат","000004447","2017-08-08",null,null,null,null,null,null,null,null,null,null,null,null,null,null,null,null,null,null,null,null,null,null,null,null,null,null,null,null,null,null,null,null,null,null,null,null,null,null,null,null,null,null,2,"226z",4,"2018-06-09",7899481,null,null,null,4,"п/атт. 14.10.2017  ",null,6,"2018-09-17","7899527-9",3,"2018-06-09",7899494,null,"  ",null,null,"  ",null,4,"2018-06-09",78910236,null,"  ",null,null,"  ",null,null,"  ",null,null,"  ",null,null,"  ",null,null,"  ",null,null,"  ",null,null,"  ",null,null,"  ",null,null,"  ",null,6,"п/атт. 20.10.2017  ",null,null,"  ",null,null,"  ",null,4,"п/атт. 24.10.2017  ",null,6,"п/атт. 31.10.2017  ",null,null,"  ",null,null,"  ",null,null,"  ",null,null,"  ",null,null,"  ",null,null,"  ",null,null,"  ",null,null,"  ",null,null,"  ",null,null,null,null,null,"  ",null,null,null,null,5,"п/атт. 25.10.2017  ",null,null,"  ",null,null,"  ",null,null,"  ",null,null,null,null,null,"  ",null,null,"  ",null,null,"  ",null,null,null,null,null,"  ",null,null,"  ",null,null,"  ",null,null,null,null,5,"п/атт. 26.10.2017  ",null,null,"  ",null,null,"  ",null,null,"  ",null,null,"  ",null,null,null,0,null,"  ",null,null,"  ",null,null,"  ",null,null,"  ",null,null,"  ",null,null,"  ",null,null,"  ",null,null,"  ",null,null,"  ",null,0.57999999999999996,null,1,4,2,3,7,1008,126]
[50,"Маркова","Светлана","Сергеевна","Маркова С. С.",null,"Марковой","Светлане","Сергеевне","1987-05-23","д. Нейская Шарьинского р-на Костромской обл.","РФ","ж","Костромской торгово-экономический колледж",2006,"не замужем","Костромская обл., Шарьинский р-н, с. Рождественское, ул.  Механизаторов, д.6",null,null,null,null,null,null,null,170789,"Экономический","38.03.01","Экономика","Бухгалтерский учет, анализ и аудит","5 лет","БАКАЛАВР","2-687","2017-08-19","по договору с полным возмещением затрат","000004457","2017-08-09",null,null,null,null,null,null,null,null,null,null,null,null,null,null,null,null,null,null,null,null,null,null,null,null,null,null,null,null,null,null,null,null,null,null,null,null,null,null,null,null,null,null,2,"228z",5,"2018-06-09",7899481,6,"2018-06-09",7899710,4,"2018-06-09",7899530,6,"2018-06-09",7899527,3,"2018-06-09",7899494,3,"2018-06-09",7899495,5,"2018-06-09",7899550,4,"2018-06-09",78910236,null,"  ",null,6,"п/атт. 28.10.2017  ",null,null,"  ",null,null,"  ",null,null,"  ",null,null,"  ",null,null,"  ",null,null,"  ",null,null,"  ",null,null,"  ",null,6,"п/атт. 20.10.2017  ",null,null,"  ",null,null,"  ",null,5,"п/атт. 24.10.2017  ",null,6,"п/атт. 31.10.2017  ",null,null,"  ",null,null,"  ",null,null,"  ",null,null,"  ",null,null,"  ",null,null,"  ",null,null,"  ",null,null,"  ",null,null,"  ",null,null,null,null,null,"  ",null,null,null,null,4,"п/атт. 25.10.2017  ",null,null,"  ",null,null,"  ",null,null,"  ",null,null,null,null,null,"  ",null,null,"  ",null,null,"  ",null,null,null,null,null,"  ",null,null,"  ",null,null,"  ",null,null,null,null,5,"п/атт. 26.10.2017  ",null,null,"  ",null,null,"  ",null,null,"  ",null,null,"  ",null,null,null,0,null,"  ",null,null,"  ",null,null,"  ",null,null,"  ",null,null,"  ",null,null,"  ",null,null,"  ",null,null,"  ",null,null,"  ",null,0.76,null,2,3,4,5,9,1800,225]
[51,"Незнамова","Мария","Владимировна","Незнамова М. В.",null,"Незнамовой","Марии","Владимировне","1993-11-26","п. Чистые Боры Буйского р-на Костромской обл.","РФ","ж","ФГБОУ ВПО Ярославская государственная сельскохозяйственная академия г. Ярославль",2015,"замужем","Ярославская область, г. Ярославль, ул. Панина,  д.5, корп. 7, кв.173",null,null,null,null,null,null,null,170790,"Экономический","38.03.01","Экономика","Бухгалтерский учет, анализ и аудит","5 лет","БАКАЛАВР","2-687","2017-08-19","по договору с полным возмещением затрат","000004540","2017-08-16",null,null,null,null,null,null,null,null,null,null,null,null,null,null,null,null,null,null,null,null,null,null,null,null,null,null,null,null,null,null,null,null,null,null,null,null,null,null,null,null,null,null,2,"228z",3,"2018-06-09",7899481,null,null,null,4,"п/зач. 14.10.2017  ",null,null,"  ",null,4,"п/атт. 21.10.2017  ",null,null,"  ",null,null,"  ",null,null,"  ",null,6,"п/атт. 11.10.2017  ",null,null,"  ",null,3,"п/атт. 05.11.2017  ",null,null,"  ",null,null,"  ",null,null,"  ",null,null,"  ",null,null,"  ",null,null,"  ",null,null,"  ",null,6,"п/атт. 20.10.2017  ",null,null,"  ",null,null,"  ",null,null,"  ",null,6,"п/зач. 31.10.2017  ",null,null,"  ",null,null,"  ",null,null,"  ",null,null,"  ",null,null,"  ",null,null,"  ",null,null,"  ",null,null,"  ",null,null,"  ",null,null,null,null,null,"  ",null,null,null,null,null,"  ",null,null,"  ",null,null,"  ",null,null,"  ",null,null,null,null,null,"  ",null,null,"  ",null,null,"  ",null,null,null,null,null,"  ",null,null,"  ",null,null,"  ",null,null,null,null,null,"  ",null,4,"п/зач. 06.10.2017  ",null,null,"  ",null,null,"  ",null,null,"  ",null,null,null,0,null,"  ",null,null,"  ",null,null,"  ",null,null,"  ",null,null,"  ",null,null,"  ",null,null,"  ",null,null,"  ",null,null,"  ",null,0.36,null,2,3,0,3,5,1141,143]
[52,"Новоселова","Наталья","Владимировна","Новоселова Н. В.",null,"Новоселовой","Наталье","Владимировне","1981-06-08","п. Нефтекамск Республики Башкортостан","РФ","ж","Нефтекамский машиностроительный техникум",2000,"не замужем","156901 Костромская обл., г. Волгореченск, ул. Имени 50-летия Ленинского Комсомола,  д.47 кв.16",null,null,null,null,null,null,null,170791,"Экономический","38.03.01","Экономика","Бухгалтерский учет, анализ и аудит","5 лет","БАКАЛАВР","2-687","2017-08-19","по договору с полным возмещением затрат","000004535","2017-08-16",null,null,null,null,null,null,null,null,null,null,null,null,null,null,null,null,null,null,null,null,null,null,null,null,null,null,null,null,null,null,null,null,null,null,null,null,null,null,null,null,null,null,2,"228z",4,"2018-06-09",7899481,6,"2018-06-09",7899710,4,"2018-06-09",7899530,6,"п/атт. 27.10.2017  ",null,3,"2018-06-09",7899494,3,"2018-06-09",7899495,4,"2018-06-09",7899550,4,"2018-06-09",78910236,6,"п/атт. 11.10.2017  ",null,6,"п/атт. 28.10.2017  ",null,null,"  ",null,null,"  ",null,null,"  ",null,null,"  ",null,null,"  ",null,null,"  ",null,null,"  ",null,null,"  ",null,6,"п/атт. 20.10.2017  ",null,null,"  ",null,null,"  ",null,4,"п/атт. 24.10.2017  ",null,6,"п/атт. 31.10.2017  ",null,null,"  ",null,null,"  ",null,null,"  ",null,null,"  ",null,null,"  ",null,null,"  ",null,null,"  ",null,null,"  ",null,null,"  ",null,null,null,null,null,"  ",null,null,null,null,3,"п/атт. 25.10.2017  ",null,null,"  ",null,null,"  ",null,null,"  ",null,null,null,null,null,"  ",null,null,"  ",null,null,"  ",null,null,null,null,null,"  ",null,null,"  ",null,null,"  ",null,null,null,null,null,"  ",null,null,"  ",null,null,"  ",null,null,"  ",null,null,"  ",null,null,null,0,null,"  ",null,null,"  ",null,null,"  ",null,null,"  ",null,null,"  ",null,null,"  ",null,null,"  ",null,null,"  ",null,null,"  ",null,0.57999999999999996,null,3,5,0,6,8,1897,237]
[53,"Пирогова","Мария","Сергеевна","Пирогова М. С.",null,"Пироговой","Марии","Сергеевне","1997-10-27","г. Кострома","РФ","ж","ОГБПОУ Костромской торгово-экономический колледж г. Кострома",2017,"не замужем","г. Кострома, ул. Рабочая 6-я, д. 48, кв. 3",null,null,null,null,null,null,null,170792,"Экономический","38.03.01","Экономика","Бухгалтерский учет, анализ и аудит","5 лет","БАКАЛАВР","2-701","2017-08-31","по договору с полным возмещением затрат","000004597","2017-08-25",null,null,null,null,null,null,null,null,null,null,null,null,null,null,null,null,null,null,null,null,null,null,null,null,null,null,null,null,null,null,null,null,null,null,null,null,null,null,null,null,null,null,2,"226z",4,"2018-06-09",7899481,6,"2018-06-09",7899710,5,"п/атт. 14.10.2017  ",null,6,"2018-06-09",7899527,3,"2018-06-09",7899494,3,"2018-06-09",7899495,5,"2018-06-09",7899550,4,"2018-06-09",78910236,null,"  ",null,null,"  ",null,null,"  ",null,null,"  ",null,null,"  ",null,null,"  ",null,null,"  ",null,null,"  ",null,null,"  ",null,null,"  ",null,6,"п/атт. 20.10.2017  ",null,null,"  ",null,null,"  ",null,5,"п/атт. 24.10.2017  ",null,6,"п/атт. 31.10.2017  ",null,null,"  ",null,null,"  ",null,null,"  ",null,null,"  ",null,null,"  ",null,null,"  ",null,null,"  ",null,null,"  ",null,null,"  ",null,null,null,null,null,"  ",null,null,null,null,5,"п/атт. 25.10.2017  ",null,null,"  ",null,null,"  ",null,null,"  ",null,null,null,null,null,"  ",null,null,"  ",null,null,"  ",null,null,null,null,null,"  ",null,null,"  ",null,null,"  ",null,null,null,null,5,"п/атт. 26.10.2017  ",null,null,"  ",null,null,"  ",null,null,"  ",null,null,"  ",null,null,null,null,null,"  ",null,null,"  ",null,null,"  ",null,null,"  ",null,null,"  ",null,null,"  ",null,null,"  ",null,null,"  ",null,null,"  ",null,0.78,null,2,2,5,4,9,1728,216]
[54,"Сизов","Андрей","Михайлович","Сизов А. М.",null,"Сизову","Андрею","Михайловичу","1999-06-09","г. Галич Костромской обл.","РФ","м","ОГБПОУ Галичский аграрный техникум Костромской области г. Галич Кострмоская обл.",2017,"холост","157201 Костромская обл., г. Галич, ул. Большой Глинник,  д.32",null,null,null,null,null,null,null,170793,"Экономический","38.03.01","Экономика","Бухгалтерский учет, анализ и аудит","5 лет","БАКАЛАВР","2-687","2017-08-19","по договору с полным возмещением затрат","000004539","2017-08-16",null,null,null,null,null,null,null,null,"2-800","2017-10-13","в связи с пизывом в ряды ВС РФ","2017-10-09","2018-10-08",null,null,null,null,null,null,null,null,null,null,null,null,null,null,null,null,null,null,null,null,null,null,null,null,null,null,null,null,null,1,"АО",null,null,null,null,"  ",null,null,"  ",null,null,"  ",null,null,"  ",null,null,"  ",null,null,"  ",null,null,"  ",null,null,"  ",null,null,"  ",null,null,"  ",null,null,"  ",null,null,"  ",null,null,"  ",null,null,"  ",null,null,"  ",null,null,"  ",null,null,"  ",null,null,"  ",null,null,"  ",null,null,"  ",null,null,"  ",null,null,"  ",null,null,"  ",null,null,"  ",null,null,"  ",null,null,"  ",null,null,"  ",null,null,"  ",null,null,"  ",null,null,"  ",null,null,"  ",null,null,null,null,null,"  ",null,null,null,null,null,"  ",null,null,"  ",null,null,"  ",null,null,"  ",null,null,null,null,null,"  ",null,null,"  ",null,null,"  ",null,null,null,null,null,"  ",null,null,"  ",null,null,"  ",null,null,null,null,null,"  ",null,null,"  ",null,null,"  ",null,null,"  ",null,null,"  ",null,null,null,null,null,"  ",null,null,"  ",null,null,"  ",null,null,"  ",null,null,"  ",null,null,"  ",null,null,"  ",null,null,"  ",null,null,"  ",null,0,null,0,0,0,0,0,0,0]
[55,"Смирнов","Тимур","Альбертович","Смирнов Т. А.",null,"Смирнову","Тимуру","Альбертовичу","1995-06-19","г. Кострома","РФ","м","ОГБПОУ Костромской политехнический колледж город Кострома",2015,"холост","г. Кострома, ул. Хвойная, д.35",null,null,null,null,null,null,null,170794,"Экономический","38.03.01","Экономика","Бухгалтерский учет, анализ и аудит","5 лет","БАКАЛАВР","2-687","2017-08-19","по договору с полным возмещением затрат","000004441","2017-08-07",null,null,null,null,null,null,null,null,null,null,null,null,null,null,null,null,null,null,null,null,null,null,null,null,null,null,null,null,null,null,null,null,null,null,null,null,null,null,null,null,null,null,2,"225z",3,"2018-06-09",7899481,6,"2018-06-09",7899710,4,"2018-06-09",7899530,6,"2018-06-09",7899527,3,"2018-06-09",7899494,3,"2018-06-09",7899495,5,"2018-06-09",7899550,3,"2018-06-09",78910236,null,"  ",null,null,"  ",null,null,"  ",null,null,"  ",null,null,"  ",null,null,"  ",null,null,"  ",null,null,"  ",null,null,"  ",null,null,"  ",null,null,"  ",null,null,"  ",null,null,"  ",null,null,"  ",null,null,"  ",null,null,"  ",null,null,"  ",null,null,"  ",null,null,"  ",null,null,"  ",null,null,"  ",null,null,"  ",null,null,"  ",null,null,"  ",null,null,null,null,null,"  ",null,null,null,null,null,"  ",null,null,"  ",null,null,"  ",null,null,"  ",null,null,null,null,null,"  ",null,null,"  ",null,null,"  ",null,null,null,null,null,"  ",null,null,"  ",null,null,"  ",null,null,null,null,null,"  ",null,null,"  ",null,null,"  ",null,null,"  ",null,null,"  ",null,null,null,null,null,"  ",null,null,"  ",null,null,"  ",null,null,"  ",null,null,"  ",null,null,"  ",null,null,"  ",null,null,"  ",null,null,"  ",null,0.42,null,4,1,1,2,6,1548,194]
[56,"Соколов","Андрей","Александрович","Соколов А. А.",null,"Соколову","Андрею","Александровичу","1997-05-07","г. Кострома","РФ","м","ОГБПОУ Костромской торгово-экономический колледж г. Кострома",2016,"холост","156019 г. Кострома, ул. Восточная, д.11, кв.2",null,null,null,null,null,null,null,170795,"Экономический","38.03.01","Экономика","Бухгалтерский учет, анализ и аудит","5 лет","БАКАЛАВР","2-687","2017-08-19","по договору с полным возмещением затрат","000004453","2017-08-08",null,null,null,null,null,null,null,null,null,null,null,null,null,null,null,null,null,null,null,null,null,null,null,null,null,null,null,null,null,null,null,null,null,null,null,null,null,null,null,null,null,null,2,"226z",3,"2018-06-09",7899481,6,"2018-06-18","7899710-4",5,"п/атт. 14.10.2017  ",null,6,"2018-06-09",7899527,null,"  ",null,null,"  ",null,4,"2018-06-09",7899550,4,"2018-06-18","78910236-3",null,"  ",null,null,"  ",null,null,"  ",null,null,"  ",null,null,"  ",null,null,"  ",null,null,"  ",null,null,"  ",null,null,"  ",null,null,"  ",null,6,"п/атт. 20.10.2017  ",null,null,"  ",null,null,"  ",null,5,"п/атт. 24.10.2017  ",null,6,"п/атт. 31.10.2017  ",null,null,"  ",null,null,"  ",null,null,"  ",null,null,"  ",null,null,"  ",null,null,"  ",null,null,"  ",null,null,"  ",null,null,"  ",null,null,null,null,null,"  ",null,null,null,null,4,"п/атт. 25.10.2017  ",null,null,"  ",null,null,"  ",null,null,"  ",null,null,null,null,null,"  ",null,null,"  ",null,null,"  ",null,null,null,null,null,"  ",null,null,"  ",null,null,"  ",null,null,null,null,5,"п/атт. 26.10.2017  ",null,null,"  ",null,null,"  ",null,null,"  ",null,null,"  ",null,null,null,null,null,"  ",null,null,"  ",null,null,"  ",null,null,"  ",null,null,"  ",null,null,"  ",null,null,"  ",null,null,"  ",null,null,"  ",null,0.6,null,1,3,3,4,7,1260,158]
[57,"Трунова","Маргарита","Владимировна","Трунова М. В.",null,"Труновой","Маргарите","Владимировне","1999-02-23","г. Кострома","РФ","ж","МБОУ г. Костромы СОШ №23",2017,"не замужем","г. Кострома, ул. Крупской, д. 27 А, кв. 19",null,null,null,3412,"081883","2013-03-05","Отделением УФМС России по Костромской области в  Давыдовском округе гор. Костромы",170430,"Экономический","38.03.01","Экономика","Бухгалтерский учет, анализ и аудит","5 лет","БАКАЛАВР","2-686","2017-08-19","по договору с полным возмещением затрат","000004381","2017-07-05",null,null,null,null,null,null,null,null,null,null,null,null,null,null,null,null,null,null,null,null,null,null,null,null,null,null,null,null,null,null,null,null,null,null,null,null,null,null,null,null,null,null,2,"225z",4,"2018-06-09",7899481,6,"2018-06-09",7899710,4,"п/зач",null,6,"п/зач  ",null,3,"п/зач  ",null,null,null,null,4,"2018-06-09",7899550,4,"п/зач  ",null,6,"п/зач",null,null,null,null,null,null,null,null,null,null,null,null,null,null,null,null,null,null,null,null,null,null,null,null,null,null,null,null,6,"п/зач  ",null,null,null,null,null,null,null,null,null,null,null,null,null,null,null,null,null,null,null,null,null,null,null,null,null,null,null,null,null,null,null,null,null,null,null,null,null,null,null,null,null,null,null,null,null,null,null,null,null,null,null,null,null,null,null,null,null,null,null,null,null,null,null,null,null,null,null,null,null,null,null,null,null,null,null,null,null,null,null,null,null,null,null,null,null,null,null,null,null,null,null,null,null,null,null,null,null,null,null,null,null,null,null,null,null,null,null,null,null,null,null,null,null,null,null,null,null,null,null,null,null,null,null,null,null,null,null,null,null,null,null,null,null,0.38,null,1,4,0,4,5,1465,183]
[58,"Фера","Мария","Васильевна",{"$f":"CONCATENATE(B64,\" \",LEFT(C64,1),\". \",LEFT(D64,1),\".\")","v":"Фера М. В."},null,"Фера","Марии","Васильевне","1999-02-11","г. Кострома","РФ","ж","ОГБПОУ Костромской торгово-экономический колледж г. Кострома",2017,"не замужем","Костромская обл., Костромской р-н, п. Сухоногово, ул. Костромская, д. 3, кв. 15",null,null,null,null,null,null,null,170796,"Экономический","38.03.01","Экономика","Бухгалтерский учет, анализ и аудит","5 лет","БАКАЛАВР","2-701","2017-08-31","по договору с полным возмещением затрат","000004590","2017-08-22",null,null,null,null,null,null,null,null,null,null,null,null,null,null,null,null,null,null,null,null,null,null,null,null,null,null,null,null,null,null,null,null,null,null,null,null,null,null,null,null,null,null,2,"226z",3,"2018-06-09",7899481,6,"2018-06-09",7899710,5,"п/атт. 14.10.2017  ",null,6,"2018-06-09",7899527,3,"2018-06-09",7899494,4,"2018-06-09",7899495,5,"2018-06-09",7899550,4,"2018-06-09",78910236,null,"  ",null,null,"  ",null,null,"  ",null,null,"  ",null,null,"  ",null,null,"  ",null,null,"  ",null,null,"  ",null,null,"  ",null,null,"  ",null,6,"п/атт. 20.10.2017  ",null,null,"  ",null,null,"  ",null,5,"п/атт. 24.10.2017  ",null,6,"п/атт. 31.10.2017  ",null,null,"  ",null,null,"  ",null,null,"  ",null,null,"  ",null,null,"  ",null,null,"  ",null,null,"  ",null,null,"  ",null,null,"  ",null,null,null,null,null,"  ",null,null,null,null,5,"п/атт. 25.10.2017  ",null,null,"  ",null,null,"  ",null,null,"  ",null,null,null,null,null,"  ",null,null,"  ",null,null,"  ",null,null,null,null,null,"  ",null,null,"  ",null,null,"  ",null,null,null,null,5,"п/атт. 26.10.2017  ",null,null,"  ",null,null,"  ",null,null,"  ",null,null,"  ",null,null,null,null,null,"  ",null,null,"  ",null,null,"  ",null,null,"  ",null,null,"  ",null,null,"  ",null,null,"  ",null,null,"  ",null,null,"  ",null,0.78,null,2,2,5,4,9,1728,216]
[59,"Одинцов","Роман","Сергеевич","Одинцов Р. С.",null,"Одинцову","Роману","Сергеевичу","1981-11-19","г. Кострома","РФ","м","Костромской автотранспортный техникум",2001,"женат","г. Кострома ул. Профсоюзная, д.25/2 кв. 46",null,null,null,3403,553987,"2003-07-07","Отделом внутренних дел Заволжского округа г. Костромы района Костромской области",180055,"Экономический","38.03.01","Экономика","Бухгалтерский учет, анализ и аудит","5 лет","БАКАЛАВР","2-591","2018-07-02","по договору с полным возмещением затрат","000004760","2018-06-18",null,null,null,null,null,null,null,null,null,null,null,null,null,null,null,null,null,null,null,null,null,null,null,null,null,null,null,null,null,null,null,null,null,null,null,null,null,null,null,null,null,null,2,"225z",null,null,null,null,null,null,3,null,null,6,null,null,null,null,null,null,null,null,3,null,null,null,null,null,null,null,null,6,null,null,null,null,null,null,null,null,null,null,null,null,null,null,null,null,null,null,null,null,null,null,null,null,null,null,6,null,null,6,null,null,null,null,null,null,null,null,null,null,null,null,null,null,null,null,null,null,null,null,null,null,null,null,null,null,null,null,null,null,null,null,null,null,null,null,null,null,null,null,null,null,null,null,null,null,null,null,null,null,null,null,null,null,null,null,null,null,null,null,null,null,null,null,null,null,null,null,null,null,null,null,null,null,null,null,null,null,null,null,null,null,null,null,null,null,null,null,null,null,null,null,null,null,null,null,null,null,null,null,null,null,null,null,null,null,null,null,null,null,null,null,null,null,null,null,null,null,null,null,null,null,null,null,null,null,null,null,null,null,null,0.12,null,2,0,0,4,2,684,86]
[60,"Артюшенко","Евгений","Сергеевич","Артюшенко Е. С.",null,null,null,null,"1994-08-25","п. Гезгалы Датловского р-на Городнецкой обл.","РФ","м","ОГБПОУ \"Костромской торгово-экономический колледж\"",2014,null,"Кострома г.  Никитская ул. д.104 кв.44",null,null,null,null,null,null,null,null,"Экономический","38.03.01","Экономика","Бухгалтерский учет, анализ и аудит","5 лет","БАКАЛАВР","2-670","2018-08-20","по договору с полным возмещением затрат","000004761","2018-06-25",null,null,null,null,null,null,null,null,null,null,null,null,null,null,null,null,null,null,null,null,null,null,null,null,null,null,null,null,null,null,null,null,null,null,null,null,null,null,null,null,null,null,1,"213z"]
[61,"Балдина","Анастасия","Александровна","Балдина А. А.",null,null,null,null,"1999-10-08","г. Волгореченск Костромская обл.","РФ","ж","ФГОУ ВО Костромская ГСХА",2018,null,"Кострома г.  Кинешемское ш. д.15 кв.120",null,null,null,null,null,null,null,null,"Экономический","38.03.01","Экономика","Бухгалтерский учет, анализ и аудит","5 лет","БАКАЛАВР","2-670","2018-08-20","по договору с полным возмещением затрат","000004865","2018-08-08",null,null,null,null,null,null,null,null,null,null,null,null,null,null,null,null,null,null,null,null,null,null,null,null,null,null,null,null,null,null,null,null,null,null,null,null,null,null,null,null,null,null,1,"213z"]
[62,"Белышева","Анна","Анатольевна","Белышева А. А.",null,null,null,null,"1999-08-30","г. Кострома","РФ","ж","ФГОУ ВО Костромская ГСХА",2018,null,"Костромская обл., Красносельский р-н, Красное-на-Волге пгт. Заготскот ул. д.12",null,null,null,null,null,null,null,null,"Экономический","38.03.01","Экономика","Бухгалтерский учет, анализ и аудит","5 лет","БАКАЛАВР","2-670","2018-08-20","по договору с полным возмещением затрат","000004863","2018-08-08",null,null,null,null,null,null,null,null,null,null,null,null,null,null,null,null,null,null,null,null,null,null,null,null,null,null,null,null,null,null,null,null,null,null,null,null,null,null,null,null,null,null,1,"213z"]
[63,"Бородачева","Полина","Владимировна","Бородачева П. В.",null,null,null,null,"1996-05-31","пос. Караваево Костромского р-на Костромской обл.","РФ","ж","ЧУПО \"Костромской технологический техникум\" г. Кострома",2016,"замужем","Костромская обл., Костромской р-н, Караваево п. Садовая ул. д.2 кв.4",null,null,null,null,null,null,null,null,"Экономический","38.03.01","Экономика","Бухгалтерский учет, анализ и аудит","5 лет","БАКАЛАВР","2-670","2018-08-20","по договору с полным возмещением затрат","000005048","2018-08-17",null,null,null,null,null,null,null,null,null,null,null,null,null,null,null,null,null,null,null,null,null,null,null,null,null,null,null,null,null,null,null,null,null,null,null,null,null,null,null,null,null,null,1,"213z"]
[64,"Васильева","Юлия","Вячеславовна","Васильева Ю. В.",null,null,null,null,"1998-12-01","г. Кострома","РФ","ж","ФГОУ ВО Костромская ГСХА",2018,null,"157940, Костромская обл., Красносельский р-н, Красное-на-Волге пгт., Советская ул., д. 57А, кв. 2",null,null,null,null,null,null,null,null,"Экономический","38.03.01","Экономика","Бухгалтерский учет, анализ и аудит","5 лет","БАКАЛАВР","2-670","2018-08-20","по договору с полным возмещением затрат","000005013","2018-08-16",null,null,null,null,null,null,null,null,null,null,null,null,null,null,null,null,null,null,null,null,null,null,null,null,null,null,null,null,null,null,null,null,null,null,null,null,null,null,null,null,null,null,1,"213z"]
[{"$f":"A70+1","v":65},"Глушаница","Екатерина","Валерьевна","Глушаница Е. В.",null,null,null,null,"1998-06-11","г. Кострома","РФ","ж","ОГБПОУ \"Костромской торгово-экономический колледж\" г. Кострома",2018,null,"Кострома г. Калиновская ул. д.63 кв.33",null,null,null,null,null,null,null,null,"Экономический","38.03.01","Экономика","Бухгалтерский учет, анализ и аудит","5 лет","БАКАЛАВР","2-670","2018-08-20","по договору с полным возмещением затрат","000004874","2018-08-08",null,null,null,null,null,null,null,null,null,null,null,null,null,null,null,null,null,null,null,null,null,null,null,null,null,null,null,null,null,null,null,null,null,null,null,null,null,null,null,null,null,null,1,"213z"]
[66,"Грибов","Артем","Иванович","Грибов А. И.",null,null,null,null,"2000-01-05","г. Кострома","РФ","м","ФГОУ ВО Костромская ГСХА",2018,null,"Кострома г. Давыдовский-2 мкр. д.41 кв.43",null,null,null,null,null,null,null,null,"Экономический","38.03.01","Экономика","Бухгалтерский учет, анализ и аудит","5 лет","БАКАЛАВР","2-670","2018-08-20","по договору с полным возмещением затрат","000004858","2018-08-07",null,null,null,null,null,null,null,null,null,null,null,null,null,null,null,null,null,null,null,null,null,null,null,null,null,null,null,null,null,null,null,null,null,null,null,null,null,null,null,null,null,null,1,"213z"]
[67,"Груздева","Анна","Андреевна","Груздева А. А.",null,null,null,null,"1999-02-20","г. Кострома","РФ","ж","ОГБПОУ \"Костромской торгово-экономический колледж\" г. Кострома",2018,null,"Костромская обл., Костромской р-н, Караваево п. Капитана Харчина ул. д.8 кв.25",null,null,null,null,null,null,null,null,"Экономический","38.03.01","Экономика","Бухгалтерский учет, анализ и аудит","5 лет","БАКАЛАВР","2-670","2018-08-20","по договору с полным возмещением затрат","000004929","2018-08-13",null,null,null,null,null,null,null,null,null,null,null,null,null,null,null,null,null,null,null,null,null,null,null,null,null,null,null,null,null,null,null,null,null,null,null,null,null,null,null,null,null,null,1,"214z"]
[68,"Губочкина","Светлана","Сергеевна","Губочкина С. С.",null,null,null,null,"1999-02-06","г. Кострома","РФ","ж","ОГБПОУ \"Костромской политехнический колледж\" г. Кострома",2018,null,"Кострома г.  Стопани ул. д.33 кв.20",null,null,null,null,null,null,null,null,"Экономический","38.03.01","Экономика","Бухгалтерский учет, анализ и аудит","5 лет","БАКАЛАВР","2-670","2018-08-20","по договору с полным возмещением затрат","000005019","2018-08-16",null,null,null,null,null,null,null,null,null,null,null,null,null,null,null,null,null,null,null,null,null,null,null,null,null,null,null,null,null,null,null,null,null,null,null,null,null,null,null,null,null,null,1,"213z"]
[69,"Догадаева","Варвара","Юрьевна","Догадаева В. Ю.",null,null,null,null,"1985-09-27","пос. Вохтома Парфеньевского района Костромской области","РФ","ж","Профессиональное училище №11 г. Галич Костромская обл.",2004,"замужем","Кострома г.  Пушкина ул. д.38 кв.26",null,null,null,null,null,null,null,null,"Экономический","38.03.01","Экономика","Бухгалтерский учет, анализ и аудит","5 лет","БАКАЛАВР","2-670","2018-08-20","по договору с полным возмещением затрат","000004916","2018-08-13",null,null,null,null,null,null,null,null,null,null,null,null,null,null,null,null,null,null,null,null,null,null,null,null,null,null,null,null,null,null,null,null,null,null,null,null,null,null,null,null,null,null,1,"215z"]
[70,"Дугина","Мария","Алексеевна","Дугина М. А.",null,null,null,null,"1999-02-09","г. Волгореченск Костромская обл.","РФ","ж","ОГБПОУ \"Костромской колледж отраслевых технологий строительства и лесной промышленности\"",2018,null,"Костромская обл., Волгореченск г.  им. 50-летия Ленинского комсомола д.33 кв.11",null,null,null,null,null,null,null,null,"Экономический","38.03.01","Экономика","Бухгалтерский учет, анализ и аудит","5 лет","БАКАЛАВР","2-670","2018-08-20","по договору с полным возмещением затрат","000004882","2018-08-09",null,null,null,null,null,null,null,null,null,null,null,null,null,null,null,null,null,null,null,null,null,null,null,null,null,null,null,null,null,null,null,null,null,null,null,null,null,null,null,null,null,null,1,"213z"]
[71,"Егоров","Александр","Евгеньевич","Егоров А. Е.",null,null,null,null,"1999-04-05","гор. Буй Костромская обл.","РФ","м","ОГБПОУ \"Буйский техникум градостроительства и\nпредпринимательства Костромской области\" г. Буй Костромская\nобласть",2018,null,"Костромская обл., Буй г.  Островского ул. д.13 кв.36",null,null,null,null,null,null,null,null,"Экономический","38.03.01","Экономика","Бухгалтерский учет, анализ и аудит","5 лет","БАКАЛАВР","2-670","2018-08-20","по договору с полным возмещением затрат","000004797","2018-07-24",null,null,null,null,null,null,null,null,null,null,null,null,null,null,null,null,null,null,null,null,null,null,null,null,null,null,null,null,null,null,null,null,null,null,null,null,null,null,null,null,null,null,1,"213z"]
[72,"Живоложнова","Александра","Олеговна","Живоложнова А. О.",null,null,null,null,"1999-05-06","гор. Буй Костромской обл.","РФ","ж","ОГБПОУ \"Буйский техникум градостроительства и\nпредпринимательства Костромской области\" г. Буй Костромская\nобласть",2018,null,"Костромская обл.,  Буй г.  Военный городок 1 ул. д.178 кв.15",null,null,null,null,null,null,null,null,"Экономический","38.03.01","Экономика","Бухгалтерский учет, анализ и аудит","5 лет","БАКАЛАВР","2-670","2018-08-20","по договору с полным возмещением затрат","000004784","2018-07-16",null,null,null,null,null,null,null,null,null,null,null,null,null,null,null,null,null,null,null,null,null,null,null,null,null,null,null,null,null,null,null,null,null,null,null,null,null,null,null,null,null,null,1,"214z"]
[73,"Карабельникова","Виктория","Генадьевна","Карабельникова В. Г.",null,null,null,null,"1995-03-18","деревня Панфилово Галичский район Костромская область","РФ","ж","ОГБПОУ \"Галичский аграрный техникум Костромской области\" г.\nГалич Костромская обл.",2015,null,"Костромская обл., Галичский р-н.  Ладыгино дер. д.37 кв.2",null,null,null,null,null,null,null,null,"Экономический","38.03.01","Экономика","Бухгалтерский учет, анализ и аудит","5 лет","БАКАЛАВР","2-670","2018-08-20","по договору с полным возмещением затрат","000004762","2018-06-26",null,null,null,null,null,null,null,null,null,null,null,null,null,null,null,null,null,null,null,null,null,null,null,null,null,null,null,null,null,null,null,null,null,null,null,null,null,null,null,null,null,null,1,"214z"]
[74,"Каурова","Елена","Сергеевна","Каурова Е. С.",null,null,null,null,"1973-03-28","пос Судиславль Костромская обл.","РФ","ж","Костромской технологический техникум Центросоюза России",1992,null,"Костромская обл., Костромской р-н, Шувалово п.  Победы ул. д.11 кв.11",null,null,null,null,null,null,null,null,"Экономический","38.03.01","Экономика","Бухгалтерский учет, анализ и аудит","5 лет","БАКАЛАВР","2-670","2018-08-20","по договору с полным возмещением затрат","000004790","2018-07-19",null,null,null,null,null,null,null,null,null,null,null,null,null,null,null,null,null,null,null,null,null,null,null,null,null,null,null,null,null,null,null,null,null,null,null,null,null,null,null,null,null,null,1,"215z"]
[75,"Кобзарь","Анна","Викторовна","Кобзарь А. В.",null,null,null,null,"1998-10-13","г. Кострома","РФ","ж","ФГОУ ВО Костромская ГСХА",2018,null,"Кострома г.  Костромская ул. д.86 кв.7",null,null,null,null,null,null,null,null,"Экономический","38.03.01","Экономика","Бухгалтерский учет, анализ и аудит","5 лет","БАКАЛАВР","2-670","2018-08-20","по договору с полным возмещением затрат","000004853","2018-06-27",null,null,null,null,null,null,null,null,null,null,null,null,null,null,null,null,null,null,null,null,null,null,null,null,null,null,null,null,null,null,null,null,null,null,null,null,null,null,null,null,null,null,1,"214z"]
[76,"Козырева","Полина","Евгеньевна","Козырева П. Е.",null,null,null,null,"1997-06-14","дер. Стрельниково Костромского р-на Костромской обл.","РФ","ж","ФГОУ ВО Костромская ГСХА",2018,null,"Костромская обл., Костромской р-н, Стрельниково д.  Омелинская ул. д.16 кв.",null,null,null,null,null,null,null,null,"Экономический","38.03.01","Экономика","Бухгалтерский учет, анализ и аудит","5 лет","БАКАЛАВР","2-670","2018-08-20","по договору с полным возмещением затрат","000004873","2018-08-08",null,null,null,null,null,null,null,null,null,null,null,null,null,null,null,null,null,null,null,null,null,null,null,null,null,null,null,null,null,null,null,null,null,null,null,null,null,null,null,null,null,null,1,"213z"]
[77,"Комогорова","Вероника","Игоревна","Комогорова В. И.",null,null,null,null,"1992-06-20","с. Нижняя Ведуга Семилукского р-на Воронежской обл.","РФ","ж","ОГБОУ СПО \"Костромской механико-технологический техникум\" г.\nКострома Костромская область",2013,null,"Кострома г., Якиманиха мкр., д. 4, кв. 61",null,null,null,null,null,null,null,null,"Экономический","38.03.01","Экономика","Бухгалтерский учет, анализ и аудит","5 лет","БАКАЛАВР","2-670","2018-08-20","по договору с полным возмещением затрат","000004838","2018-08-03",null,null,null,null,null,null,null,null,null,null,null,null,null,null,null,null,null,null,null,null,null,null,null,null,null,null,null,null,null,null,null,null,null,null,null,null,null,null,null,null,null,null,1,"214z"]
[78,"Крылова","Екатерина","Евгеньевна","Крылова Е. Е.",null,null,null,null,"1999-01-27",null,"РФ","ж","ОГБПОУ \"Костромской колледж отраслевых технологий\nстроительства и лесной промышленности\"",2018,null,"156901, Костромская обл., Волгореченск г., Набережная ул., д. 36, кв. 66",null,null,null,null,null,null,null,null,"Экономический","38.03.01","Экономика","Бухгалтерский учет, анализ и аудит","5 лет","БАКАЛАВР","2-670","2018-08-20","по договору с полным возмещением затрат","000004881","2018-08-09",null,null,null,null,null,null,null,null,null,null,null,null,null,null,null,null,null,null,null,null,null,null,null,null,null,null,null,null,null,null,null,null,null,null,null,null,null,null,null,null,null,null,1,"213z"]
[79,"Кудрявцев","Илья","Игоревич","Кудрявцев И. И.",null,null,null,null,"1991-08-02","с. Минское Костромского р-на Костромской обл.","РФ","м","ОГБОУ НПО \"Профессиональный лицей №15 г. Костромы\nКостромской области\"",2015,null,"156543 Костромская обл., Костромской р-н, Минское с., Куколевского ул., д. 13, кв. 12",null,null,null,null,null,null,null,null,"Экономический","38.03.01","Экономика","Бухгалтерский учет, анализ и аудит","5 лет","БАКАЛАВР","2-670","2018-08-20","по договору с полным возмещением затрат","000004918","2018-08-13",null,null,null,null,null,null,null,null,null,null,null,null,null,null,null,null,null,null,null,null,null,null,null,null,null,null,null,null,null,null,null,null,null,null,null,null,null,null,null,null,null,null,1,"213z"]
[80,"Кузнецова","Мария","Владимировна","Кузнецова М. В.",null,null,null,null,"1999-06-26","гор. Кострома","РФ","ж","ОГБПОУ \"Костромской торгово-экономический колледж\" г. Кострома",2018,null,"157951 Костромская обл., Красносельский р-н, Шолохово д., Зеленая ул., д. 19",null,null,null,null,null,null,null,null,"Экономический","38.03.01","Экономика","Бухгалтерский учет, анализ и аудит","5 лет","БАКАЛАВР","2-670","2018-08-20","по договору с полным возмещением затрат","000004888","2018-08-10",null,null,null,null,null,null,null,null,null,null,null,null,null,null,null,null,null,null,null,null,null,null,null,null,null,null,null,null,null,null,null,null,null,null,null,null,null,null,null,null,null,null,1,"213z"]
[81,"Кукушкина","Анастасия","Андреевна","Кукушкина А. А.",null,null,null,null,"1999-11-05","гор. Кострома","РФ","ж","ОГБПОУ \"Костромской торгово-экономический колледж\" г. Кострома",2018,null,"Кострома г.  Смирнова Юрия ул. д.63 кв.61",null,null,null,null,null,null,null,null,"Экономический","38.03.01","Экономика","Бухгалтерский учет, анализ и аудит","5 лет","БАКАЛАВР","2-670","2018-08-20","по договору с полным возмещением затрат","000004909","2018-08-10",null,null,null,null,null,null,null,null,null,null,null,null,null,null,null,null,null,null,null,null,null,null,null,null,null,null,null,null,null,null,null,null,null,null,null,null,null,null,null,null,null,null,1,"213z"]
[82,"Кустова","Анастасия","Алексеевна","Кустова А. А.",null,null,null,null,"1999-10-19","гор. Кострома","РФ","ж","ОГБПОУ \"Костромской политехнический колледж\" город Кострома",2018,null,"156016 Кострома г., Давыдовский-1 мкр., д. 26, кв. 9",null,null,null,null,null,null,null,null,"Экономический","38.03.01","Экономика","Бухгалтерский учет, анализ и аудит","5 лет","БАКАЛАВР","2-670","2018-08-20","по договору с полным возмещением затрат","000004857","2018-08-07",null,null,null,null,null,null,null,null,null,null,null,null,null,null,null,null,null,null,null,null,null,null,null,null,null,null,null,null,null,null,null,null,null,null,null,null,null,null,null,null,null,null,1,"214z"]
[83,"Максимова","Анна","Ивановна","Максимова А. И.",null,null,null,null,"2000-02-21","гор. Кострома","РФ","ж","ФГБОУ ВО \"Костромская государственная сельскохозяйственная академия\" пос. Караваево Костромского р-на Костромской обл.",2018,null,"157945, Костромская обл., Красносельский р-н, Подольское с., Волжская ул., д. 19",null,null,null,null,null,null,null,null,"Экономический","38.03.01","Экономика","Бухгалтерский учет, анализ и аудит","5 лет","БАКАЛАВР","2-670","2018-08-20","по договору с полным возмещением затрат","000004893","2018-08-10",null,null,null,null,null,null,null,null,null,null,null,null,null,null,null,null,null,null,null,null,null,null,null,null,null,null,null,null,null,null,null,null,null,null,null,null,null,null,null,null,null,null,1,"213z"]
[84,"Мохова","Людмила","Евгеньевна","Мохова Л. Е.",null,null,null,null,"1986-05-17","пос Красное-на-Волге Красносельского р-на. Костромской обл.","РФ","ж","НОУ СПО Костромской технологический техникум ОАО\n\"Костромакоопцентр\" г. Кострома",2005,null,"157940, Костромская обл., Красносельский р-н, Красное-на-Волге пгт., Заводская ул., д. 326",null,null,null,null,null,null,null,null,"Экономический","38.03.01","Экономика","Бухгалтерский учет, анализ и аудит","5 лет","БАКАЛАВР","2-670","2018-08-20","по договору с полным возмещением затрат","000004827","2018-08-02",null,null,null,null,null,null,null,null,null,null,null,null,null,null,null,null,null,null,null,null,null,null,null,null,null,null,null,null,null,null,null,null,null,null,null,null,null,null,null,null,null,null,1,"213z"]
[85,"Мягкова","Юлия","Александровна","Мягкова Ю. А.",null,null,null,null,"1981-09-26","пос Красное-на-Волге Красносельского р-на. Костромской обл.","РФ","ж","НОУ СПО Костромской технологический техникум ОАО\n\"Костромакоопцентр\" г. Кострома",2008,null,"156530 Костромская обл., Костромской р-н, Караваево п.  Никулино ул. д.16",null,null,null,null,null,null,null,null,"Экономический","38.03.01","Экономика","Бухгалтерский учет, анализ и аудит","5 лет","БАКАЛАВР","2-670","2018-08-20","по договору с полным возмещением затрат","000004825","2018-08-02",null,null,null,null,null,null,null,null,null,null,null,null,null,null,null,null,null,null,null,null,null,null,null,null,null,null,null,null,null,null,null,null,null,null,null,null,null,null,null,null,null,null,1,"213z"]
[86,"Нетужилов","Виктор","Владимирович","Нетужилов В. В.",null,null,null,null,"1982-04-10","гор. Кологрив Костромской области","РФ","м","ФГБОУ ВПО \"Костромская государственная сельскохозяйственная академия\" пос. Караваево Костромского р-на Костромской обл.",2004,null,"156530 Кострома г.  Проселочная ул. д.36 кв.70",null,null,null,null,null,null,null,null,"Экономический","38.03.01","Экономика","Бухгалтерский учет, анализ и аудит","5 лет","БАКАЛАВР","2-670","2018-08-20","по договору с полным возмещением затрат","000004843","2018-08-06",null,null,null,null,null,null,null,null,null,null,null,null,null,null,null,null,null,null,null,null,null,null,null,null,null,null,null,null,null,null,null,null,null,null,null,null,null,null,null,null,null,null,1,"213z"]
[87,"Никулина","Диана","Владимировна","Никулина Д. В.",null,null,null,null,"1998-03-31","гор. Буй Костромская область","РФ","ж","ОГБПОУ \"Костромской торгово-экономический колледж\" г. Кострома",2018,null,"157000, Костромская обл., Буй г., Карла Маркса ул., д. 28, кв.\n26",null,null,null,null,null,null,null,null,"Экономический","38.03.01","Экономика","Бухгалтерский учет, анализ и аудит","5 лет","БАКАЛАВР","2-670","2018-08-20","по договору с полным возмещением затрат","000004826","2018-08-02",null,null,null,null,null,null,null,null,null,null,null,null,null,null,null,null,null,null,null,null,null,null,null,null,null,null,null,null,null,null,null,null,null,null,null,null,null,null,null,null,null,null,1,"213z"]
[88,"Охапкина","Наталия","Алексеевна","Охапкина Н. А.",null,null,null,null,"1995-02-08","гор. Кострома","РФ","ж","ОГБПОУ \"Костромской техникум торговли и питания\" г. Кострома",2014,null,"156016 Кострома г., Давыдовский-1 мкр., д. 12, кв. 90",null,null,null,null,null,null,null,null,"Экономический","38.03.01","Экономика","Бухгалтерский учет, анализ и аудит","5 лет","БАКАЛАВР","2-670","2018-08-20","по договору с полным возмещением затрат","000004861","2018-08-07",null,null,null,null,null,null,null,null,null,null,null,null,null,null,null,null,null,null,null,null,null,null,null,null,null,null,null,null,null,null,null,null,null,null,null,null,null,null,null,null,null,null,1,"214z"]
[89,"Полищук","Мария","Александровна","Полищук М. А.",null,null,null,null,"1997-04-29","пос. Караваево Костромского р-на Костромской обл.","РФ","ж","ОГБПОУ \"Костромской торгово-экономический колледж\" г. Кострома",2016,null,"141255, Московская область, Пушкинский р-н, Ельдигино с., Ельдигино мкр.,\nд. 25, кв. 44",null,null,null,null,null,null,null,null,"Экономический","38.03.01","Экономика","Бухгалтерский учет, анализ и аудит","5 лет","БАКАЛАВР","2-670","2018-08-20","по договору с полным возмещением затрат","000004855","2018-08-07",null,null,null,null,null,null,null,null,null,null,null,null,null,null,null,null,null,null,null,null,null,null,null,null,null,null,null,null,null,null,null,null,null,null,null,null,null,null,null,null,null,null,1,"214z"]
[90,"Помана","Ксения","Николаевна","Помана К. Н.",null,null,null,null,"1993-12-15","ст. Николо-Полома Парфеньевского р-на Костромской обл.","РФ","ж","ФГБОУ ВПО \"Московский государственный машиностроительный\nуниверситет (МАМИ)\" Москва",2015,null,"143121, Московская область, Рузский р-н, Покровское с., ДОХБ ул., д. 19, кв. 56",null,null,null,null,null,null,null,null,"Экономический","38.03.01","Экономика","Бухгалтерский учет, анализ и аудит","5 лет","БАКАЛАВР","2-670","2018-08-20","по договору с полным возмещением затрат","000004879","2018-08-09",null,null,null,null,null,null,null,null,null,null,null,null,null,null,null,null,null,null,null,null,null,null,null,null,null,null,null,null,null,null,null,null,null,null,null,null,null,null,null,null,null,null,1,"213z"]
[91,"Рахматов","Нусратулло","Ибодуллоевич","Рахматов Н. И.",null,null,null,null,"1984-08-27",null,"РФ","м",null,null,null,"Таджикистан",null,null,null,null,null,null,null,null,"Экономический","38.03.01","Экономика","Бухгалтерский учет, анализ и аудит","5 лет","БАКАЛАВР","2-670","2018-08-20","по договору с полным возмещением затрат","000005044","2018-08-17",null,null,null,null,null,null,null,null,null,null,null,null,null,null,null,null,null,null,null,null,null,null,null,null,null,null,null,null,null,null,null,null,null,null,null,null,null,null,null,null,null,null,1,"213z"]
[92,"Садовникова","Елизавета","Андреевна","Садовникова Е. А.",null,null,null,null,"1999-03-21","гор. Волгореченск Костромская обл.","РФ","ж","ОГБПОУ \"Костромской колледж отраслевых технологий\nстроительства и лесной промышленности\"",2018,null,"156901, Костромская обл., Волгореченск г., Юбилейная ул., д. 6, кв. 14",null,null,null,null,null,null,null,null,"Экономический","38.03.01","Экономика","Бухгалтерский учет, анализ и аудит","5 лет","БАКАЛАВР","2-670","2018-08-20","по договору с полным возмещением затрат","000004891","2018-08-10",null,null,null,null,null,null,null,null,null,null,null,null,null,null,null,null,null,null,null,null,null,null,null,null,null,null,null,null,null,null,null,null,null,null,null,null,null,null,null,null,null,null,1,"213z"]
[93,"Саидова","Гунча",null,"Саидова Г. .",null,null,null,null,"1981-03-23",null,"РФ","м","Среднее образовательное учреждение школы № 11 г. Туркменабат  Область Лебап Страна Туркменистан",2018,null,"Туркменистан",null,null,null,null,null,null,null,null,"Экономический","38.03.01","Экономика","Бухгалтерский учет, анализ и аудит","5 лет","БАКАЛАВР","2-670","2018-08-20","по договору с полным возмещением затрат","000004787","2018-07-18",null,null,null,null,null,null,null,null,null,null,null,null,null,null,null,null,null,null,null,null,null,null,null,null,null,null,null,null,null,null,null,null,null,null,null,null,null,null,null,null,null,null,1,"214z"]
[94,"Смирнова","Мария","Сергеевна","Смирнова М. С.",null,null,null,null,"1999-09-17","г. Буй Костромская обл.","РФ","ж","ОГБПОУ \"Буйский техникум градостроительства и\nпредпринимательства Костромской области\" г. Буй Костромская\nобласть",2018,null,"Костромская обл., Буй г.  3 Интернационала ул. д.65 кв.45",null,null,null,null,null,null,null,null,"Экономический","38.03.01","Экономика","Бухгалтерский учет, анализ и аудит","5 лет","БАКАЛАВР","2-670","2018-08-20","по договору с полным возмещением затрат","000004841","2018-08-03",null,null,null,null,null,null,null,null,null,null,null,null,null,null,null,null,null,null,null,null,null,null,null,null,null,null,null,null,null,null,null,null,null,null,null,null,null,null,null,null,null,null,1,"213z"]
[95,"Соколов","Денис","Владимирович","Соколов Д. В.",null,null,null,null,"1986-04-13","пос. Красное-на-Волге Красносельского р-на Костромской обл.","РФ","м","Профессиональный лицей №15 г. Костромы",2004,null,"157940, Костромская обл., Красносельский р-н, Красное-на-Волге пгт., Восточный мкр., д. 6, кв. 30",null,null,null,null,null,null,null,null,"Экономический","38.03.01","Экономика","Бухгалтерский учет, анализ и аудит","5 лет","БАКАЛАВР","2-670","2018-08-20","по договору с полным возмещением затрат","000004939","2018-08-13",null,null,null,null,null,null,null,null,null,null,null,null,null,null,null,null,null,null,null,null,null,null,null,null,null,null,null,null,null,null,null,null,null,null,null,null,null,null,null,null,null,null,1,"213z"]
[96,"Соснин","Георгий","Михайлович","Соснин Г. М.",null,null,null,null,"1993-06-17","гор. Кострома","РФ","м","Муниципакльное вечернее (сменное) общеобразовательное\nучреждение вечернюю (сменную) общеобразовательную школу № 1\nгорода Костромы",2010,null,"156005, Кострома г., Крупяной пер., д. 7, кв. 4",null,null,null,null,null,null,null,null,"Экономический","38.03.01","Экономика","Бухгалтерский учет, анализ и аудит","5 лет","БАКАЛАВР","2-670","2018-08-20","по договору с полным возмещением затрат","000004876","2018-08-09",null,null,null,null,null,null,null,null,null,null,null,null,null,null,null,null,null,null,null,null,null,null,null,null,null,null,null,null,null,null,null,null,null,null,null,null,null,null,null,null,null,null,1,"213z"]
[97,"Увакина","Полина","Романовна","Увакина П. Р.",null,null,null,null,"1999-12-07","гор. Кострома","РФ","ж","ФГБОУ ВО \"Костромская государственная сельскохозяйственная академия\" пос. Караваево Костромского р-на Костромской обл.",2018,null,"157940, Костромская обл., Красносельский р-н, Красное-на-Волге пгт., Писанова ул., д. 11",null,null,null,null,null,null,null,null,"Экономический","38.03.01","Экономика","Бухгалтерский учет, анализ и аудит","5 лет","БАКАЛАВР","2-670","2018-08-20","по договору с полным возмещением затрат","000004895","2018-08-10",null,null,null,null,null,null,null,null,null,null,null,null,null,null,null,null,null,null,null,null,null,null,null,null,null,null,null,null,null,null,null,null,null,null,null,null,null,null,null,null,null,null,1,"213z"]
[98,"Улегина","Анастасия","Андреевна","Улегина А. А.",null,null,null,null,"1998-12-08","село Хомутово Островского района Костромской области","РФ","ж","ФГБОУ ВО \"Костромская государственная сельскохозяйственная академия\" пос. Караваево Костромского р-на Костромской обл.",2018,null,"Костромская обл., Островский р-н, Хомутово с.  д.2 кв.2",null,null,null,null,null,null,null,null,"Экономический","38.03.01","Экономика","Бухгалтерский учет, анализ и аудит","5 лет","БАКАЛАВР","2-670","2018-08-20","по договору с полным возмещением затрат","000004938","2018-08-13",null,null,null,null,null,null,null,null,null,null,null,null,null,null,null,null,null,null,null,null,null,null,null,null,null,null,null,null,null,null,null,null,null,null,null,null,null,null,null,null,null,null,1,"214z"]
[99,"Шведова","Клавдия","Владимировна","Шведова К. В.",null,null,null,null,"1998-04-26","гор. Кострома","РФ","ж","ОГБПОУ \" Костромской политехнический колледж\" гор. Кострома",2017,null,"Костромская обл., Красносельский р-н, Абрамово д.  д.17А кв.1",null,null,null,null,null,null,null,null,"Экономический","38.03.01","Экономика","Бухгалтерский учет, анализ и аудит","5 лет","БАКАЛАВР","2-670","2018-08-20","по договору с полным возмещением затрат","000004937","2018-08-13",null,null,null,null,null,null,null,null,null,null,null,null,null,null,null,null,null,null,null,null,null,null,null,null,null,null,null,null,null,null,null,null,null,null,null,null,null,null,null,null,null,null,1,"213z"]
[100,"Шелепова","Ирина","Николаевна","Шелепова И. Н.",null,null,null,null,"1989-11-27","пос. Поназырево Поназыревского района Костромской области","РФ","ж","ФГОУ СПО \"Костромской торгово-экономический колледж\"",2009,null,"157523, Костромская обл., Шарьинский р-н, Одоевское с., Животноводов ул., д. 6, кв. 2",null,null,null,null,null,null,null,null,"Экономический","38.03.01","Экономика","Бухгалтерский учет, анализ и аудит","5 лет","БАКАЛАВР","2-670","2018-08-20","по договору с полным возмещением затрат","000004866","2018-08-08",null,null,null,null,null,null,null,null,null,null,null,null,null,null,null,null,null,null,null,null,null,null,null,null,null,null,null,null,null,null,null,null,null,null,null,null,null,null,null,null,null,null,1,"214z"]
[101,"Шумилова","Алёна","Александровна","Шумилова А. А.",null,null,null,null,"1998-01-26","гор. Кострома","РФ","ж","ОГБПОУ \"Костромской автотранспортный колледж\" г. Кострома",2018,null,"156012  Кострома г., Красная Маевка ул., д. 12, кв. 1",null,null,null,null,null,null,null,null,"Экономический","38.03.01","Экономика","Бухгалтерский учет, анализ и аудит","5 лет","БАКАЛАВР","2-670","2018-08-20","по договору с полным возмещением затрат","000004860","2018-08-07",null,null,null,null,null,null,null,null,null,null,null,null,null,null,null,null,null,null,null,null,null,null,null,null,null,null,null,null,null,null,null,null,null,null,null,null,null,null,null,null,null,null,1,"213z"]
[102,"Щеглова","Анна","Николаевна","Щеглова А. Н.",null,null,null,null,"1988-04-04","с. Павино Павинского р-на Костромской обл.","РФ","ж","ГОУ СПО \"Шарьинский аграрный техникум Костромской области\"",2008,null,"Костромская обл., Павинский р-н, Павино с.  Луговая ул. д.6 кв.2",null,null,null,null,null,null,null,null,"Экономический","38.03.01","Экономика","Бухгалтерский учет, анализ и аудит","5 лет","БАКАЛАВР","2-670","2018-08-20","по договору с полным возмещением затрат","000004964","2018-08-15",null,null,null,null,null,null,null,null,null,null,null,null,null,null,null,null,null,null,null,null,null,null,null,null,null,null,null,null,null,null,null,null,null,null,null,null,null,null,null,null,null,null,1,"213z"]
[103,"Ясюкевичус","Вера","Леонидовна","Ясюкевичус В. Л.",null,null,null,null,"1996-11-16","пос. Октябрьский Манткровский район Костромская область","РФ","ж","ОГБПОУ \"Галичский аграрный техникум Костромской области\" г.\nГалич Костромская обл.",2017,null,"Костромская обл., Мантуровский р-н, Октябрьский п.  Садовая ул. д.23 кв.1",null,null,null,null,null,null,null,null,"Экономический","38.03.01","Экономика","Бухгалтерский учет, анализ и аудит","5 лет","БАКАЛАВР","2-670","2018-08-20","по договору с полным возмещением затрат","000004899","2018-08-10",null,null,null,null,null,null,null,null,null,null,null,null,null,null,null,null,null,null,null,null,null,null,null,null,null,null,null,null,null,null,null,null,null,null,null,null,null,null,null,null,null,null,1,"214z"]
[104,"Карпова ","Алёна"," Владимировна","Карпова  А.  .",null,null,null,null,"1999-08-07","гор. Кострома","РФ","ж","ФГБОУ ВО \"Костромской государственный университет\"",2018,null,"Кострома г. мкр Якиманиха д.10 кв. 36",null,null,null,null,null,null,null,null,"Экономический","38.03.01","Экономика","Бухгалтерский учет, анализ и аудит","5 лет","БАКАЛАВР","2-685","2018-08-31","по договору с полным возмещением затрат","000004984","2018-08-15",null,null,null,null,null,null,null,null,null,null,null,null,null,null,null,null,null,null,null,null,null,null,null,null,null,null,null,null,null,null,null,null,null,null,null,null,null,null,null,null,null,null,1,"213z"]
[105,"Гвоздева","Анастасия","Сергеевна","Гвоздева А. С.",null,null,null,null,"1999-03-05","г. Волгореченск Костромская обл.","РФ","ж","ОГБПОУ \"Костромской колледж отраслевых технологий строительства и лесной промышленности\"",2018,null,"Волгореченск г. Набережная ул. Д.34 кв.69",null,null,null,null,null,null,null,null,"Экономический","38.03.01","Экономика","Бухгалтерский учет, анализ и аудит","5 лет","БАКАЛАВР","2-685","2018-08-31","по договору с полным возмещением затрат","000005087","2018-08-27",null,null,null,null,null,null,null,null,null,null,null,null,null,null,null,null,null,null,null,null,null,null,null,null,null,null,null,null,null,null,null,null,null,null,null,null,null,null,null,null,null,null,1,"214z"]
[106,"Точилова","Екатерина","Александровна","Точилова Е. А.",null,null,null,null,"1999-01-04","гор. Кострома","РФ","ж","ФГБОУ ВО \"Костромская государственная сельскохозяйственная академия\" пос. Караваево Костромского р-на Костромской обл.",2018,null,"Костромской р-н, Караваево п., Штеймана ул., д.\n52, кв. 39",null,null,null,null,null,null,null,null,"Экономический","38.03.01","Экономика","Бухгалтерский учет, анализ и аудит","5 лет","БАКАЛАВР","2-685","2018-08-31","по договору с полным возмещением затрат","000005066","2018-08-22",null,null,null,null,null,null,null,null,null,null,null,null,null,null,null,null,null,null,null,null,null,null,null,null,null,null,null,null,null,null,null,null,null,null,null,null,null,null,null,null,null,null,1,"213z"]
[107,"Квашонкина","Александра","Сергеевна","Квашонкина А. С.",null,null,null,null,"2000-06-26","гор. Кострома","РФ","ж","МБОУ г. Костромы \"Вечерняя (сменная) общеобразовательная школа №2\"",2018,null,"Кострома г Михалевский б-р д. 54",null,null,null,null,null,null,null,null,"Экономический","38.03.01","Экономика","Бухгалтерский учет, анализ и аудит","5 лет","БАКАЛАВР","2-685","2018-08-31","по договору с полным возмещением затрат","000004786","2018-07-17",null,null,null,null,null,null,null,null,null,null,null,null,null,null,null,null,null,null,null,null,null,null,null,null,null,null,null,null,null,null,null,null,null,null,null,null,null,null,null,null,null,null,1,"213z"]
[108,"Ермолина","Юлия","Владимировна","Ермолина Ю. В.",null,null,null,null,"1981-04-07","п. Волгореченск Костромская обл.","РФ","ж","ФГОУ СПО \"Буйский сельскохозяйственный техникум\"",2006,null,"Ярославская обл. Ярославль г. ул. Ярославская, д. 33 кв. 21",null,null,null,null,null,null,null,null,"Экономический","38.03.01","Экономика","Бухгалтерский учет, анализ и аудит","5 лет","БАКАЛАВР","2-685","2018-08-31","по договору с полным возмещением затрат","000005080","2018-08-27",null,null,null,null,null,null,null,null,null,null,null,null,null,null,null,null,null,null,null,null,null,null,null,null,null,null,null,null,null,null,null,null,null,null,null,null,null,null,null,null,null,null,1,"215z"]
[109,"Аксёнова","Кристина","Анатольевна","Аксёнова К. А.",null,null,null,null,"1994-07-29","г. Галич Костромской обл.","РФ","ж","ОГБ ПОУ \"Галичский педагогический колледж Костромской области\"",2016,null,"Галич г. ул. Луночарского, д. 49",null,null,null,null,null,null,null,null,"Экономический","38.03.01","Экономика","Бухгалтерский учет, анализ и аудит","5 лет","БАКАЛАВР","2-685","2018-08-31","по договору с полным возмещением затрат","000005086","2018-08-27",null,null,null,null,null,null,null,null,null,null,null,null,null,null,null,null,null,null,null,null,null,null,null,null,null,null,null,null,null,null,null,null,null,null,null,null,null,null,null,null,null,null,1,"215z"]
[110,"Поленская ","Анна","Александровна","Поленская  А. А.",null,null,null,null,"1987-05-10","д.  Фатьяново Мантуровского р-на Костромской обл.","РФ","ж","ОГБПОУ \"Мантуровский политехнический техникум Костромской области",2018,null,"Мантурово г. ул. Герцена, д. 6 кв.5",null,null,null,null,null,null,null,null,"Экономический","38.03.01","Экономика","Бухгалтерский учет, анализ и аудит","5 лет","БАКАЛАВР","2-685","2018-08-31","по договору с полным возмещением затрат","000004823","2018-08-02",null,null,null,null,null,null,null,null,null,null,null,null,null,null,null,null,null,null,null,null,null,null,null,null,null,null,null,null,null,null,null,null,null,null,null,null,null,null,null,null,null,null,1,"213z"]
[111,"Артыкныязова ","Кумуш",null,"Артыкныязова  К. .",null,null,null,null,"1989-01-01","Республика Туркменистан","Туркменистан","ж","Национальный университет \"Юридическая академия Украины имени Ярослава Мудрого\"",2013,null,"Туркменистан",null,null,null,null,null,null,null,null,"Экономический","38.03.01","Экономика","Бухгалтерский учет, анализ и аудит","5 лет","БАКАЛАВР","2-685","2018-08-31","по договору с полным возмещением затрат","000005179","2018-08-28",null,null,null,null,null,null,null,null,null,null,null,null,null,null,null,null,null,null,null,null,null,null,null,null,null,null,null,null,null,null,null,null,null,null,null,null,null,null,null,null,null,null,1,"214z"]
[112,"Абыкова","Светлана","Валерьевна","Абыкова С. В.",null,null,null,null,"1981-02-01","г. Нея Костромская обл.","РФ","ж","Профессиональный лицей №15 г. Костромы",1999,null,"Костромской р-н, Караваево п., Учебный городок ул., д.\n24, кв. 114",null,null,null,null,null,null,null,null,"Экономический","38.03.01","Экономика","Бухгалтерский учет, анализ и аудит","5 лет","БАКАЛАВР","2-685","2018-08-31","по договору с полным возмещением затрат","000005074","2018-08-24",null,null,null,null,null,null,null,null,null,null,null,null,null,null,null,null,null,null,null,null,null,null,null,null,null,null,null,null,null,null,null,null,null,null,null,null,null,null,null,null,null,null,1,"213z"]
[113,"Артыкныязов","Тойгулы",null,"Артыкныязов Т. .",null,null,null,null,"1992-05-05","Республика Туркменистан","Туркменистан","м","Средняя школа №51 г. Ашхабад",2009,null,"Туркменистан",null,null,null,null,null,null,null,null,"Экономический","38.03.01","Экономика","Бухгалтерский учет, анализ и аудит","5 лет","БАКАЛАВР","2-685","2018-08-31","по договору с полным возмещением затрат","000005178","2018-08-28",null,null,null,null,null,null,null,null,null,null,null,null,null,null,null,null,null,null,null,null,null,null,null,null,null,null,null,null,null,null,null,null,null,null,null,null,null,null,null,null,null,null,1,"213z"]
[114,"Присяжнюк","Анастасия","Вячеславовна","Присяжнюк А. В.",null,null,null,null,"2000-05-21","гор. Кострома","РФ","ж","МБОУ СОШ №27 г. Кострома",2018,null,"Кострома г. Подгорная ул. д. 12 кв. 1",null,null,null,null,null,null,null,null,"Экономический","38.03.01","Экономика","Бухгалтерский учет, анализ и аудит","5 лет","БАКАЛАВР","2-685","2018-08-31","по договору с полным возмещением затрат","000005206","2018-08-28",null,null,null,null,null,null,null,null,null,null,null,null,null,null,null,null,null,null,null,null,null,null,null,null,null,null,null,null,null,null,null,null,null,null,null,null,null,null,null,null,null,null,1,"214z"]

{"sheet":"форма","index":2,"n_rows":199,"n_cols":27,"rows_kept":199,"cut":false,"hidden":false,"merged":[[187,2,187,3],[187,6,187,7],[188,2,188,3],[188,6,188,7],[189,2,189,3],[189,6,189,7],[193,2,193,3],[193,6,193,7],[194,2,194,3],[194,6,194,7],[190,2,190,3],[190,6,190,7],[191,2,191,3],[191,6,191,7],[192,2,192,3],[192,6,192,7],[180,2,180,4],[180,6,180,7],[181,2,181,4],[181,6,181,7],[184,2,184,3],[184,6,184,7],[185,2,185,3],[185,6,185,7],[186,2,186,3],[186,6,186,7],[175,2,175,4],[175,6,175,7],[176,2,176,4],[176,6,176,7],[177,2,177,4],[177,6,177,7],[178,2,178,4],[178,6,178,7],[179,2,179,4],[179,6,179,7],[170,2,170,4],[170,6,170,7],[171,2,171,4],[171,6,171,7],[172,2,172,4],[172,6,172,7],[173,2,173,4],[173,6,173,7],[174,2,174,4],[174,6,174,7],[165,2,165,4],[165,6,165,7],[166,2,166,4],[166,6,166,7],[167,2,167,4],[167,6,167,7],[168,2,168,4],[168,6,168,7],[169,2,169,4],[169,6,169,7],[158,1,158,2],[161,2,161,4],[161,6,161,7],[162,2,162,4],[162,6,162,7],[163,2,163,4],[163,6,163,7],[164,2,164,4],[164,6,164,7],[149,1,149,2],[150,1,150,2],[151,1,151,2],[152,1,152,2],[153,1,153,2],[154,1,154,2],[155,1,155,2],[156,1,156,2],[157,1,157,2],[140,1,140,2],[141,1,141,2],[142,1,142,2],[143,1,143,2],[144,1,144,2],[145,1,145,2],[146,1,146,2],[147,1,147,2],[148,1,148,2],[131,1,131,2],[132,1,132,2],[133,1,133,2],[134,1,134,2],[135,1,135,2],[136,1,136,2],[137,1,137,2],[138,1,138,2],[139,1,139,2],[122,1,122,2],[123,1,123,2],[124,1,124,2],[125,1,125,2],[126,1,126,2],[127,1,127,2],[128,1,128,2],[129,1,129,2],[130,1,130,2],[113,1,113,2],[114,1,114,2],[115,1,115,2],[116,1,116,2],[117,1,117,2],[118,1,118,2],[119,1,119,2],[120,1,120,2],[121,1,121,2],[104,1,104,2],[105,1,105,2],[106,1,106,2],[107,1,107,2],[108,1,108,2],[109,1,109,2],[110,1,110,2],[111,1,111,2],[112,1,112,2],[95,1,95,2],[96,1,96,2],[97,1,97,2],[98,1,98,2],[99,1,99,2],[100,1,100,2],[101,1,101,2],[102,1,102,2],[103,1,103,2],[86,1,86,2],[87,1,87,2],[88,1,88,2],[89,1,89,2],[90,1,90,2],[91,1,91,2],[92,1,92,2],[93,1,93,2],[94,1,94,2],[77,1,77,2],[78,1,78,2],[79,1,79,2],[80,1,80,2],[81,1,81,2],[82,1,82,2],[83,1,83,2],[84,1,84,2],[85,1,85,2],[68,1,68,2],[69,1,69,2],[70,1,70,2],[71,1,71,2],[72,1,72,2],[73,1,73,2],[74,1,74,2],[75,1,75,2],[76,1,76,2],[66,1,66,2],[67,1,67,2],[51,1,51,7],[58,1,58,2],[59,1,59,2],[60,1,60,2],[61,1,61,2],[62,1,62,2],[63,1,63,2],[3,25,5,26],[47,1,47,4],[47,6,47,7],[48,1,48,4],[48,6,48,7],[49,1,49,4],[49,6,49,7],[64,1,64,2],[65,1,65,2]]}
["Федеральное государственное бюджетное образовательное учреждения высшего  образования",null,null,null,null,null,null,null,40,null,null,null,null,null,null,"января",null,null,null,null,null,null,null,null,null,"Папка","C:\\5\\"]
[" «Костромская государственная сельскохозяйственная академия»",null,null,null,null,null,null,null,null,{"$f":"IF(J3=\"Экономический\",деканаты!F2,IF(J3=\"Архитектурно-строительный\",деканаты!F3,IF(J3=\"Агробизнеса\",деканаты!F4,IF(J3=\"Ветеринарной медицины и зоотехнии\",деканаты!F5,IF(J3=\"Инженерно-технологический\",деканаты!F6,IF(J3=\"Электроэнергетический\",деканаты!F7,0))))))","v":"И.о. декана"},null,null,null,null,null,"февраля",null,null,null,null,null,null,null,null,null,"Имя файла",{"$f":"CONCATENATE(R11,\"_\",\"УК_\",S25)","v":"160626_УК_2016"}]
[null,{"$f":"J3","v":"Экономический"},null,null,null,null,null,null,null,{"$f":"INDEX(Предметы!$B$6:$JR$65,$I1,25)","v":"Экономический"},null,null,null,"Удовлетворительно","Удовлет.","марта",null,null,null,null,null,null,null,null,null,null,{"$f":"NOW()","v":"2018-09-26T14:37:14.560"}]
[null,"Факультет",null,null,null,null,null,null,null,null,null,null,null,"Хорошо","Хорошо","апреля",null,null,null,null,null,null,null,null,null,"- сохранить карточку в PDF"]
[null,{"$f":"CONCATENATE(J5,\" \",K5)","v":"38.03.01 Экономика"},null,null,null,null,null,null,null,{"$f":"INDEX(Предметы!$B$6:$JR$65,$I1,26)","v":"38.03.01"},{"$f":"INDEX(Предметы!$B$6:$JR$65,$I1,27)","v":"Экономика"},null,null,"Отлично","Отлично","мая"]
[null,"Направление",null,null,null,null,null,null,null,null,null,null,null,"Зачет","Зачет","июня"]
[null,{"$f":"J7","v":"Бухгалтерский учет, анализ и аудит"},null,null,null,null,null,null,null,{"$f":"INDEX(Предметы!$B$6:$JR$65,$I1,28)","v":"Бухгалтерский учет, анализ и аудит"},null,null,null,null,null,"июля"]
[null,"Профиль",null,null,null,null,null,null,null,null,null,null,null,null,null,"августа"]
["Учебная  карточка  студента",null,null,null,null,null,null,null,null,null,null,null,null,null,null,"сентября"]
[null,null,null,null,null,null,"Личное  дело №",null,null,null,null,null,null,null,null,"октября"]
[1,{"$f":"CONCATENATE(J11,\" \",K11,\" \",L11)","v":"Ткаченко Евгения Владимировна"},null,null,null,null,null,null,1,{"$f":"INDEX(Предметы!$B$6:$JR$65,$I1,1)","v":"Ткаченко"},{"$f":"INDEX(Предметы!$B$6:$JR$65,$I1,2)","v":"Евгения"},{"$f":"INDEX(Предметы!$B$6:$JR$65,$I1,3)","v":"Владимировна"},{"$f":"INDEX(Предметы!$B$6:$JR$65,$I1,12)","v":"ж"},{"$f":"IF(M11=\"м\",\"\",\"а\")","v":"а"},null,"ноября",null,{"$f":"INDEX(Предметы!$B$6:$JR$65,$I1,24)","v":160626}]
[null,"Фамилия, имя, отчество",null,null,null,null,null,null,1,null,null,null,null,null,null,"декабря"]
[{"$f":"A11+1","v":2},{"$f":"CONCATENATE(L13,\" \",O13,\" \",M13)","v":"13 июля 1990"},null,null,null,null,null,null,1,{"$f":"INDEX(Предметы!$B$6:$JR$65,$I1,9)","v":33067},{"$f":"TEXT(J13,\"ДД ММММ ГГГГ\")","v":"13 Июль 1990"},{"$f":"TEXT(J13,\"ДД\")","v":"13"},{"$f":"TEXT(J13,\"ГГГГ\")","v":"1990"},{"$f":"VALUE(TEXT(J13,\"М\"))","v":7},{"$f":"CHOOSE(N13,$P$1,$P$2,$P$3,$P$4,$P$5,$P$6,P7,P8,P9,P10,P11,P12)","v":"июля"}]
[null,"Год и месяц рождения",null,null,null,null,null,null,1]
[{"$f":"A13+1","v":3},{"$f":"J15","v":"г. Артем Приморского края"},null,null,null,null,null,null,1,{"$f":"INDEX(Предметы!$B$6:$JR$65,$I1,10)","v":"г. Артем Приморского края"}]
[null,"Место рождения",null,null,null,null,null,null,1]
[{"$f":"A15+1","v":4},{"$f":"J17","v":"РФ"},null,null,null,null,null,null,1,{"$f":"INDEX(Предметы!$B$6:$JR$65,$I1,11)","v":"РФ"}]
[null,"Гражданство",null,null,null,null,null,null,1]
[{"$f":"A17+1","v":5},{"$f":"J19","v":"г. Екатеринбург ГОУ СПО Уральский государственный колледж имени И.И. Ползунова"},null,null,null,null,"  год окончания  ",{"$f":"K19","v":2010},1,{"$f":"INDEX(Предметы!$B$6:$JR$65,$I1,13)","v":"г. Екатеринбург ГОУ СПО Уральский государственный колледж имени И.И. Ползунова"},{"$f":"INDEX(Предметы!$B$6:$JR$65,$I1,14)","v":2010}]
[null,"Что окончил (а)",null,null,null,null,null,null,1]
[{"$f":"A19+1","v":6},{"$f":"J21","v":"не замужем"},null,null,null,null,null,null,1,{"$f":"INDEX(Предметы!$B$6:$JR$65,$I1,15)","v":"не замужем"}]
[null,"Семейное положение",null,null,null,null,null,null,1]
[{"$f":"A21+1","v":7},{"$f":"J23","v":"620074 Свердловская обл.,   г. Екатеринбург,  ул.  Олега Кошевого, д. 36, кв. 52"},null,null,null,null,null,null,null,{"$f":"INDEX(Предметы!$B$6:$JR$65,$I1,16)","v":"620074 Свердловская обл.,   г. Екатеринбург,  ул.  Олега Кошевого, д. 36, кв. 52"}]
[null,"Адрес местожительства"]
[{"$f":"A23+1","v":8},{"$f":"CONCATENATE(\"Зачислен\",N11,\" в вуз приказ № \",J25,\"   от  \",L25,\"\")","v":"Зачислена в вуз приказ № 2-542   от  19.08.2016"},null,null,null,null,null,null,1,{"$f":"INDEX(Предметы!$B$6:$JR$65,$I1,31)","v":"2-542"},{"$f":"INDEX(Предметы!$B$6:$JR$65,$I1,32)","v":42601},{"$f":"TEXT(K25,\"ДД.ММ.ГГГГ\")","v":"19.08.2016"},null,null,null,null,null,null,{"$f":"TEXT(K25,\"ГГГГ\")","v":"2016"}]
[null,{"$f":"CONCATENATE(J26,M26)","v":"по договору с полным возмещение затрат   договор № 000004087 от 08 08 2016"},null,null,null,null,null,null,1,{"$f":"INDEX(Предметы!$B$6:$JR$65,$I1,33)","v":"по договору с полным возмещение затрат"},{"$f":"INDEX(Предметы!$B$6:$JR$65,$I1,34)","v":"000004087"},{"$f":"INDEX(Предметы!$B$6:$JR$65,$I1,35)","v":42590},{"$f":"IF(K26=0,\"\",CONCATENATE(\"   договор № \",K26,\" от \",TEXT(L26,\"ДД ММ ГГГГ\") ))","v":"   договор № 000004087 от 08 08 2016"}]
[{"$f":"A25+I25","v":9},{"$f":"CONCATENATE(\"Трудовая  книжка \",M27)","v":"Трудовая  книжка "},null,null,null,null,null,null,{"$f":"IF(J27=0,0,1)","v":0},{"$f":"INDEX(Предметы!$B$6:$JR$65,$I1,17)","v":0},{"$error":"#REF!"},{"$error":"#REF!"},{"$f":"IF(J27=0,\"\",CONCATENATE(\"  № \",J27,\"  дата выдачи \",TEXT(K27,\"ДД.ММ.ГГГГ\"),\"  выдана \",L27))","v":""}]
[null,null,null,null,null,null,null,null,{"$f":"I27","v":0}]
[{"$f":"A27+I27","v":9},{"$f":"CONCATENATE(\"Отчислен\",N11,\" \",M29)","v":"Отчислена "},null,null,null,null,null,null,{"$f":"IF(J29=0,0,1)","v":0},{"$f":"INDEX(Предметы!$B$6:$JR$65,$I1,38)","v":0},{"$f":"INDEX(Предметы!$B$6:$JR$122,$I1,39)","v":0},{"$f":"INDEX(Предметы!$B$6:$JR$122,$I1,40)","v":0},{"$f":"IF(J29=0,\"\",CONCATENATE(\"  приказ №  \",J29,\"  от \",TEXT(K29,\"ДД.ММ.ГГГГ\"),\"   \",IF(L29=0,\"\",L29)))","v":""}]
[null,null,null,null,null,null,null,null,{"$f":"I29","v":0}]
[{"$f":"A29+I29","v":9},{"$f":"CONCATENATE(\"Востановлен\",N11,\" \",M31)","v":"Востановлена "},null,null,null,null,null,null,{"$f":"IF(J31=0,0,1)","v":0},{"$f":"INDEX(Предметы!$B$6:$JR$65,$I$1,41)","v":0},{"$f":"INDEX(Предметы!$B$6:$JR$65,$I$1,42)","v":0},{"$f":"INDEX(Предметы!$B$6:$JR$65,$I$1,43)","v":0},{"$f":"IF(J31=0,\"\",CONCATENATE(\"  приказ №  \",J31,\"  от \",TEXT(K31,\"ДД.ММ.ГГГГ\"),\"   \",IF(L31=0,\"\",L31)))","v":""}]
[null,null,null,null,null,null,null,null,{"$f":"I31","v":0}]
[{"$f":"A31+I31","v":9},{"$f":"CONCATENATE(\"Предоставлен длительный отпуск\",O33)","v":"Предоставлен длительный отпуск"},null,null,null,null,null,null,{"$f":"IF(J33=0,0,1)","v":0},{"$f":"INDEX(Предметы!$B$6:$JR$65,$I1,44)","v":0},{"$f":"INDEX(Предметы!$B$6:$JR$65,$I1,45)","v":0},{"$f":"INDEX(Предметы!$B$6:$JR$65,$I1,46)","v":0},{"$f":"INDEX(Предметы!$B$6:$JR$65,$I1,47)","v":0},{"$f":"INDEX(Предметы!$B$6:$JR$65,$I1,48)","v":0},{"$f":"IF(J33=0,\"\",CONCATENATE(\" сроком на \",IF(N34=0,\"____\",N34),O34,\"     приказ № \",J33,\" от \",J34))","v":""}]
[null,{"$f":"L33","v":0},null,{"$f":"IF(J33=0,\"\",CONCATENATE(\"с \",K34,\" по \",L34))","v":""},null,null,null,null,{"$f":"I33","v":0},{"$f":"TEXT(K33,\"ДД.ММ.ГГГГ\")","v":"00.01.1900"},{"$f":"TEXT(M33,\"ДД.ММ.ГГГГ\")","v":"00.01.1900"},{"$f":"TEXT(N33,\"ДД.ММ.ГГГГ\")","v":"00.01.1900"},{"$f":"N33-M33+182","v":182},{"$f":"INT(M34/365+0.1)","v":0},{"$f":"IF(N34=1,\" год\",\" года\")","v":" года"}]
[{"$f":"A33+I33","v":9},{"$f":"CONCATENATE(\"Переведен\",N11,M35)","v":"Переведена на 2 курс приказ № 2-339   от  03.05.2018"},null,null,null,null,null,null,1,{"$f":"INDEX(Предметы!$B$6:$JR$65,$I1,49)","v":"2-339"},{"$f":"INDEX(Предметы!$B$6:$JR$65,$I1,50)","v":43223},{"$f":"TEXT(K35,\"ДД.ММ.ГГГГ\")","v":"03.05.2018"},{"$f":"IF(J35=0,\"\",CONCATENATE(\" на 2 курс приказ № \",J35,\"   от  \",L35,\"\"))","v":" на 2 курс приказ № 2-339   от  03.05.2018"}]
[]
[{"$f":"A35+I35","v":10},{"$f":"CONCATENATE(\"Переведен\",N11,M37)","v":"Переведена"},null,null,null,null,null,null,1,{"$f":"INDEX(Предметы!$B$6:$JR$65,$I1,51)","v":0},{"$f":"INDEX(Предметы!$B$6:$JR$65,$I1,52)","v":0},{"$f":"TEXT(K37,\"ДД.ММ.ГГГГ\")","v":"00.01.1900"},{"$f":"IF(J37=0,\"\",CONCATENATE(\" на 3 курс приказ № \",J37,\"   от  \",L37,\"\"))","v":""}]
[]
[{"$f":"A37+I37","v":11},{"$f":"CONCATENATE(\"Переведен\",N11,M39)","v":"Переведена"},null,null,null,null,null,null,1,{"$f":"INDEX(Предметы!$B$6:$JR$65,$I1,53)","v":0},{"$f":"INDEX(Предметы!$B$6:$JR$65,$I1,54)","v":0},{"$f":"TEXT(K39,\"ДД.ММ.ГГГГ\")","v":"00.01.1900"},{"$f":"IF(J39=0,\"\",CONCATENATE(\" на 4 курс приказ № \",J39,\"   от  \",L39,\"\"))","v":""}]
[]
[{"$f":"A39+I39","v":12},{"$f":"CONCATENATE(\"Переведен\",N11,M41)","v":"Переведена"},null,null,null,null,null,null,1,{"$f":"INDEX(Предметы!$B$6:$JR$65,$I1,55)","v":0},{"$f":"INDEX(Предметы!$B$6:$JR$65,$I1,56)","v":0},{"$f":"TEXT(K41,\"ДД.ММ.ГГГГ\")","v":"00.01.1900"},{"$f":"IF(J41=0,\"\",CONCATENATE(\" на 5 курс приказ № \",J41,\"   от  \",L41,\"\"))","v":""}]
[null,null,null,null,null,null,null,null,1]
[{"$f":"A41+I41","v":13},{"$f":"CONCATENATE(\"Сдано за весь срок обучения \",N43,\" предметов, средний балл  \",O43)","v":"Сдано за весь срок обучения 10 предметов, средний балл  0,82"},null,null,null,null,null,null,1,{"$f":"INDEX(Предметы!$B$6:$JR$145,$I1,271)","v":2},{"$f":"INDEX(Предметы!$B$6:$JR$145,$I1,272)","v":5},{"$f":"INDEX(Предметы!$B$6:$JR$145,$I1,273)","v":3},{"$f":"INDEX(Предметы!$B$6:$JR$145,$I1,274)","v":7},{"$f":"INDEX(Предметы!$B$6:$JR$145,$I1,275)","v":10},{"$f":"INDEX(Предметы!$B$6:$JR$145,$I1,269)","v":0.82}]
[null,{"$f":"CONCATENATE(\"  из них: отлично - \",L44,\";  хорошо - \",K44,\"; удовлетворительно - \",J44)","v":"  из них: отлично - 3;  хорошо - 5; удовлетворительно - 2"},null,null,null,null,null,null,1,{"$f":"IF(J43=0,\"нет\",J43)","v":2},{"$f":"IF(K43=0,\"нет\",K43)","v":5},{"$f":"IF(L43=0,\"нет\",L43)","v":3},{"$f":"IF(M43=0,\"нет\",M43)","v":7}]
[{"$f":"A43+I43","v":14},{"$f":"CONCATENATE(\"Допущен\",N11,\" к защите выпускной квалификационной работы \",M45)","v":"Допущена к защите выпускной квалификационной работы "},null,null,null,null,null,null,1,{"$f":"INDEX(Предметы!$B$6:$JR$65,$I1,61)","v":0},{"$f":"INDEX(Предметы!$B$6:$JR$65,$I1,62)","v":0},{"$f":"TEXT(K45,\"ДД.ММ.ГГГГ\")","v":"00.01.1900"},{"$f":"IF(J45=0,\"\",CONCATENATE(\"  приказ №  \",J45,\"  от \",L45))","v":""}]
[null,null,null,null,null,null,null,null,1]
[{"$f":"A45+I45","v":15},"Итоговый экзамен:",null,null,null,null,null,null,1]
["№","Название дисциплины",null,null,null,"Дата сдачи экзамена","Экзаменационная  оценка",null,1]
[{"$f":"IF(B49=0,\"\",1)","v":1},{"$f":"IF(J49=0,\"\",J49)","v":""},null,null,null,{"$f":"IF(K49=0,\"\",TEXT(K49,\"ДД.ММ.ГГГГ\"))","v":""},{"$f":"IF(L49=0,\"\",M49)","v":""},null,{"$f":"IF(J49=0,0,1)","v":0},{"$f":"INDEX(Предметы!$B$6:$JR$65,$I1,63)","v":0},{"$f":"INDEX(Предметы!$B$6:$JR$65,$I1,64)","v":0},{"$f":"INDEX(Предметы!$B$6:$JR$65,$I1,65)","v":0},{"$f":"CHOOSE(L49,$N$1,$N$2,$N$3,$N$4,$N$5,$N$6)","v":{"$error":"#VALUE!"}}]
[{"$f":"IF(B50=0,\"\",2)","v":2},{"$f":"IF(J50=0,\"\",J50)","v":""},null,null,null,{"$f":"IF(K50=0,\"\",TEXT(K50,\"ДД.ММ.ГГГГ\"))","v":""},null,null,{"$f":"IF(J50=0,0,1)","v":0},{"$f":"INDEX(Предметы!$B$6:$JR$65,$I1,66)","v":0},{"$f":"INDEX(Предметы!$B$6:$JR$65,$I1,67)","v":0},{"$f":"INDEX(Предметы!$B$6:$JR$65,$I1,68)","v":0},{"$f":"CHOOSE(L50,$N$1,$N$2,$N$3,$N$4,$N$5,$N$6)","v":{"$error":"#VALUE!"}}]
[null,null,null,null,null,null,null,null,1]
[{"$f":"A47+I47","v":16},{"$f":"CONCATENATE(\"Дипломный проект (работу) выполнил\",N11,\" на тему: \"\"\",IF(J52=0,\"\",J52),\"\"\"\")","v":"Дипломный проект (работу) выполнила на тему: \"\""},null,null,null,null,null,null,1,{"$f":"INDEX(Предметы!$B$6:$JR$65,$I1,69)","v":0}]
[null,{"$f":"CONCATENATE(\"и защитил\",N11,\"   \",IF(K54=0,\"____________\",L54),\"    с оценкой   \",IF(J53=0,\"__________\",K53))","v":"и защитила   ____________    с оценкой   __________"},null,null,null,null,null,null,1,{"$f":"INDEX(Предметы!$B$6:$JR$65,$I1,70)","v":0},{"$f":"CHOOSE(J53,$N$1,$N$2,$N$3,$N$4,$N$5,$N$6)","v":{"$error":"#VALUE!"}}]
[{"$f":"A52+I52","v":17},{"$f":"CONCATENATE(\"Постановлением государственной аттестационной комиссии  (протокол № \",IF(J54=0,\"____\",J54),\" от \",IF(J54=0,\"____________\",L54),\" )\")","v":"Постановлением государственной аттестационной комиссии  (протокол № ____ от ____________ )"},null,null,null,null,null,null,1,{"$f":"INDEX(Предметы!$B$6:$JR$65,$I1,71)","v":0},{"$f":"INDEX(Предметы!$B$6:$JR$65,$I1,72)","v":0},{"$f":"TEXT(K54,\"ДД.ММ.ГГГГ\")","v":"00.01.1900"},{"$f":"INDEX(Предметы!$B$6:$JR$65,$I1,30)","v":"БАКАЛАВР"}]
[null,{"$f":"CONCATENATE(\"присвоена квалификация  \",IF(J54=0,\"__________\",M54))","v":"присвоена квалификация  __________"},null,null,null,null,null,null,1]
[null,{"$f":"CONCATENATE(\"Диплом с отличием, без отличия, за № \",M56,\" выдан \",L56)","v":"Диплом с отличием, без отличия, за № 0 выдан 00.01.1900"},null,null,null,null,null,null,{"$f":"IF(K56=0,0,1)","v":0},null,{"$f":"INDEX(Предметы!$B$6:$JR$65,$I1,77)","v":0},{"$f":"TEXT(K56,\"ДД.ММ.ГГГГ\")","v":"00.01.1900"},{"$f":"INDEX(Предметы!$B$6:$JR$65,$I1,76)","v":0}]
[null,{"$f":"CONCATENATE(J2,\" факультета ______________________\",J57)","v":"И.о. декана факультета ______________________Н.А. Середа"},null,null,null,null,null,null,1,{"$f":"IF(J3=\"Экономический\",деканаты!D2,IF(J3=\"Архитектурно-строительный\",деканаты!D3,IF(J3=\"Агробизнеса\",деканаты!D4,IF(J3=\"Ветеринарной медицины и зоотехнии\",деканаты!D5,IF(J3=\"Инженерно-технологический\",деканаты!D6,IF(J3=\"Электроэнергетический\",деканаты!D7,0))))))","v":"Н.А. Середа"},3,3,3,3,3,3,3,3,3,3,3,3]
[{"$f":"A54+I53","v":18},"Выполнение учебного плана",null,null,null,null,null,null,1,null,1,2,3,4,5,6,7,8,9,10,11,12]
["Семестры","Название    предмета",null,"Число часов по плану/ зачетных единиц","Экзамена- \nционная \nоценка","Отметка о зачете","Дата ведомости",null,1,{"$f":"I1","v":40},{"$f":"COUNTIF(Предметы!$CC$2:$JG$2,1)","v":0},{"$f":"COUNTIF(Предметы!$CC$2:$JG$2,2)","v":8},{"$f":"COUNTIF(Предметы!$CC$2:$JG$2,3)","v":5},{"$f":"COUNTIF(Предметы!$CC$2:$JG$2,4)","v":9},{"$f":"COUNTIF(Предметы!$CC$2:$JG$2,5)","v":6},{"$f":"COUNTIF(Предметы!$CC$2:$JG$2,6)","v":8},{"$f":"COUNTIF(Предметы!$CC$2:$JG$2,7)","v":5},{"$f":"COUNTIF(Предметы!$CC$2:$JG$2,8)","v":8},{"$f":"COUNTIF(Предметы!$CC$2:$JG$2,9)","v":12},{"$f":"COUNTIF(Предметы!$CC$2:$JG$2,10)","v":2},{"$f":"COUNTIF(Предметы!$CC$2:$JG$2,11)","v":0},{"$f":"COUNTIF(Предметы!$CC$2:$JG$2,12)","v":0}]
[{"$f":"K60","v":2},{"$f":"Предметы!CC5","v":"Делопроизводство и документооборот"},null,{"$f":"CONCATENATE(Предметы!CC3,\" / \",Предметы!CC3/36)","v":"216 / 6"},{"$f":"IF(AND(L60>2, L60<6),P60,\"------\")","v":"Удовлет."},{"$f":"IF(M60=0,\"------\",IF(L60=6,P60,\"------\"))","v":"------"},{"$f":"CONCATENATE(IF(M60=0,\"------\",N60),\"  \",IF(O60=0,\"\",CONCATENATE(\"№ \",O60)))","v":"08.05.2018  № 784"},null,{"$f":"IF(M60=0,0,1)","v":1},5,{"$f":"Предметы!CC2","v":2},{"$f":"INDEX(Предметы!$B$6:$JR$65,$I1,80)","v":3},{"$f":"INDEX(Предметы!$B$6:$JR$65,$I1,81)","v":43228},{"$f":"TEXT(M60,\"ДД.ММ.ГГГГ\")","v":"08.05.2018"},{"$f":"INDEX(Предметы!$B$6:$JR$65,$I1,82)","v":784},{"$f":"CHOOSE(L60,$O$1,$O$2,$O$3,$O$4,$O$5,$O$6)","v":"Удовлет."}]
[{"$f":"K61","v":2},{"$f":"Предметы!CF5","v":"Введение в профессию и основы научных исследований"},null,{"$f":"CONCATENATE(Предметы!CF3,\" / \",Предметы!CF3/36)","v":"108 / 3"},{"$f":"IF(AND(L61>2, L61<6),P61,\"------\")","v":"------"},{"$f":"IF(M61=0,\"------\",IF(L61=6,P61,\"------\"))","v":"Зачет"},{"$f":"CONCATENATE(IF(M61=0,\"------\",N61),\"  \",IF(O61=0,\"\",CONCATENATE(\"№ \",O61)))","v":"10.06.2017  "},null,{"$f":"IF(M61=0,0,1)","v":1},{"$f":"J60+1","v":6},{"$f":"Предметы!CF2","v":2},{"$f":"INDEX(Предметы!$B$6:$JR$65,$I1,83)","v":6},{"$f":"INDEX(Предметы!$B$6:$JR$65,$I1,84)","v":"10.06.2017  "},"10.06.2017",{"$f":"INDEX(Предметы!$B$6:$JR$65,$I1,85)","v":0},{"$f":"CHOOSE(L61,$O$1,$O$2,$O$3,$O$4,$O$5,$O$6)","v":"Зачет"}]
[2,{"$f":"Предметы!CI5","v":"История"},null,{"$f":"CONCATENATE(Предметы!CI3,\" / \",Предметы!CI3/36)","v":"108 / 3"},"Хорошо","------","10.06.2017  ",null,1,{"$f":"J61+1","v":7},{"$f":"Предметы!CI2","v":2},{"$f":"INDEX(Предметы!$B$6:$JR$65,$I1,86)","v":4},{"$f":"INDEX(Предметы!$B$6:$JR$65,$I1,87)","v":"10.06.2017  "},"10.06.2017",{"$f":"INDEX(Предметы!$B$6:$JR$65,$I1,88)","v":0},"Хорошо"]
[2,{"$f":"Предметы!CL5","v":"Психология"},null,{"$f":"CONCATENATE(Предметы!CL3,\" / \",Предметы!CL3/36)","v":"72 / 2"},"------","Зачет","10.06.2017  ",null,1,8,{"$f":"Предметы!CL2","v":2},{"$f":"INDEX(Предметы!$B$6:$JR$65,$I1,89)","v":6},{"$f":"INDEX(Предметы!$B$6:$JR$65,$I1,90)","v":"10.06.2017  "},"10.06.2017",{"$f":"INDEX(Предметы!$B$6:$JR$65,$I1,91)","v":0},"Зачет"]
[2,{"$f":"Предметы!CO5","v":"Математический анализ"},null,{"$f":"CONCATENATE(Предметы!CO3,\" / \",Предметы!CO3/36)","v":"216 / 6"},"Отлично","------","11.10.2017  ",null,1,9,{"$f":"Предметы!CO2","v":2},{"$f":"INDEX(Предметы!$B$6:$JR$65,$I1,92)","v":5},{"$f":"INDEX(Предметы!$B$6:$JR$65,$I1,93)","v":"11.10.2017  "},"11.10.2017",{"$f":"INDEX(Предметы!$B$6:$JR$65,$I1,94)","v":0},"Отлично"]
[2,{"$f":"Предметы!CR5","v":"Линейная алгебра"},null,{"$f":"CONCATENATE(Предметы!CR3,\" / \",Предметы!CR3/36)","v":"252 / 7"},"Отлично","------","11.10.2017  ",null,1,10,{"$f":"Предметы!CR2","v":2},{"$f":"INDEX(Предметы!$B$6:$JR$65,$I1,95)","v":5},{"$f":"INDEX(Предметы!$B$6:$JR$65,$I1,96)","v":"11.10.2017  "},"11.10.2017",{"$f":"INDEX(Предметы!$B$6:$JR$65,$I1,97)","v":0},"Отлично"]
[2,{"$f":"Предметы!CU5","v":"Информатика и информационное обеспечение бухгалтерского учета"},null,{"$f":"CONCATENATE(Предметы!CU3,\" / \",Предметы!CU3/36)","v":"360 / 10"},"Хорошо","------","11.10.2017  ",null,1,11,{"$f":"Предметы!CU2","v":2},{"$f":"INDEX(Предметы!$B$6:$JR$65,$I1,98)","v":4},{"$f":"INDEX(Предметы!$B$6:$JR$65,$I1,99)","v":"11.10.2017  "},"11.10.2017",{"$f":"INDEX(Предметы!$B$6:$JR$65,$I1,100)","v":0},"Хорошо"]
[2,{"$f":"Предметы!CX5","v":"Микроэкономика"},null,{"$f":"CONCATENATE(Предметы!CX3,\" / \",Предметы!CX3/36)","v":"216 / 6"},"Хорошо","------","25.12.2017  ",null,1,12,{"$f":"Предметы!CX2","v":2},{"$f":"INDEX(Предметы!$B$6:$JR$65,$I1,101)","v":4},{"$f":"INDEX(Предметы!$B$6:$JR$65,$I1,102)","v":"25.12.2017  "},"25.12.2017",{"$f":"INDEX(Предметы!$B$6:$JR$65,$I1,103)","v":0},"Хорошо"]
[3,{"$f":"Предметы!DA5","v":"Иностранный язык (З)"},null,{"$f":"CONCATENATE(Предметы!DA3,\" / \",Предметы!DA3/36)","v":"97 / 2,69444444444444"},"------","Зачет","23.12.2017  №    Z-7869497",null,1,13,{"$f":"Предметы!DA2","v":3},{"$f":"INDEX(Предметы!$B$6:$JR$65,$I1,104)","v":6},{"$f":"INDEX(Предметы!$B$6:$JR$65,$I1,105)","v":43092},"23.12.2017",{"$f":"INDEX(Предметы!$B$6:$JR$65,$I1,106)","v":"   Z-7869497"},"Зачет"]
[3,{"$f":"Предметы!DD5","v":"Социология"},null,{"$f":"CONCATENATE(Предметы!DD3,\" / \",Предметы!DD3/36)","v":"72 / 2"},"------","Зачет",{"$f":"CONCATENATE(IF(M69=0,\"------\",N69),\"  \",IF(O69=0,\"\",CONCATENATE(\"№ \",O69)))","v":"23.12.2017  № 7869528"},null,1,14,{"$f":"Предметы!DD2","v":3},{"$f":"INDEX(Предметы!$B$6:$JR$65,$I1,107)","v":6},{"$f":"INDEX(Предметы!$B$6:$JR$65,$I1,108)","v":43092},"23.12.2017",{"$f":"INDEX(Предметы!$B$6:$JR$65,$I1,109)","v":7869528},"Зачет"]
[3,{"$f":"Предметы!DG5","v":"Политология"},null,{"$f":"CONCATENATE(Предметы!DG3,\" / \",Предметы!DG3/36)","v":"180 / 5"},"Хорошо","------","23.12.2018  № 7869529",null,1,15,{"$f":"Предметы!DG2","v":3},{"$f":"INDEX(Предметы!$B$6:$JR$65,$I1,110)","v":4},{"$f":"INDEX(Предметы!$B$6:$JR$65,$I1,111)","v":43457},"23.12.2018",{"$f":"INDEX(Предметы!$B$6:$JR$65,$I1,112)","v":7869529},"Хорошо"]
[3,{"$f":"Предметы!DJ5","v":"Теория вероятностей и математическая статистика"},null,{"$f":"CONCATENATE(Предметы!DJ3,\" / \",Предметы!DJ3/36)","v":"144 / 4"},"Удовлет.","------","23.12.2017  ",null,1,16,{"$f":"Предметы!DJ2","v":3},{"$f":"INDEX(Предметы!$B$6:$JR$65,$I1,113)","v":3},{"$f":"INDEX(Предметы!$B$6:$JR$65,$I1,114)","v":"23.12.2017  "},"23.12.2017",{"$f":"INDEX(Предметы!$B$6:$JR$65,$I1,115)","v":0},"Удовлет."]
[3,{"$f":"Предметы!DM5","v":"Макроэкономика(З)"},null,{"$f":"CONCATENATE(Предметы!DM3,\" / \",Предметы!DM3/36)","v":"136 / 3,77777777777778"},"------","Зачет","23.12.2017  ",null,1,17,{"$f":"Предметы!DM2","v":3},{"$f":"INDEX(Предметы!$B$6:$JR$65,$I1,116)","v":6},{"$f":"INDEX(Предметы!$B$6:$JR$65,$I1,117)","v":"23.12.2017  "},"23.12.2017",{"$f":"INDEX(Предметы!$B$6:$JR$65,$I1,118)","v":0},"Зачет"]
[4,{"$f":"Предметы!DP5","v":"Эконометрика"},null,{"$f":"CONCATENATE(Предметы!DP3,\" / \",Предметы!DP3/36)","v":"180 / 5"},"Отлично","------","28.04.2018  ",null,1,18,{"$f":"Предметы!DP2","v":4},{"$f":"INDEX(Предметы!$B$6:$JR$65,$I1,119)","v":5},{"$f":"INDEX(Предметы!$B$6:$JR$65,$I1,120)","v":"28.04.2018  "},"28.04.2018",{"$f":"INDEX(Предметы!$B$6:$JR$65,$I1,121)","v":0},"Отлично"]
[4,{"$f":"Предметы!DS5","v":"Иностранный язык"},null,{"$f":"CONCATENATE(Предметы!DS3,\" / \",Предметы!DS3/36)","v":"119 / 3,30555555555556"},"Хорошо","------","28.04.2018  № 7869498",null,1,19,{"$f":"Предметы!DS2","v":4},{"$f":"INDEX(Предметы!$B$6:$JR$65,$I1,122)","v":4},{"$f":"INDEX(Предметы!$B$6:$JR$65,$I1,123)","v":43218},"28.04.2018",{"$f":"INDEX(Предметы!$B$6:$JR$65,$I1,124)","v":7869498},"Хорошо"]
[4,{"$f":"Предметы!DV5","v":"Макроэкономика"},null,{"$f":"CONCATENATE(Предметы!DV3,\" / \",Предметы!DV3/36)","v":"152 / 4,22222222222222"},"------","------","    ",null,1,20,{"$f":"Предметы!DV2","v":4},{"$f":"INDEX(Предметы!$B$6:$JR$65,$I1,125)","v":0},{"$f":"INDEX(Предметы!$B$6:$JR$65,$I1,126)","v":"  "},"  ",{"$f":"INDEX(Предметы!$B$6:$JR$65,$I1,127)","v":0},{"$error":"#VALUE!"}]
[4,{"$f":"Предметы!DY5","v":"Статистика"},null,{"$f":"CONCATENATE(Предметы!DY3,\" / \",Предметы!DY3/36)","v":"216 / 6"},"------","------","    ",null,1,21,{"$f":"Предметы!DY2","v":4},{"$f":"INDEX(Предметы!$B$6:$JR$65,$I1,128)","v":0},{"$f":"INDEX(Предметы!$B$6:$JR$65,$I1,129)","v":"  "},"  ",{"$f":"INDEX(Предметы!$B$6:$JR$65,$I1,130)","v":0},{"$error":"#VALUE!"}]
[4,{"$f":"Предметы!EB5","v":"Менеджмент"},null,{"$f":"CONCATENATE(Предметы!EB3,\" / \",Предметы!EB3/36)","v":"144 / 4"},"------","------","    ",null,1,22,{"$f":"Предметы!EB2","v":4},{"$f":"INDEX(Предметы!$B$6:$JR$65,$I1,131)","v":0},{"$f":"INDEX(Предметы!$B$6:$JR$65,$I1,132)","v":"  "},"  ",{"$f":"INDEX(Предметы!$B$6:$JR$65,$I1,133)","v":0},{"$error":"#VALUE!"}]
[4,{"$f":"Предметы!EE5","v":"Физическая культура и спорт"},null,{"$f":"CONCATENATE(Предметы!EE3,\" / \",Предметы!EE3/36)","v":"72 / 2"},"------","Зачет","28.04.2018  № 7869872",null,1,23,{"$f":"Предметы!EE2","v":4},{"$f":"INDEX(Предметы!$B$6:$JR$65,$I1,134)","v":6},{"$f":"INDEX(Предметы!$B$6:$JR$65,$I1,135)","v":43218},"28.04.2018",{"$f":"INDEX(Предметы!$B$6:$JR$65,$I1,136)","v":7869872},"Зачет"]
[4,{"$f":"Предметы!EH5","v":"Общая физическая подготовка"},null,"328 час.","------","Зачет","28.04.2018  № 7869873",null,1,24,{"$f":"Предметы!EH2","v":4},{"$f":"INDEX(Предметы!$B$6:$JR$65,$I1,137)","v":6},{"$f":"INDEX(Предметы!$B$6:$JR$65,$I1,138)","v":43218},"28.04.2018",{"$f":"INDEX(Предметы!$B$6:$JR$65,$I1,139)","v":7869873},"Зачет"]
[4,{"$f":"Предметы!EK5","v":"Деловые коммуникации"},null,{"$f":"CONCATENATE(Предметы!EK3,\" / \",Предметы!EK3/36)","v":"72 / 2"},"------","------","    ",null,1,25,{"$f":"Предметы!EK2","v":4},{"$f":"INDEX(Предметы!$B$6:$JR$65,$I1,140)","v":0},{"$f":"INDEX(Предметы!$B$6:$JR$65,$I1,141)","v":"  "},"  ",{"$f":"INDEX(Предметы!$B$6:$JR$65,$I1,142)","v":0},{"$error":"#VALUE!"}]
[5,{"$f":"Предметы!EQ5","v":"Философия  "},null,{"$f":"CONCATENATE(Предметы!EQ3,\" / \",Предметы!EQ3/36)","v":"108 / 3"},"------","------","    ",null,1,26,{"$f":"Предметы!EQ2","v":5},{"$f":"INDEX(Предметы!$B$6:$JR$65,$I1,146)","v":0},{"$f":"INDEX(Предметы!$B$6:$JR$65,$I1,147)","v":"  "},"  ",{"$f":"INDEX(Предметы!$B$6:$JR$65,$I1,148)","v":0},{"$error":"#VALUE!"}]
[5,{"$f":"Предметы!ET5","v":"Право"},null,{"$f":"CONCATENATE(Предметы!ET3,\" / \",Предметы!ET3/36)","v":"144 / 4"},"------","------","    ",null,1,27,{"$f":"Предметы!ET2","v":5},{"$f":"INDEX(Предметы!$B$6:$JR$65,$I1,149)","v":0},{"$f":"INDEX(Предметы!$B$6:$JR$65,$I1,150)","v":"  "},"  ",{"$f":"INDEX(Предметы!$B$6:$JR$65,$I1,151)","v":0},{"$error":"#VALUE!"}]
[5,{"$f":"Предметы!EW5","v":"Регионалистика"},null,{"$f":"CONCATENATE(Предметы!EW3,\" / \",Предметы!EW3/36)","v":"144 / 4"},"------","------","    ",null,1,28,{"$f":"Предметы!EW2","v":5},{"$f":"INDEX(Предметы!$B$6:$JR$65,$I1,152)","v":0},{"$f":"INDEX(Предметы!$B$6:$JR$65,$I1,153)","v":"  "},"  ",{"$f":"INDEX(Предметы!$B$6:$JR$65,$I1,154)","v":0},{"$error":"#VALUE!"}]
[5,{"$f":"Предметы!EZ5","v":"Информационные технологии и базы данных в бухгалтерском учете"},null,{"$f":"CONCATENATE(Предметы!EZ3,\" / \",Предметы!EZ3/36)","v":"144 / 4"},"------","------","    ",null,1,29,{"$f":"Предметы!EZ2","v":5},{"$f":"INDEX(Предметы!$B$6:$JR$65,$I1,155)","v":0},{"$f":"INDEX(Предметы!$B$6:$JR$65,$I1,156)","v":"  "},"  ",{"$f":"INDEX(Предметы!$B$6:$JR$65,$I1,157)","v":0},{"$error":"#VALUE!"}]
[5,{"$f":"Предметы!FC5","v":"Инструментальные средства программирования бухгалтерских операций"},null,{"$f":"CONCATENATE(Предметы!FC3,\" / \",Предметы!FC3/36)","v":"216 / 6"},"------","------","    ",null,1,30,{"$f":"Предметы!FC2","v":5},{"$f":"INDEX(Предметы!$B$6:$JR$65,$I1,158)","v":0},{"$f":"INDEX(Предметы!$B$6:$JR$65,$I1,159)","v":"  "},"  ",{"$f":"INDEX(Предметы!$B$6:$JR$65,$I1,160)","v":0},{"$error":"#VALUE!"}]
[5,{"$f":"Предметы!FF5","v":"Мировая экономика и международные экономические отношения"},null,{"$f":"CONCATENATE(Предметы!FF3,\" / \",Предметы!FF3/36)","v":"144 / 4"},"------","------","    ",null,1,31,{"$f":"Предметы!FF2","v":5},{"$f":"INDEX(Предметы!$B$6:$JR$65,$I1,161)","v":0},{"$f":"INDEX(Предметы!$B$6:$JR$65,$I1,162)","v":"  "},"  ",{"$f":"INDEX(Предметы!$B$6:$JR$65,$I1,163)","v":0},{"$error":"#VALUE!"}]
[6,{"$f":"Предметы!FI5","v":"Методы оптимальных решений"},null,{"$f":"CONCATENATE(Предметы!FI3,\" / \",Предметы!FI3/36)","v":"144 / 4"},"------","------","    ",null,{"$f":"IF(M87=0,0,1)","v":1},32,{"$f":"Предметы!FI2","v":6},{"$f":"INDEX(Предметы!$B$6:$JR$65,$I1,164)","v":0},{"$f":"INDEX(Предметы!$B$6:$JR$65,$I1,165)","v":"  "},"  ",{"$f":"INDEX(Предметы!$B$6:$JR$65,$I1,166)","v":0},{"$error":"#VALUE!"}]
[6,{"$f":"Предметы!FL5","v":"Методы принятия управленческих решений в сфере бухгалтерского учета"},null,{"$f":"CONCATENATE(Предметы!FL3,\" / \",Предметы!FL3/36)","v":"72 / 2"},"------","------","    ",null,1,33,{"$f":"Предметы!FL2","v":6},{"$f":"INDEX(Предметы!$B$6:$JR$65,$I1,167)","v":0},{"$f":"INDEX(Предметы!$B$6:$JR$65,$I1,168)","v":"  "},"  ",{"$f":"INDEX(Предметы!$B$6:$JR$65,$I1,169)","v":0},{"$error":"#VALUE!"}]
[6,{"$f":"Предметы!FO5","v":"Финансы"},null,{"$f":"CONCATENATE(Предметы!FO3,\" / \",Предметы!FO3/36)","v":"144 / 4"},"------","------","    ",null,1,34,{"$f":"Предметы!FR2","v":6},{"$f":"INDEX(Предметы!$B$6:$JR$65,$I1,170)","v":0},{"$f":"INDEX(Предметы!$B$6:$JR$65,$I1,171)","v":"  "},"  ",{"$f":"INDEX(Предметы!$B$6:$JR$65,$I1,172)","v":0},{"$error":"#VALUE!"}]
[6,{"$f":"Предметы!FR5","v":"Бухгалтерский учет и анализ"},null,{"$f":"CONCATENATE(Предметы!FR3,\" / \",Предметы!FR3/36)","v":"252 / 7"},"------","------","    ",null,1,35,{"$f":"Предметы!FU2","v":6},{"$f":"INDEX(Предметы!$B$6:$JR$65,$I1,173)","v":0},{"$f":"INDEX(Предметы!$B$6:$JR$65,$I1,174)","v":"  "},"  ",{"$f":"INDEX(Предметы!$B$6:$JR$65,$I1,175)","v":0},{"$error":"#VALUE!"}]
[6,{"$f":"Предметы!FX5","v":"Моделирование социально-экономических систем"},null,{"$f":"CONCATENATE(Предметы!FX3,\" / \",Предметы!FX3/36)","v":"288 / 8"},"------","------","    ",null,1,36,{"$f":"Предметы!GD2","v":6},{"$f":"INDEX(Предметы!$B$6:$JR$65,$I1,179)","v":0},{"$f":"INDEX(Предметы!$B$6:$JR$65,$I1,180)","v":"  "},"  ",{"$f":"INDEX(Предметы!$B$6:$JR$65,$I1,181)","v":0},{"$error":"#VALUE!"}]
[7,{"$f":"Предметы!GG5","v":"Корпоративные финансы"},null,{"$f":"CONCATENATE(Предметы!GG3,\" / \",Предметы!GG3/36)","v":"144 / 4"},"------","------","    ",null,1,37,{"$f":"Предметы!GJ2","v":7},{"$f":"INDEX(Предметы!$B$6:$JR$65,$I1,188)","v":0},{"$f":"INDEX(Предметы!$B$6:$JR$65,$I1,189)","v":"  "},"  ",{"$f":"INDEX(Предметы!$B$6:$JR$65,$I1,190)","v":0},{"$error":"#VALUE!"}]
[7,{"$f":"Предметы!GJ5","v":"Бухгалтерский финансовый учет (з)"},null,{"$f":"CONCATENATE(Предметы!GJ3,\" / \",Предметы!GJ3/36)","v":"160 / 4,44444444444444"},"------","------","    ",null,1,38,{"$f":"Предметы!GM2","v":7},{"$f":"INDEX(Предметы!$B$6:$JR$65,$I1,191)","v":0},{"$f":"INDEX(Предметы!$B$6:$JR$65,$I1,192)","v":"  "},"  ",{"$f":"INDEX(Предметы!$B$6:$JR$65,$I1,193)","v":0},{"$error":"#VALUE!"}]
[7,{"$f":"Предметы!GM5","v":"Экономика организаций (предприятий)"},null,{"$f":"CONCATENATE(Предметы!GM3,\" / \",Предметы!GM3/36)","v":"180 / 5"},"------","------","    ",null,1,39,{"$f":"Предметы!GP2","v":7},{"$f":"INDEX(Предметы!$B$6:$JR$65,$I1,194)","v":0},{"$f":"INDEX(Предметы!$B$6:$JR$65,$I1,195)","v":"  "},"  ",{"$f":"INDEX(Предметы!$B$6:$JR$65,$I1,196)","v":0},{"$error":"#VALUE!"}]
[7,{"$f":"Предметы!GS5","v":"Планирование на предприятии"},null,{"$f":"CONCATENATE(Предметы!GS3,\" / \",Предметы!GS3/36)","v":"144 / 4"},"------","------","    ",null,1,40,{"$f":"Предметы!GS2","v":7},{"$f":"INDEX(Предметы!$B$6:$JR$65,$I1,200)","v":0},{"$f":"INDEX(Предметы!$B$6:$JR$65,$I1,201)","v":"  "},"  ",{"$f":"INDEX(Предметы!$B$6:$JR$65,$I1,202)","v":0},{"$error":"#VALUE!"}]
[8,{"$f":"Предметы!GV5","v":"Деньги, кредит, банки"},null,{"$f":"CONCATENATE(Предметы!GV3,\" / \",Предметы!GV3/36)","v":"144 / 4"},"------","------","    ",null,1,41,{"$f":"Предметы!GY2","v":8},{"$f":"INDEX(Предметы!$B$6:$JR$65,$I1,203)","v":0},{"$f":"INDEX(Предметы!$B$6:$JR$65,$I1,204)","v":"  "},"  ",{"$f":"INDEX(Предметы!$B$6:$JR$65,$I1,205)","v":0},{"$error":"#VALUE!"}]
[8,{"$f":"Предметы!GY5","v":"Бухгалтерский финансовый учет"},null,{"$f":"CONCATENATE(Предметы!GY3,\" / \",Предметы!GY3/36)","v":"200 / 5,55555555555556"},"------","------","    ",null,1,42,{"$f":"Предметы!HB2","v":8},{"$f":"INDEX(Предметы!$B$6:$JR$65,$I1,206)","v":0},{"$f":"INDEX(Предметы!$B$6:$JR$65,$I1,207)","v":"  "},"  ",{"$f":"INDEX(Предметы!$B$6:$JR$65,$I1,208)","v":0},{"$error":"#VALUE!"}]
[8,{"$f":"Предметы!HE5","v":"Бухгалтерский управленческий учет"},null,{"$f":"CONCATENATE(Предметы!HE3,\" / \",Предметы!HE3/36)","v":"180 / 5"},"------","------","    ",null,1,43,{"$f":"Предметы!HE2","v":8},{"$f":"INDEX(Предметы!$B$6:$JR$65,$I1,212)","v":0},{"$f":"INDEX(Предметы!$B$6:$JR$65,$I1,213)","v":"  "},"  ",{"$f":"INDEX(Предметы!$B$6:$JR$65,$I1,214)","v":0},{"$error":"#VALUE!"}]
[8,{"$f":"Предметы!HH5","v":"Бухгалтерская (финансовая) отчетность"},null,{"$f":"CONCATENATE(Предметы!HH3,\" / \",Предметы!HH3/36)","v":"180 / 5"},"------","------","    ",null,1,44,{"$f":"Предметы!HH2","v":8},{"$f":"INDEX(Предметы!$B$6:$JR$65,$I1,215)","v":0},{"$f":"INDEX(Предметы!$B$6:$JR$65,$I1,216)","v":"  "},"  ",{"$f":"INDEX(Предметы!$B$6:$JR$65,$I1,217)","v":0},{"$error":"#VALUE!"}]
[8,{"$f":"Предметы!HK5","v":"Аудит"},null,{"$f":"CONCATENATE(Предметы!HK3,\" / \",Предметы!HK3/36)","v":"144 / 4"},"------","------","    ",null,1,45,{"$f":"Предметы!HK2","v":8},{"$f":"INDEX(Предметы!$B$6:$JR$65,$I1,218)","v":0},{"$f":"INDEX(Предметы!$B$6:$JR$65,$I1,219)","v":"  "},"  ",{"$f":"INDEX(Предметы!$B$6:$JR$65,$I1,220)","v":0},{"$error":"#VALUE!"}]
[9,{"$f":"Предметы!HT5","v":"Безопасность жизнедеятельности"},null,{"$f":"CONCATENATE(Предметы!HT3,\" / \",Предметы!HT3/36)","v":"144 / 4"},"------","------","    ",null,1,46,{"$f":"Предметы!HT2","v":9},{"$f":"INDEX(Предметы!$B$6:$JR$65,$I1,227)","v":0},{"$f":"INDEX(Предметы!$B$6:$JR$65,$I1,228)","v":"  "},"  ",{"$f":"INDEX(Предметы!$B$6:$JR$65,$I1,229)","v":0},{"$error":"#VALUE!"}]
[9,{"$f":"Предметы!HW5","v":"Маркетинг"},null,{"$f":"CONCATENATE(Предметы!HW3,\" / \",Предметы!HW3/36)","v":"108 / 3"},"------","------","    ",null,1,47,{"$f":"Предметы!HW2","v":9},{"$f":"INDEX(Предметы!$B$6:$JR$65,$I1,230)","v":0},{"$f":"INDEX(Предметы!$B$6:$JR$65,$I1,231)","v":"  "},"  ",{"$f":"INDEX(Предметы!$B$6:$JR$65,$I1,232)","v":0},{"$error":"#VALUE!"}]
[9,{"$f":"Предметы!HZ5","v":"Макроэкономическое планирование и прогнозирование"},null,{"$f":"CONCATENATE(Предметы!HZ3,\" / \",Предметы!HZ3/36)","v":"144 / 4"},"------","------","    ",null,1,48,{"$f":"Предметы!HZ2","v":9},{"$f":"INDEX(Предметы!$B$6:$JR$65,$I1,233)","v":0},{"$f":"INDEX(Предметы!$B$6:$JR$65,$I1,234)","v":"  "},"  ",{"$f":"INDEX(Предметы!$B$6:$JR$65,$I1,235)","v":0},{"$error":"#VALUE!"}]
[9,{"$f":"Предметы!IC5","v":"Комплексный анализ хозяйственной деятельности"},null,{"$f":"CONCATENATE(Предметы!IC3,\" / \",Предметы!IC3/36)","v":"144 / 4"},"------","------","    ",null,1,49,{"$f":"Предметы!IC2","v":9},{"$f":"INDEX(Предметы!$B$6:$JR$65,$I1,236)","v":0},{"$f":"INDEX(Предметы!$B$6:$JR$65,$I1,237)","v":"  "},"  ",{"$f":"INDEX(Предметы!$B$6:$JR$65,$I1,238)","v":0},{"$error":"#VALUE!"}]
[9,{"$f":"Предметы!II5","v":"Лабораторный практикум по бухгалтерскому учету"},null,{"$f":"CONCATENATE(Предметы!II3,\" / \",Предметы!II3/36)","v":"144 / 4"},"------","------","    ",null,1,50,{"$f":"Предметы!IF2","v":9},{"$f":"INDEX(Предметы!$B$6:$JR$65,$I1,242)","v":0},{"$f":"INDEX(Предметы!$B$6:$JR$65,$I1,243)","v":"  "},"  ",{"$f":"INDEX(Предметы!$B$6:$JR$65,$I1,244)","v":0},{"$error":"#VALUE!"}]
[9,{"$f":"Предметы!IL5","v":"Международные стандарты финансовой отчетности"},null,{"$f":"CONCATENATE(Предметы!IL3,\" / \",Предметы!IL3/36)","v":"108 / 3"},"------","------","    ",null,1,51,{"$f":"Предметы!IL2","v":9},{"$f":"INDEX(Предметы!$B$6:$JR$65,$I1,245)","v":0},{"$f":"INDEX(Предметы!$B$6:$JR$65,$I1,246)","v":"  "},"  ",{"$f":"INDEX(Предметы!$B$6:$JR$65,$I1,247)","v":0},{"$error":"#VALUE!"}]
[9,{"$f":"Предметы!IO5","v":"Бухгалтерский учет на предприятиях малого бизнеса"},null,{"$f":"CONCATENATE(Предметы!IO3,\" / \",Предметы!IO3/36)","v":"180 / 5"},"------","------","    ",null,1,52,{"$f":"Предметы!IO2","v":9},{"$f":"INDEX(Предметы!$B$6:$JR$65,$I1,248)","v":0},{"$f":"INDEX(Предметы!$B$6:$JR$65,$I1,249)","v":"  "},"  ",{"$f":"INDEX(Предметы!$B$6:$JR$65,$I1,250)","v":0},{"$error":"#VALUE!"}]
[9,{"$f":"Предметы!IR5","v":"Логистика"},null,{"$f":"CONCATENATE(Предметы!IR3,\" / \",Предметы!IR3/36)","v":"180 / 5"},"------","------","    ",null,1,53,{"$f":"Предметы!IR2","v":9},{"$f":"INDEX(Предметы!$B$6:$JR$65,$I1,251)","v":0},{"$f":"INDEX(Предметы!$B$6:$JR$65,$I1,252)","v":"  "},"  ",{"$f":"INDEX(Предметы!$B$6:$JR$65,$I1,253)","v":0},{"$error":"#VALUE!"}]
[9,{"$f":"Предметы!IU5","v":"Налоги и налогообложение"},null,{"$f":"CONCATENATE(Предметы!IU3,\" / \",Предметы!IU3/36)","v":"108 / 3"},"------","------","    ",null,1,54,{"$f":"Предметы!IU2","v":9},{"$f":"INDEX(Предметы!$B$6:$JR$65,$I1,254)","v":0},{"$f":"INDEX(Предметы!$B$6:$JR$65,$I1,255)","v":"  "},"  ",{"$f":"INDEX(Предметы!$B$6:$JR$65,$I1,256)","v":0},{"$error":"#VALUE!"}]
[9,{"$f":"Предметы!IX5","v":"Анализ финансовой отчетности"},null,{"$f":"CONCATENATE(Предметы!IX3,\" / \",Предметы!IX3/36)","v":"108 / 3"},"------","------","    ",null,1,55,{"$f":"Предметы!IX2","v":9},{"$f":"INDEX(Предметы!$B$6:$JR$65,$I1,257)","v":0},{"$f":"INDEX(Предметы!$B$6:$JR$65,$I1,258)","v":"  "},"  ",{"$f":"INDEX(Предметы!$B$6:$JR$65,$I1,259)","v":0},{"$error":"#VALUE!"}]
[9,{"$f":"Предметы!JA5","v":"Практикум 1С:Бухгалтерия"},null,{"$f":"CONCATENATE(Предметы!JA3,\" / \",Предметы!JA3/36)","v":"72 / 2"},"------","------","    ",null,1,56,{"$f":"Предметы!JA2","v":9},{"$f":"INDEX(Предметы!$B$6:$JR$65,$I1,260)","v":0},{"$f":"INDEX(Предметы!$B$6:$JR$65,$I1,261)","v":"  "},"  ",{"$f":"INDEX(Предметы!$B$6:$JR$65,$I1,262)","v":0},{"$error":"#VALUE!"}]
[0,null,null,null,"------","------","------  ",null,{"$f":"IF(M112=0,0,1)","v":0},57,null,null,null,"00.01.1900",null,{"$error":"#VALUE!"}]
[0,null,null,null,"------","------","------  ",null,0,58,null,null,null,"00.01.1900",null,{"$error":"#VALUE!"}]
[0,null,null,null,"------","------","------  ",null,0,59,null,null,null,"00.01.1900",null,{"$error":"#VALUE!"}]
[0,null,null,null,"------","------","------  ",null,0,60,null,null,null,"00.01.1900",null,{"$error":"#VALUE!"}]
[0,null,null,null,"------","------","------  ",null,0,61,null,{"$f":"INDIRECT(ADDRESS(J116,$J$59*3+4,,,\"Предметы\"))","v":"  "},null,"00.01.1900",null,{"$error":"#VALUE!"}]
[0,null,null,null,"------","------","------  ",null,0,62,null,"  ",null,"00.01.1900",null,{"$error":"#VALUE!"}]
[0,null,null,null,"------","------","------  ",null,0,63,null,0,null,"00.01.1900",null,{"$error":"#VALUE!"}]
[0,null,null,null,"------","------","------  ",null,0,64,null,"  ",null,"00.01.1900",null,{"$error":"#VALUE!"}]
[0,null,null,null,"------","------","------  ",null,0,65,null,0,null,"00.01.1900",null,{"$error":"#VALUE!"}]
[0,null,null,null,"------","------","------  ",null,0,66,null,0,null,"00.01.1900",null,{"$error":"#VALUE!"}]
[0,null,null,null,"------","------","------  ",null,0,67,null,0,null,"00.01.1900",null,{"$error":"#VALUE!"}]
[0,null,null,null,"------","------","------  ",null,0,68,null,0,null,"00.01.1900",null,{"$error":"#VALUE!"}]
[0,null,null,null,"------","------","------  ",null,0,69,null,{"$f":"INDIRECT(ADDRESS(J124,$J$59*3+4,,,\"Предметы\"))","v":0},null,"00.01.1900",null,{"$error":"#VALUE!"}]
[{"$f":"K125","v":0},null,null,null,{"$f":"IF(AND(L125>2, L125<6),P125,\"------\")","v":"------"},{"$f":"IF(M125=0,\"------\",IF(L125=6,P125,\"------\"))","v":"------"},{"$f":"CONCATENATE(IF(M125=0,\"------\",N125),\"  \",IF(O125=0,\"\",CONCATENATE(\"№ \",O125)))","v":"------  "},null,{"$f":"IF(M125=0,0,1)","v":0},70,null,0,null,{"$f":"TEXT(M125,\"ДД.ММ.ГГГГ\")","v":"00.01.1900"},null,{"$f":"CHOOSE(L125,$O$1,$O$2,$O$3,$O$4,$O$5,$O$6)","v":{"$error":"#VALUE!"}}]
[0,null,null,null,"------","------","------  ",null,0,{"$f":"J125+1","v":71},null,0,null,"00.01.1900",null,{"$error":"#VALUE!"}]
[0,null,null,null,"------","------","------  ",null,0,72,null,0,null,"00.01.1900",null,{"$error":"#VALUE!"}]
[0,null,null,null,"------","------","------  ",null,0,73,null,0,null,"00.01.1900",null,{"$error":"#VALUE!"}]
[0,null,null,null,"------","------","------  ",null,0,74,null,0,null,"00.01.1900",null,{"$error":"#VALUE!"}]
[0,null,null,null,"------","------","------  ",null,0,75,null,0,null,"00.01.1900",null,{"$error":"#VALUE!"}]
[0,null,null,null,"------","------","------  ",null,0,76,null,0,null,"00.01.1900",null,{"$error":"#VALUE!"}]
[0,null,null,null,"------","------","------  ",null,0,77,null,0,null,"00.01.1900",null,{"$error":"#VALUE!"}]
[0,null,null,null,"------","------","------  ",null,0,78,null,0,null,"00.01.1900",null,{"$error":"#VALUE!"}]
[0,null,null,null,"------","------","------  ",null,0,79,null,0,null,"00.01.1900",null,{"$error":"#VALUE!"}]
[0,null,null,null,"------","------","------  ",null,0,80,null,0,null,"00.01.1900",null,{"$error":"#VALUE!"}]
[0,null,null,null,"------","------","------  ",null,0,81,null,0,null,"00.01.1900",null,{"$error":"#VALUE!"}]
[0,null,null,null,"------","------","------  ",null,0,82,null,0,null,"00.01.1900",null,{"$error":"#VALUE!"}]
[0,null,null,null,"------","------","------  ",null,0,83,null,0,null,"00.01.1900",null,{"$error":"#VALUE!"}]
[0,null,null,null,"------","------","------  ",null,0,{"$f":"J138+1","v":84},null,0,null,"00.01.1900",null,{"$error":"#VALUE!"}]
[0,null,null,null,"------","------","------  ",null,0,85,null,0,null,"00.01.1900",null,{"$error":"#VALUE!"}]
[0,null,null,null,"------","------","------  ",null,0,86,null,0,null,"00.01.1900",null,{"$error":"#VALUE!"}]
[0,null,null,null,"------","------","------  ",null,0,87,null,0,null,"00.01.1900",null,{"$error":"#VALUE!"}]
[0,null,null,null,"------","------","------  ",null,0,88,null,0,null,"00.01.1900",null,{"$error":"#VALUE!"}]
[0,null,null,null,"------","------","------  ",null,0,89,null,0,null,"00.01.1900",null,{"$error":"#VALUE!"}]
[0,null,null,null,"------","------","------  ",null,0,90,null,0,null,"00.01.1900",null,{"$error":"#VALUE!"}]
[0,null,null,null,"------","------","------  ",null,0,91,null,0,null,"00.01.1900",null,{"$error":"#VALUE!"}]
[0,null,null,null,"------","------","------  ",null,0,92,null,0,null,"00.01.1900",null,{"$error":"#VALUE!"}]
[0,null,null,null,{"$f":"IF(AND(L148>2, L148<6),P148,\"------\")","v":"------"},{"$f":"IF(M148=0,\"------\",IF(L148=6,P148,\"------\"))","v":"------"},"------  ",null,0,93,null,0,null,"00.01.1900",null,{"$error":"#VALUE!"}]
[0,null,null,null,{"$f":"IF(AND(L149>2, L149<6),P149,\"------\")","v":"------"},{"$f":"IF(M149=0,\"------\",IF(L149=6,P149,\"------\"))","v":"------"},"------  ",null,0,94,null,0,null,"00.01.1900",null,{"$error":"#VALUE!"}]
[0,null,null,null,"------","------","------  ",null,0,95,null,0,null,"00.01.1900",null,{"$error":"#VALUE!"}]
[0,null,null,null,"------","------","------  ",null,0,96,null,0,null,"00.01.1900",null,{"$error":"#VALUE!"}]
[0,null,null,null,"------","------","------  ",null,0,97,null,0,null,"00.01.1900",null,{"$error":"#VALUE!"}]
[0,null,null,null,"------","------","------  ",null,0,98,null,0,null,"00.01.1900",null,{"$error":"#VALUE!"}]
[0,null,null,null,"------","------","------  ",null,0,99,null,0,null,"00.01.1900",null,{"$error":"#VALUE!"}]
[0,null,null,null,"------","------","------  ",null,0,100,null,0,null,"00.01.1900",null,{"$error":"#VALUE!"}]
[0,null,null,null,"------","------","------  ",null,0,101,null,0,null,"00.01.1900",null,{"$error":"#VALUE!"}]
[0,null,null,null,"------","------","------  ",null,0,102,null,0,null,"00.01.1900",null,{"$error":"#VALUE!"}]
[0,null,null,null,"------","------","------  ",null,0,103,null,0,null,"00.01.1900",null,{"$error":"#VALUE!"}]
[0,null,null,null,"------","------","------  ",null,0,104,null,0,null,"00.01.1900",null,{"$error":"#VALUE!"}]
[null,null,null,null,null,null,null,null,1]
[{"$f":"A58+I58","v":19},"Курсовые работы",null,null,null,null,null,null,1]
["Семестры","Название дисциплины","Тема курсовой работы",null,null,"Оценка","Дата сдачи",null,1]
[{"$f":"K163","v":6},"Моделирование социально-экономических систем  ",{"$f":"O163","v":0},null,null,{"$f":"IF(L163=0,\"------\",P163)","v":"------"},{"$f":"IF(M163=0,\"------\",N163)","v":"------"},null,{"$f":"IF(M163=0,0,1)","v":0},107,{"$f":"Предметы!FO2","v":6},{"$f":"INDEX(Предметы!$B$6:$JR$65,$I1,182)","v":0},{"$f":"INDEX(Предметы!$B$6:$JR$65,$I1,183)","v":0},{"$f":"TEXT(M163,\"ДД.ММ.ГГГГ\")","v":"00.01.1900"},{"$f":"INDEX(Предметы!$B$6:$JR$65,$I1,184)","v":0},{"$f":"CHOOSE(L163,$O$1,$O$2,$O$3,$O$4,$O$5,$O$6)","v":{"$error":"#VALUE!"}}]
[{"$f":"K164","v":6},"Бухгалтерский учет и анализ",{"$f":"O164","v":0},null,null,{"$f":"IF(L164=0,\"------\",P164)","v":"------"},{"$f":"IF(M164=0,\"------\",N164)","v":"------"},null,0,{"$f":"J163+1","v":108},{"$f":"Предметы!FX2","v":6},{"$f":"INDEX(Предметы!$B$6:$JR$65,$I1,176)","v":0},{"$f":"INDEX(Предметы!$B$6:$JR$65,$I1,177)","v":0},"00.01.1900",{"$f":"INDEX(Предметы!$B$6:$JR$65,$I1,178)","v":0},{"$error":"#VALUE!"}]
[7,"Экономика организаций (предприятий)",0,null,null,"------","------",null,0,109,{"$f":"Предметы!GG2","v":7},{"$f":"INDEX(Предметы!$B$6:$JR$65,$I1,197)","v":0},{"$f":"INDEX(Предметы!$B$6:$JR$65,$I1,198)","v":0},"00.01.1900",{"$f":"INDEX(Предметы!$B$6:$JR$65,$I1,199)","v":0},{"$error":"#VALUE!"}]
[7,"Бухгалтерский финансовый учет",0,null,null,"------","------",null,0,110,{"$f":"Предметы!GS2","v":7},{"$f":"INDEX(Предметы!$B$6:$JR$65,$I1,209)","v":0},{"$f":"INDEX(Предметы!$B$6:$JR$65,$I1,210)","v":0},"00.01.1900",{"$f":"INDEX(Предметы!$B$6:$JR$65,$I1,211)","v":0},{"$error":"#VALUE!"}]
[8,"Аудит",0,null,null,"------","------",null,0,111,{"$f":"Предметы!HN2","v":8},{"$f":"INDEX(Предметы!$B$6:$JR$65,$I1,221)","v":0},{"$f":"INDEX(Предметы!$B$6:$JR$65,$I1,222)","v":0},"00.01.1900",{"$f":"INDEX(Предметы!$B$6:$JR$65,$I1,223)","v":0},{"$error":"#VALUE!"}]
[9,"Комплексный анализ хозяйственной деятельности",0,null,null,"------","------",null,0,112,{"$f":"Предметы!II2","v":9},{"$f":"INDEX(Предметы!$B$6:$JR$65,$I1,239)","v":0},{"$f":"INDEX(Предметы!$B$6:$JR$65,$I1,240)","v":0},"00.01.1900",{"$f":"INDEX(Предметы!$B$6:$JR$65,$I1,241)","v":0},{"$error":"#VALUE!"}]
[0,null,0,null,null,"------","------",null,0,113,null,null,null,"00.01.1900",null,{"$error":"#VALUE!"}]
[0,null,0,null,null,"------","------",null,0,114,null,null,null,"00.01.1900",null,{"$error":"#VALUE!"}]
[0,null,0,null,null,"------","------",null,0,115,null,null,null,"00.01.1900",null,{"$error":"#VALUE!"}]
[0,null,0,null,null,"------","------",null,0,116,null,null,null,"00.01.1900",null,{"$error":"#VALUE!"}]
[0,null,0,null,null,"------","------",null,0,117,null,null,null,"00.01.1900",null,{"$error":"#VALUE!"}]
[null,null,0,null,null,"------","------",null,0,118,null,null,null,"00.01.1900",null,{"$error":"#VALUE!"}]
[13,null,0,null,null,"------","------",null,0,119,null,null,null,"00.01.1900",null,{"$error":"#VALUE!"}]
[14,null,0,null,null,"------","------",null,0,120,null,null,null,"00.01.1900",null,{"$error":"#VALUE!"}]
[15,null,0,null,null,"------","------",null,0,121,null,null,null,"00.01.1900",null,{"$error":"#VALUE!"}]
[16,null,0,null,null,"------","------",null,0,122,null,null,null,"00.01.1900",null,{"$error":"#VALUE!"}]
[17,null,0,null,null,"------","------",null,0,123,null,null,null,"00.01.1900",null,{"$error":"#VALUE!"}]
[18,null,0,null,null,"------","------",null,0,124,null,null,null,"00.01.1900",null,{"$error":"#VALUE!"}]
[19,null,0,null,null,"------","------",null,0,125,null,null,null,"00.01.1900",null,{"$error":"#VALUE!"}]
[20,null,0,null,null,"------","------",null,0,126,null,null,null,"00.01.1900",null,{"$error":"#VALUE!"}]
[null,null,null,null,null,null,null,null,1]
[{"$f":"A161+I161","v":20},"Прохождение практик",null,null,null,null,null,null,1]
["Курс","Наименование \nпрактики","Место практики",null,"Продолжи-\nтельность","Оценка","Дата ведомости",null,1]
[{"$f":"INT(K186/2+0.5)","v":{"$error":"#REF!"}},{"$error":"#REF!"},null,null,{"$f":"IF(Q186=0,\"\",CONCATENATE(Q186,\" \",T186))","v":{"$error":"#REF!"}},{"$f":"IF(L186=0,\"------\",P186)","v":"------"},{"$f":"CONCATENATE(IF(M186=0,\"------\",N186),\"  \",IF(O186=0,\"\",CONCATENATE(\"№ \",O186)))","v":"------  "},null,{"$f":"IF(M186=0,0,1)","v":0},129,{"$error":"#REF!"},{"$f":"INDIRECT(ADDRESS(J186,$J$59*3+4,,,\"Предметы\"))","v":0},{"$f":"INDIRECT(ADDRESS(J186,$J$59*3+5,,,\"Предметы\"))","v":0},{"$f":"TEXT(M186,\"ДД.ММ.ГГГГ\")","v":"00.01.1900"},{"$f":"INDIRECT(ADDRESS(J186,$J$59*3+6,,,\"Предметы\"))","v":0},{"$f":"CHOOSE(L186,$O$1,$O$2,$O$3,$O$4,$O$5,$O$6)","v":{"$error":"#VALUE!"}},{"$error":"#REF!"},1,"неделя",{"$f":"CHOOSE(Q186,$S$186,$S$187,$S$188,$S$189,$S$190,$S$191,$S$192,$S$193,$S$194,$S$195)","v":{"$error":"#REF!"}}]
[{"$f":"INT(K187/2+0.5)","v":2},"Учебная. Практика по получению первичных профессиональных умений и навыков, в том числе первичных умений и навыков научно-исследовательской деятельности",{"$f":"O187","v":"ФГБОУ ВО Костромская ГСХА, кафедра экономической кибернетики"},null,{"$f":"IF(Q187=0,\"\",CONCATENATE(Q187,\" \",T187))","v":"2 недели"},{"$f":"IF(L187=0,\"------\",P187)","v":"------"},{"$f":"IF(M187=0,\"------\",N187)","v":"  "},null,{"$f":"IF(M187=0,0,1)","v":1},{"$f":"J186+1","v":130},{"$f":"Предметы!EN2","v":4},{"$f":"INDEX(Предметы!$B$6:$JR$65,$I1,143)","v":0},{"$f":"INDEX(Предметы!$B$6:$JR$65,$I1,144)","v":"  "},"  ",{"$f":"INDEX(Предметы!$B$6:$JR$65,$I1,145)","v":"ФГБОУ ВО Костромская ГСХА, кафедра экономической кибернетики"},{"$f":"CHOOSE(L187,$O$1,$O$2,$O$3,$O$4,$O$5,$O$6)","v":{"$error":"#VALUE!"}},2,2,"недели",{"$f":"CHOOSE(Q187,$S$186,$S$187,$S$188,$S$189,$S$190,$S$191,$S$192,$S$193,$S$194,$S$195)","v":"недели"}]
[3,"Производственная. Практика по получению профессиональных умений и опыта профессиональной деятельности",{"$f":"O188","v":0},null,"2 недели",{"$f":"IF(L188=0,\"------\",P188)","v":"------"},{"$f":"IF(M188=0,\"------\",N188)","v":"  "},null,1,{"$f":"J187+1","v":131},{"$f":"Предметы!GA2","v":6},{"$f":"INDEX(Предметы!$B$6:$JR$65,$I1,185)","v":0},{"$f":"INDEX(Предметы!$B$6:$JR$65,$I1,186)","v":"  "},"  ",{"$f":"INDEX(Предметы!$B$6:$JR$65,$I1,187)","v":0},{"$error":"#VALUE!"},2,3,"недели","недели"]
[4,"Производственная. Технологическая",0,null,"2 недели","------","  ",null,1,132,{"$f":"Предметы!HQ2","v":8},{"$f":"INDEX(Предметы!$B$6:$JR$65,$I1,224)","v":0},{"$f":"INDEX(Предметы!$B$6:$JR$65,$I1,225)","v":"  "},"  ",{"$f":"INDEX(Предметы!$B$6:$JR$65,$I1,226)","v":0},{"$error":"#VALUE!"},2,4,"недели","недели"]
[5,"Научно-исследовательская работа",0,null,"2 недели","------","  ",null,1,133,{"$f":"Предметы!JD2","v":10},{"$f":"INDEX(Предметы!$B$6:$JR$65,$I1,263)","v":0},{"$f":"INDEX(Предметы!$B$6:$JR$65,$I1,264)","v":"  "},"  ",{"$f":"INDEX(Предметы!$B$6:$JR$65,$I1,265)","v":0},{"$error":"#VALUE!"},2,5,"недель","недели"]
[5,"Преддипломная",0,null,"2 недели","------","  ",null,1,134,{"$f":"Предметы!JG2","v":10},{"$f":"INDEX(Предметы!$B$6:$JR$65,$I1,266)","v":0},{"$f":"INDEX(Предметы!$B$6:$JR$65,$I1,267)","v":"  "},"  ",{"$f":"INDEX(Предметы!$B$6:$JR$65,$I1,268)","v":0},{"$error":"#VALUE!"},2,6,"недель","недели"]
[{"$error":"#REF!"},{"$error":"#REF!"},null,null,{"$error":"#REF!"},"------",{"$f":"CONCATENATE(IF(M192=0,\"------\",N192),\"  \",IF(O192=0,\"\",CONCATENATE(\"№ \",O192)))","v":"------  "},null,0,135,{"$error":"#REF!"},{"$f":"INDIRECT(ADDRESS(J192,$J$59*3+4,,,\"Предметы\"))","v":0},{"$f":"INDIRECT(ADDRESS(J192,$J$59*3+5,,,\"Предметы\"))","v":0},"00.01.1900",{"$f":"INDIRECT(ADDRESS(J192,$J$59*3+6,,,\"Предметы\"))","v":0},{"$error":"#VALUE!"},{"$error":"#REF!"},7,"недель",{"$error":"#REF!"}]
[{"$error":"#REF!"},{"$error":"#REF!"},null,null,{"$error":"#REF!"},{"$f":"IF(L193=0,\"\",P193)","v":""},{"$f":"CONCATENATE(IF(M193=0,\"\",N193),\"  \",IF(O193=0,\"\",CONCATENATE(\"№ \",O193)))","v":"  "},null,0,136,{"$error":"#REF!"},0,0,"00.01.1900",0,{"$error":"#VALUE!"},{"$error":"#REF!"},8,"недель",{"$error":"#REF!"}]
[{"$error":"#REF!"},{"$error":"#REF!"},null,null,{"$error":"#REF!"},{"$f":"IF(L194=0,\"\",P194)","v":""},{"$f":"CONCATENATE(IF(M194=0,\"\",N194),\"  \",IF(O194=0,\"\",CONCATENATE(\"№ \",O194)))","v":"  "},null,0,137,{"$error":"#REF!"},0,0,"00.01.1900",0,{"$error":"#VALUE!"},{"$error":"#REF!"},9,"недель",{"$error":"#REF!"}]
[{"$error":"#REF!"},{"$error":"#REF!"},null,null,{"$error":"#REF!"},{"$f":"IF(L195=0,\"\",P195)","v":""},{"$f":"CONCATENATE(IF(M195=0,\"\",N195),\"  \",IF(O195=0,\"\",CONCATENATE(\"№ \",O195)))","v":"  "},null,0,138,{"$error":"#REF!"},0,0,"00.01.1900",0,{"$error":"#VALUE!"},{"$error":"#REF!"},10,"недель",{"$error":"#REF!"}]
[null,null,null,null,null,null,null,null,1,null,null,null,null,null,null,null,{"$error":"#REF!"},null,null,{"$error":"#REF!"}]
[null,"И. о. декана факультета   ____________________________ Н. А. Середа",null,null,null,null,null,null,1]
[null,null,null,null,null,null,null,null,1]
[null,"Специалист по УМР   ________________________ О. В. Сосова",null,null,null,null,null,null,1,null,null,null,null,null,null,null,{"$error":"#REF!"},null,null,{"$f":"CHOOSE(Q199,$S$186,$S$187,$S$188,$S$189,$S$190,$S$191,$S$192,$S$193,$S$194,$S$195)","v":{"$error":"#REF!"}}]

{"sheet":"!справочники","index":3,"n_rows":51,"n_cols":16,"rows_kept":51,"cut":false,"hidden":false,"merged":[]}
["Муж","07.02.01 Архитектура",{"$f":"RIGHT(LEFT(D1,5),2)","v":"02"},{"$f":"LEFT(B1,8)","v":"07.02.01"},{"$f":"RIGHT(B1,LEN(B1)-9)","v":"Архитектура"},null,null,null,null,null,null,null,null,null,"Муж","Жен"]
["Жен","23.02.03 Техническое обслуживание и ремонт автомобильного транспорта","02","23.02.03",{"$f":"RIGHT(B2,LEN(B2)-9)","v":"Техническое обслуживание и ремонт автомобильного транспорта"},null,null,null,null,null,null,null,null,null,"холост","не замужем"]
[null,"35.02.15 Кинология","02","35.02.15","Кинология",null,null,null,null,null,null,null,null,null,"женат","замужем"]
[null,"38.02.01 Экономика и бухгалтерский учет","02","38.02.01","Экономика и бухгалтерский учет"]
["БАКАЛАВР","43.02.05 Флористика","02","43.02.05","Флористика"]
["МАГИСТР","07.03.01 Архитектура","03","07.03.01","Архитектура"]
["ИНЖЕНЕР","08.03.01 Строительство","03","08.03.01","Строительство"]
["ВЕТЕРИНАРНЫЙ ВРАЧ","13.03.02 Электроэнергетика и электротехника","03","13.03.02","Электроэнергетика и электротехника"]
["АРХИТЕКТОР","23.03.03 Эксплуатация транспортно-технологических машин и комплексов","03","23.03.03","Эксплуатация транспортно-технологических машин и комплексов"]
["КИНОЛОГ","35.03.04 Агрономия","03","35.03.04","Агрономия"]
["ТЕХНИК","35.03.06 Агроинженерия","03","35.03.06","Агроинженерия"]
[null,"36.03.02 Зоотехния","03","36.03.02","Зоотехния"]
[null,"38.03.01 Экономика","03","38.03.01","Экономика"]
[null,"38.03.02 Менеджмент","03","38.03.02","Менеджмент"]
[null,"08.04.01 Строительство","04","08.04.01","Строительство"]
[null,"35.04.04 Агрономия","04","35.04.04","Агрономия"]
[null,"35.04.06 Агроинженерия","04","35.04.06","Агроинженерия"]
[null,"36.04.02 Зоотехния","04","36.04.02","Зоотехния"]
[null,"38.04.01 Экономика","04","38.04.01","Экономика"]
[null,"38.04.02 Менеджмент","04","38.04.02","Менеджмент"]
[null,"23.05.01 Наземные и транспортно-технологические средства","05","23.05.01","Наземные и транспортно-технологические средства"]
[null,"36.05.01 Ветеринария","05","36.05.01","Ветеринария"]
[null,"06.06.01 Паразитология","06","06.06.01","Паразитология"]
[null,"08.06.01 Строительные материалы и изделия","06","08.06.01","Строительные материалы и изделия"]
[null,"13.06.01 Тепловые двигатели","06","13.06.01","Тепловые двигатели"]
[null,"35.06.01 Общее земледелие, растениеводство","06","35.06.01","Общее земледелие, растениеводство"]
[null,"35.06.04 Технологии и средства механизации сельского хозяйства","06","35.06.04","Технологии и средства механизации сельского хозяйства"]
[null,"36.06.01 Диагностика болезней и терапия животных, патология, онкология и морфология животных","06","36.06.01","Диагностика болезней и терапия животных, патология, онкология и морфология животных"]
[null,"38.06.01 Экономика и управление народным хозяйством","06","38.06.01","Экономика и управление народным хозяйством"]
[null,"46.06.01 Отечественная история","06","46.06.01","Отечественная история"]
[null,"47.06.01 Этика","06","47.06.01","Этика"]
[]
[]
[]
[]
[]
[]
[]
[]
[]
[]
[]
[]
[]
[]
[]
[]
[]
[]
[null,"Техник деканата"]
[null,"Специалист по УМР"]

{"sheet":"Отчисленные","index":4,"n_rows":7,"n_cols":278,"rows_kept":7,"cut":false,"hidden":false,"merged":[]}
[]
[27,"Сухорукова","Анастасия ","Владимировна",{"$f":"CONCATENATE(B2,\" \",LEFT(C2,1),\". \",LEFT(D2,1),\".\")","v":"Сухорукова А. В."},null,"Сухоруковой","Анастасии","Владимировне","1996-11-24","г. Кострома","РФ","ж","Вечерняя (общеобразовательная) школа  2",2015,"не замужем","г. Кострома, ул. Комсомольская, д. 30, кв. 3",null,null,null,null,null,null,null,"15823з","Экономический","38.03.10","Экономика","Бухгалтерский учет, анализ и аудит","5 лет","БАКАЛАВР","2-557","2015-08-21","по договору с полным возмещением затрат","000003691","2015-08-14",null,null,"2-236","2018-04-02","по собственному желанию",null,null,null,null,null,null,null,null,"2-561","2016-09-01",null,null,null,null,null,null,null,null,null,null,null,null,null,null,null,null,null,null,null,null,null,null,null,null,null,null,null,3,"235z",null,null,null,null,null,null,4,"11.06.2016  ",null,6,"11.06.2016  ",null,3,"11.06.2016  ",null,3,"11.06.2016  ",null,4,"11.06.2016  ",null,4,"11.06.2016  ",null,6,"23.12.2016  ",null,6,"23.12.2016  ",null,4,"23.12.2016  ",null,null,"  ",null,6,"17.04.2017  ",null,3,"22.04.2017  ",null,3,"22.04.2017  ",null,null,"  ",null,3,"22.04.2017  ",null,4,"22.04.2017  ",null,6,"22.04.2017  ",null,6,"22.04.2017  ",null,6,"22.04.2017  ",null,0,"  ",null,6,"02.12.2017  ",null,3,"02.12.2017  ",null,3,"02.12.2017  ",null,null,null,null,3,"02.12.2017  ",null,4,"02.12.2017  ",null,null,null,null,null,null,null,null,null,null,null,null,null,null,null,null,null,null,null,null,null,null,null,null,null,null,null,null,null,null,null,null,null,null,null,null,null,null,null,null,null,null,null,null,null,null,null,null,null,null,null,null,null,null,null,null,null,null,null,null,null,null,null,null,null,null,null,null,null,null,null,null,null,null,null,null,null,null,null,null,null,null,null,null,null,null,null,null,null,null,null,null,null,null,null,null,null,null,null,null,null,null,null,null,null,null,{"$f":"(JL2*3+JM2*4+JN2*5)/50","v":0.96},null,{"$f":"COUNTIF(CC2:JG2,3)","v":8},{"$f":"COUNTIF(CC2:JG2,4)","v":6},{"$f":"COUNTIF(CC2:JG2,5)","v":0},{"$f":"COUNTIF(CC2:JG2,6)","v":8},{"$f":"SUM(JL2:JN2)","v":14},{"$f":"SUMIF(CC2:JG2,\">0\",$CC$3:$JG$3)","v":74},{"$f":"INT(JQ2/8+0.5)","v":9}]
[17,"Звездунова","Юлия ","Владимировна","Звездунова Ю. В.",null,"Звездуновой","Юлии","Владимировне","1982-06-06","г. Кострома","РФ","ж","Профессиональный лицей 15 г. Костромы",1999,"замужем","г. Кострома, ул. Северной правды, д. 29, кв. 30  ",null,null,null,null,null,null,null,14104,"Экономический","38.03.10","Экономика","Бухгалтерский учет, анализ и аудит","5 лет","БАКАЛАВР","2-525","2014-08-21","по договору с полным возмещением затрат","000002787","2014-08-07",null,null,null,null,null,null,null,null,"2-335","2017-04-26","по семейным обстоятельствам","2017-04-21","2018-04-21","2-571","2014-08-21","2-561","2016-09-01",null,null,null,null,null,null,null,null,null,null,null,null,null,null,null,null,null,null,null,null,null,null,null,null,null,3,"235z",null,null,null,null,null,null,3,"01.06.2015  ",null,6,"02.06.2015  ",null,3,"02.06.2015  ",null,3,"06.06.2015  ",null,3,"30.05.2015  ",null,3,"05.06.2015  ",null,6,"23.12.2015  ",null,null,"  ",null,5,"26.12.2015  ",null,null,"  ",null,6,"23.12.2015  ",null,3,"27.04.2016  ",null,null,"  ",null,4,"13.04.2016  ",null,3,"25.04.2016  ",null,4,"21.04.2016  ",null,6,"22.05.2015  ",null,null,"  ",null,null,"  ",null,null,"  ",null,6,"01.12.2016  ",null,4,"01.12.2016  ",null,3,"01.12.2016  ",null,3,"01.12.2016  ",null,3,"01.12.2016  ",null,4,"24.11.2016  ",null,null,"  ",null,null,"  ",null,null,"  ",null,null,"  ",null,null,null,null,null,"  ",null,null,null,null,null,"  ",null,null,"  ",null,null,"  ",null,null,"  ",null,null,null,null,null,"  ",null,null,"  ",null,null,"  ",null,null,null,0,null,"  ",null,null,"  ",null,null,"  ",null,null,null,0,null,"  ",null,null,"  ",null,null,"  ",null,null,"  ",null,null,"  ",null,null,null,0,null,"  ",null,null,"  ",null,null,"  ",null,null,"  ",null,null,"  ",null,null,"  ",null,null,"  ",null,null,"  ",null,null,"  ",null,1.02,null,10,4,1,5,15,81,10]
[{"$f":"A3+1","v":18},"Потёмкин","Денис","Владимирович","Потёмкин Д. В.",null,"Потёмкину","Денису","Владимировичу","1982-05-10","п. Караваево Костромского р-на Костромской обл.","РФ","м","МВОУ ВОШ 1 г. Костромы",2011,"холост","Костромская обл., Костромской р-н, п. Караваево, ул. Школьная, д. 16, кв. 3",null,null,null,null,null,null,null,11147,"Экономический","38.03.10","Экономика","Бухгалтерский учет, анализ и аудит","5 лет","БАКАЛАВР","2-365","2011-08-12","по договору с полным возмещением затрат","159-2011","2011-08-09",null,null,"2-571","2015-09-01","невыполнение учебного плана","2-803","2016-12-26",null,null,null,null,null,null,"2-582","2012-08-31",null,null,null,null,null,null,null,null,null,null,null,null,null,null,null,null,null,null,null,null,null,null,null,null,null,null,null,3,"237z",null,null,null,null,null,null,3,"26.05.2012  ",null,6,"01.02.2018  ",null,3,"20.06.2013  ",null,3,"28.06.2013  ",null,null,"  ",null,null,"  ",null,null,"  ",null,6,"28.04.2013  ",null,3,"04.09.2013  ",null,3,"11.04.2013  ",null,6,"20.12.2012  ",null,4,"05.09.2013  ",null,null,"  ",null,null,"  ",null,null,"  ",null,null,"  ",null,6,"28.08.2013  ",null,null,"  ",null,null,"  ",null,null,"  ",null,null,"  ",null,null,"  ",null,3,"27.06.2014  ",null,null,"  ",null,null,"  ",null,null,"  ",null,null,"  ",null,null,"  ",null,null,"  ",null,5,"24.06.2014  ",null,null,null,null,null,"  ",null,null,null,null,null,"  ",null,null,"  ",null,null,"  ",null,null,"  ",null,null,null,null,null,"  ",null,null,"  ",null,null,"  ",null,null,null,0,null,"  ",null,null,"  ",null,null,"  ",null,null,null,0,null,"  ",null,null,"  ",null,null,"  ",null,null,"  ",null,null,"  ",null,null,null,0,null,"  ",null,null,"  ",null,null,"  ",null,null,"  ",null,null,"  ",null,null,"  ",null,null,"  ",null,null,"  ",null,null,"  ",null,0.54,null,6,1,1,4,8,38,5]
[19,"Мальцева (Максимова)","Юлия","Андреевна","Мальцева (Максимова) Ю. А.",null,"Мальцевой","Юлии","Андреевне","1998-03-30","с. Средние Покачи Олюторского р-на Комчатской обл.","РФ","ж","ОГБПОУ Костромской торгово-экономический колледж г. Кострома",2017,"замужем","г. Кострома, ул. Голубкова, д.14 а, кв.30",null,null,null,null,null,null,null,170788,"Экономический","38.03.10","Экономика","Бухгалтерский учет, анализ и аудит","5 лет","БАКАЛАВР","2-701","2017-08-31","по договору с полным возмещением затрат","000004598","2017-08-25",null,null,null,null,null,null,null,null,null,null,null,null,null,null,null,null,null,null,null,null,null,null,null,null,null,null,null,null,null,null,null,null,null,null,null,null,null,null,null,null,null,null,1,"213z",null,"  ",null,null,"  ",null,5,"п/атт. 14.10.2017  ",null,null,"  ",null,null,"  ",null,null,"  ",null,null,"  ",null,null,"  ",null,null,"  ",null,null,"  ",null,null,"  ",null,null,"  ",null,null,"  ",null,null,"  ",null,null,"  ",null,null,"  ",null,null,"  ",null,null,"  ",null,6,"п/атт. 20.10.2017  ",null,null,"  ",null,null,"  ",null,4,"п/атт. 24.10.2017  ",null,6,"п/атт. 31.10.2017  ",null,null,"  ",null,null,"  ",null,null,"  ",null,null,"  ",null,null,"  ",null,null,"  ",null,null,"  ",null,null,"  ",null,null,"  ",null,null,null,null,null,"  ",null,null,null,null,5,"п/атт. 25.10.2017  ",null,null,"  ",null,null,"  ",null,null,"  ",null,null,null,null,null,"  ",null,null,"  ",null,null,"  ",null,null,null,0,null,"  ",null,null,"  ",null,null,"  ",null,null,null,0,4,"п/атт. 26.10.2017  ",null,null,"  ",null,null,"  ",null,null,"  ",null,null,"  ",null,null,null,0,null,"  ",null,null,"  ",null,null,"  ",null,null,"  ",null,null,"  ",null,null,"  ",null,null,"  ",null,null,"  ",null,null,"  "]
[20,"Попова ","Ирина","Вадимовна","Попова  И. В.",null,"Поповой","Ирине","Вадимовне","1997-07-27","д. Починок Солигаличского р-на","РФ","ж","ОГПОУ Костромской торгово-экономический колледж",2016,"замужем","г Солигалич, ул. Нагорная, д.63",null,null,null,null,null,null,null,160519,"Экономический","38.03.01","Экономика","Бухгалтерский учет, анализ и аудит","5 лет","БАКАЛАВР","2-539","2016-08-19","по договору с полным возмещение затрат","000004003","2016-07-25",null,null,"2-565","2018-06-25","за академическую неуспеваемость",null,null,null,null,null,null,null,null,null,null,null,null,null,null,null,null,null,null,null,null,null,null,null,null,null,null,null,null,null,null,null,null,null,null,null,null,null,2,"223z",null,"  ",null,null,"  ",null,3,"п/зач",null,6,"п/зач",null,3,"п/зач",null,null,"  ",null,null,"  ",null,3,"п/зач",null,6,"23.12.2017  ",null,6,"23.12.2017  ",null,null,"  ",null,3,"23.12.2017  ",null,6,"п/зач  ",null,null,"  ",null,null,"  ",null,null,"  ",null,null,"  ",null,4,"28.04.2018  ",7859483,null,null,null,null,null,null,6,"28.04.2018  ",7859482,null,"  ","ФГБОУ ВО Костромская ГСХА, кафедра экономической кибернетики",null,"  ",null,null,"  ",null,null,"  ",null,null,"  ",null,null,"  ",null,null,"  ",null,null,"  ",null,null,"  ",null,null,"  ",null,null,"  ",null,null,null,null,null,"  ",null,null,null,null,null,"  ",null,null,"  ",null,null,"  ",null,null,"  ",null,null,null,null,null,"  ",null,null,"  ",null,null,"  ",null,null,null,null,null,"  ",null,null,"  ",null,null,"  ",null,null,null,null,null,"  ",null,null,"  ",null,null,"  ",null,null,"  ",null,null,"  ",null,null,null,0,null,"  ",null,null,"  ",null,null,"  ",null,null,"  ",null,null,"  ",null,null,"  ",null,null,"  ",null,null,"  ",null,null,"  "]
[21,"Громова","Юлия","Николаевна","Громова Ю. Н.",null,"Громовой","Юлии","Николаевне","1991-11-26","д. Татарское Нерехтского р-на Костромской обл.","РФ","ж","МОУ Лицей 41 города Костромы",2009,"замужем","Мурманская обл., Печенгский р-н, жд. ст. Печенка, д. 1, кв. 27",null,null,null,null,null,null,null,170827,"Экономический","38.03.01","Экономика","Бухгалтерский учет, анализ и аудит","5 лет","БАКАЛАВР","2-370","2009-08-12","по договору с полным возмещение затрат","152","2009-08-11",null,null," 2-596","2018-07-03","по собственному желанию","2-761","2017-09-27",null,null,null,null,null,null,null,null,null,null,null,null,null,null,null,null,null,null,null,null,null,null,null,null,null,null,null,null,null,null,null,null,null,null,null,2,"224z",null,null,null,null,"  ",null,3,"п/зач 15.11.17",null,6,"п/зач 07.11.17",null,3,"п/зач 06.11.2017  ",null,null,"  ",null,3,"п/зач 03.11.2017  ",null,4,"п/зач 17.11.17",null,6,"п/зач 02.11.2017  ",null,6,"2017-12-23",7869528,4,"23.12.2017  ",7869529,null,"  ",null,null,"  ",null,3,"п/зач 10.11.2017",null,3,"п/зач 02.11.2017  ",null,null,"  ",null,null,"  ",null,null,"  ",null,6,"2018-04-28",7869872,6,"2018-04-28",7869873,null,"  ",null,null,"  ","ФГБОУ ВО Костромская ГСХА, кафедра экономической кибернетики",6,"п/зач 31.10.2017",null,6,"п/зач 31.10.2017",null,null,"  ",null,null,"  ",null,null,"  ",null,null,"  ",null,null,"  ",null,null,"  ",null,null,"  ",null,null,"  ",null,null,null,null,null,"  ",null,null,null,null,null,"  ",null,null,"  ",null,null,"  ",null,null,"  ",null,null,null,null,null,"  ",null,null,"  ",null,null,"  ",null,null,null,null,null,"  ",null,null,"  ",null,null,"  ",null,null,null,null,null,"  ",null,3,"п/зач 07.11.2017",null,null,"  ",null,null,"  ",null,null,"  ",null,null,null,0,null,"  ",null,null,"  ",null,null,"  ",null,null,"  ",null,null,"  ",null,null,"  ",null,null,"  ",null,null,"  ",null,null,"  ",null,{"$f":"(JL7*3+JM7*4+JN7*5)/50","v":0.52},null,{"$f":"COUNTIF(CC7:JG7,3)","v":6},{"$f":"COUNTIF(CC7:JG7,4)","v":2},{"$f":"COUNTIF(CC7:JG7,5)","v":0},{"$f":"COUNTIF(CC7:JG7,6)","v":7},{"$f":"SUM(JL7:JN7)","v":8},{"$f":"SUMIF(CC7:JG7,\">0\",$CC$3:$JG$3)","v":48},{"$f":"INT(JQ7/8+0.5)","v":6}]

{"sheet":"Для диплома","index":5,"n_rows":5,"n_cols":200,"rows_kept":5,"cut":false,"hidden":false,"merged":[]}
[]
["№\nп.п.","Фамилия ","Имя","Отчество","Пол","день (цифры)\nдата рождения","месяц (цифры)\nдата рождения","год (цифры)\nдата рождения","Год поступления","Отличие (цифра 5)","гражданство \n(РФ, ближнее, дальнее, без гражданства)","источник финансирования \n(платно, бюджет, целевое)","Предыдущий \nдокумент, год выдачи,  \n(С УКАЗАНИЕМ СТРАНЫ ВЫДАЧИ КРОМЕ РФ)","Примечание","государственный экзамен","Вид выпускной  работы\n(ДП, ДР, МД)","Тема диплома","выпускная квалификационная работа","№ протокола \nаттестационной комиссии","день (цифры)\nдата защиты ","месяц (цифры)\nдата защиты","год (цифры)\nдата защиты","№ приказа об отчислении","день (цифры)\nдата приказа об отчислении","месяц (цифры)\nдата приказа об отчислении","год (цифры)\nдата приказа об отчислении","Серия диплома","№ диплома","Серия приложения к диплому","№ приложения к диплому","Регистрационный номер",null,"Моделирование социально-экономических систем",null,"Бухгалтерский учет и анализ",null,"Экономика организаций (предприятий)",null,"Аудит",null,"Комплексный анализ хозяйственной деятельности",null,"Бухгалтерский финансовый учет",null,0,null,0,null,0,null,0,null,0,null,0,null,0,null,0,null,0,null,0,null,0,null,0,null,0,null,0,null,null,"Учебная (практика по получению первичных профессиональных умений и навыков, в том","     числе первичных умений и навыков научно-исследовательской деятельности)","Производственная (научно-исследовательская работа)","Производственная (практика по получению профессиональных","      умений и опыта профессиональной деятельности)","Производственная (технологическая)","Производственная (преддипломная)",0,0,0,null,"История","Философия","Иностранный язык","Право","Социология","Психология","Математический анализ","Линейная алгебра","Теория вероятности и математическая статистика","Методы оптимальных решений  ","Макроэкономика","Микроэкономика","Эконометрика","Статистика","Безопасность жизнедеятельности","Финансы","Бухгалтерский учет и анализ","Деньги, кредит, банки","Менеджмент","Маркетинг","Мировая экономика и международные экономические отношения","Макроэкономическое планирование и прогнозирование","Корпоративные финансы","Физическая культура и спорт","Политология","Введение в профессию и основы научных исследований","Информатика и информационное обеспечение бухгалтеского учета","Информационные технологии и базы данных в бухгалтерском учете","Методы принятия управленческих решений в сфере бухгалтерского учета","Регионалистика  ","Бухгалтерский финансовый учет  ","Бухгалтерский управленческий учет","Бухгалтерская (финансовая) отчетность","Комплексный анализ хозяйственной деятельности","Аудит","Лабораторный практикум по бухгалтерскому учету","Международные стандарты финансовой отчетности","Бухгалтерский учет на предприятиях малого бизнеса","Практикум 1С: Бухгалтерия","Делопроизводство и документооборот","Инструментальные средства программирования  бухгалтерских операций","Экономика организаций (предприятий)","Логистика  ","Моделирование социально-экономических систем  ","Налоги и налогообложение  ","Планирование на предприятии  ","Анализ финансовой отчетности  ","Общая физическая подготовка",{"$f":"[4]Предметы!$B50","v":0},0,0,0,0,0,0,0,0,0,0,0,0,0,0,0,0,0,0,0,0,0,0,0,0,0,0,0,0,0,0,0,0,0,0,0,0,0,0,0,0,0,0,0,0,0,0,0,0,0,0,0,"факультативные \nдисциплины",0,0,0,0,0,0,0,0,0,0,0,0,0,0,0]
[null,null,null,null,null,null,null,null,null,null,null,null,null,null,null,null,null,null,null,null,null,null,null,null,null,null,null,null,null,null,null,null,1,null,2,null,3,null,4,null,5,null,6,null,7,null,8,null,9,null,10,null,11,null,12,null,13,null,14,null,15,null,16,null,17,null,18,null,19,null,20,null,null,"","3 з.е.","3 з.е.","","3 з.е.","3 з.е.","3 з.е.","","","",null,"3 з.е.","3 з.е.","6 з.е.","4 з.е.","2 з.е.","2 з.е.","6 з.е.","7 з.е.","4 з.е.","4 з.е.","8 з.е.","6 з.е.","5 з.е.","6 з.е.","4 з.е.","4 з.е.","7 з.е.","4 з.е.","4 з.е.","3 з.е.","4 з.е.","4 з.е.","4 з.е.","2 з.е.","5 з.е.","6 з.е.","10 з.е.","4 з.е.","2 з.е.","4 з.е.","10 з.е.","5 з.е.","5 з.е.","4 з.е.","4 з.е.","4 з.е.","3 з.е.","5 з.е.","2 з.е.","3 з.е.","6 з.е.","5 з.е.","5 з.е.","8 з.е.","3 з.е.","4 з.е.","3 з.е.","328 час.",{"$f":"IF([4]Предметы!$C50=0,CONCATENATE([4]Предметы!$D50,\" час.\"),CONCATENATE([4]Предметы!$C50,\" з.е.\"))","v":" час."}," час."," час."," час."," час."," час."," час."," час."," час."," час."," час."," час."," час."," час."," час."," час."," час."," час."," час."," час."," час."," час."," час."," час."," час."," час."," час."," час."," час."," час."," час."," час."," час."," час."," час."," час."," час."," час."," час."," час."," час."," час."," час."," час."," час."," час."," час."," час."," час."," час."," час."," час.",null,0,0,0,0,0,0,0,0,0,0,0,0,0,0,0]
[6,{"$f":"VLOOKUP(A4,Предметы!$A$6:$JI$64,2,FALSE)","v":"Вахнина"},{"$f":"VLOOKUP(A4,Предметы!$A$6:$JI$64,3)","v":"Наталья "},{"$f":"VLOOKUP(A4,Предметы!$A$6:$JI$64,4)","v":"Сергеевна"},{"$f":"VLOOKUP(A4,Предметы!$A$6:$JI$64,13)","v":"ж"},{"$f":"DAY(VLOOKUP(A4,Предметы!$A$6:$JI$64,10))","v":21},{"$f":"MONTH(VLOOKUP(A4,Предметы!$A$6:$JI$64,10))","v":9},{"$f":"YEAR(VLOOKUP(A4,Предметы!$A$6:$JI$64,10))","v":1994},{"$f":"YEAR(VLOOKUP(A4,Предметы!$A$6:$JI$64,33))","v":2014},null,{"$f":"VLOOKUP(A4,Предметы!$A$6:$JI$64,12)","v":"РФ"},"платно",null,null,{"$f":"VLOOKUP(A4,Предметы!$A$6:$JI$64,66)","v":0},null,{"$f":"VLOOKUP(A4,Предметы!$A$6:$JI$64,70)","v":0},"ВКР",{"$f":"VLOOKUP(A4,Предметы!$A$6:$JI$64,72)","v":0},{"$f":"DAY(VLOOKUP(A4,Предметы!$A$6:$JI$64,73))","v":0},{"$f":"MONTH(VLOOKUP(A4,Предметы!$A$6:$JI$64,73))","v":1},{"$f":"YEAR(VLOOKUP(A4,Предметы!$A$6:$JI$64,73))","v":1900},null,29,6,2018,"104406","0005647","104406","0012997","35385",null,null,{"$f":"VLOOKUP(A4,Предметы!$A$6:$JI$64,183)","v":3},null,{"$f":"VLOOKUP(A4,Предметы!$A$6:$JI$64,177)","v":0},null,{"$f":"VLOOKUP(A4,Предметы!$A$6:$JI$64,198)","v":0},null,{"$f":"VLOOKUP(A4,Предметы!$A$6:$JI$64,222)","v":0},null,{"$f":"VLOOKUP(A4,Предметы!$A$6:$JI$64,240)","v":0},null,{"$f":"VLOOKUP(A4,Предметы!$A$6:$JI$64,210)","v":0},null,null,null,null,null,null,null,null,null,null,null,null,null,null,null,null,null,null,null,null,null,null,null,null,null,null,null,null,null,null,{"$f":"VLOOKUP(A4,Предметы!$A$6:$JI$64,144)","v":0},{"$f":"VLOOKUP(A4,Предметы!$A$6:$JI$64,264)","v":0},null,{"$f":"VLOOKUP(A4,Предметы!$A$6:$JI$64,186)","v":0},{"$f":"VLOOKUP(A4,Предметы!$A$6:$JI$64,225)","v":0},{"$f":"VLOOKUP(A4,Предметы!$A$6:$JI$64,267)","v":0},null,null,null,null,{"$f":"VLOOKUP(A4,Предметы!$A$6:$JI$64,87)","v":4},{"$f":"VLOOKUP(A4,Предметы!$A$6:$JI$64,147)","v":6},{"$f":"VLOOKUP(A4,Предметы!$A$6:$JI$64,123)","v":0},{"$f":"VLOOKUP(A4,Предметы!$A$6:$JI$64,150)","v":4},{"$f":"VLOOKUP(A4,Предметы!$A$6:$JI$64,108)","v":6},{"$f":"VLOOKUP(A4,Предметы!$A$6:$JI$64,90)","v":6},{"$f":"VLOOKUP(A4,Предметы!$A$6:$JI$64,93)","v":3},{"$f":"VLOOKUP(A4,Предметы!$A$6:$JI$64,96)","v":3},{"$f":"VLOOKUP(A4,Предметы!$A$6:$JI$64,114)","v":3},{"$f":"VLOOKUP(A4,Предметы!$A$6:$JI$64,165)","v":3},{"$f":"VLOOKUP(A4,Предметы!$A$6:$JI$64,126)","v":4},{"$f":"VLOOKUP(A4,Предметы!$A$6:$JI$64,102)","v":3},{"$f":"VLOOKUP(A4,Предметы!$A$6:$JI$64,120)","v":4},{"$f":"VLOOKUP(A4,Предметы!$A$6:$JI$64,129)","v":3},{"$f":"VLOOKUP(A4,Предметы!$A$6:$JI$64,228)","v":0},{"$f":"VLOOKUP(A4,Предметы!$A$6:$JI$64,171)","v":0},{"$f":"VLOOKUP(A4,Предметы!$A$6:$JI$64,177)","v":0},{"$f":"VLOOKUP(A4,Предметы!$A$6:$JI$64,204)","v":4},{"$f":"VLOOKUP(A4,Предметы!$A$6:$JI$64,132)","v":4},{"$f":"VLOOKUP(A4,Предметы!$A$6:$JI$64,231)","v":0},{"$f":"VLOOKUP(A4,Предметы!$A$6:$JI$64,162)","v":4},{"$f":"VLOOKUP(A4,Предметы!$A$6:$JI$64,234)","v":0},{"$f":"VLOOKUP(A4,Предметы!$A$6:$JI$64,189)","v":0},6,{"$f":"VLOOKUP(A4,Предметы!$A$6:$JI$64,111)","v":5},{"$f":"VLOOKUP(A4,Предметы!$A$6:$JI$64,84)","v":6},{"$f":"VLOOKUP(A4,Предметы!$A$6:$JI$64,99)","v":4},{"$f":"VLOOKUP(A4,Предметы!$A$6:$JI$64,156)","v":3},{"$f":"VLOOKUP(A4,Предметы!$A$6:$JI$64,168)","v":6},{"$f":"VLOOKUP(A4,Предметы!$A$6:$JI$64,153)","v":3},{"$f":"VLOOKUP(A4,Предметы!$A$6:$JI$64,207)","v":3},{"$f":"VLOOKUP(A4,Предметы!$A$6:$JI$64,213)","v":4},{"$f":"VLOOKUP(A4,Предметы!$A$6:$JI$64,216)","v":3},{"$f":"VLOOKUP(A4,Предметы!$A$6:$JI$64,240)","v":0},{"$f":"VLOOKUP(A4,Предметы!$A$6:$JI$64,222)","v":0},{"$f":"VLOOKUP(A4,Предметы!$A$6:$JI$64,243)","v":0},{"$f":"VLOOKUP(A4,Предметы!$A$6:$JI$64,246)","v":0},{"$f":"VLOOKUP(A4,Предметы!$A$6:$JI$64,249)","v":0},{"$f":"VLOOKUP(A4,Предметы!$A$6:$JI$64,261)","v":0},{"$f":"VLOOKUP(A4,Предметы!$A$6:$JI$64,81)","v":0},{"$f":"VLOOKUP(A4,Предметы!$A$6:$JI$64,159)","v":3},{"$f":"VLOOKUP(A4,Предметы!$A$6:$JI$64,198)","v":0},{"$f":"VLOOKUP(A4,Предметы!$A$6:$JI$64,252)","v":0},{"$f":"VLOOKUP(A4,Предметы!$A$6:$JI$64,180)","v":3},{"$f":"VLOOKUP(A4,Предметы!$A$6:$JI$64,255)","v":0},{"$f":"VLOOKUP(A4,Предметы!$A$6:$JI$64,201)","v":4},{"$f":"VLOOKUP(A4,Предметы!$A$6:$JI$64,258)","v":0},6,6,null,null,null,null,null,null,null,null,null,null,null,null,null,null,null,null,null,null,null,null,null,null,null,null,null,null,null,null,null,null,null,null,null,null,null,null,null,null,null,null,null,null,null,null,null,null,null,null,null,null,null,null,6]
[null,null,null,null,null,null,null,null,null,null,null,null,"аттестат о среднем (полном) общем образовании, 2012 год"]

{"sheet":"ВЫПУСКНИКИ БУ 5лет","index":6,"n_rows":4,"n_cols":278,"rows_kept":4,"cut":false,"hidden":false,"merged":[]}
[1,"Кочетова","Мария ","Алексеевна",{"$f":"CONCATENATE(B1,\" \",LEFT(C1,1),\". \",LEFT(D1,1),\".\")","v":"Кочетова М. А."},null,"Кочетовой","Марии","Алексеевне","1994-07-06","г. Кострома","РФ","ж","МОУ СОШ 23 г. Кострома",2011,"не замужем","г. Кострома, ул. Голубкова, д. 8, кв. 28",null,null,null,null,null,null,null,13525,"Экономический","38.03.01","Экономика","Бухгалтерский учет, анализ и аудит","5 лет","БАКАЛАВР","2-363","2011-08-05","по договору с полным возмещение затрат","29-2011","2011-07-13",null,null,null,null,null,null,null,null,"2-799","2014-12-30","по семейным обстоятельствам","2015-01-01","2016-12-31","2-590","2012-09-10","2-592","2013-09-16","2-561","2016-09-01","2-703","2017-09-01",null,null,null,null,"2-395","2018-05-21","Государственный экзамен","2018-06-01",3,null,null,null,"Бухгалтерский учет и анализ предоставления работ, услуг по обслуживанию мостов в ООО «Автомост» г. Кострома",4,26,"2018-06-27",null,"36224","104406","0018162","2018-06-29",5,"252z",4,"2017-11-01",null,6,"2017-11-01",null,4,"п/зач  ",null,6,"п/зач  ",null,3,"п/зач  ",null,3,"п/зач  ",null,3,"п/зач  ",null,3,"п/зач  ",null,6,"п/зач  ",null,6,"п/зач  ",null,4,"п/зач  ",null,3,"п/зач  ",null,6,"п/зач  ",null,3,"п/зач  ",null,3,"п/зач  ",null,3,"п/зач  ",null,3,"п/зач  ",null,3,"09.12.2015  ",null,6,"п/зач  ",null,6,"24.04.2014  ",null,null,null,null,3,"п/зач",null,6,"п/зач  ",null,4,"п/зач  ",null,3,"п/зач  ",null,3,"п/зач  ",null,3,"26.11.2015  ",null,4,"04.06.2016  ",null,4,"п/зач  ",null,6,"п/зач  ",null,3,"п/зач  ",null,3,"п/зач  ",null,3,"п/зач",null,3,"п/зач  ",null,3,"п/зач",null,4,"п/зач","ООО \"АВТОМОСТ\" г. Кострома",3,"01.12.2016  ",null,6,"19.12.2016  ",null,3,"10.12.2016  ",null,3,"2018-05-15",null,3,"п/зач  ",null,3,"п/зач  ",null,3,"11.04.2017  ",null,4,"2018-05-16",null,3,"11.04.2017  ",null,3,"  ",null,5,"11.04.2017  ",null,3,"2015-05-15",null,4,"п/зач","ООО \"АВТОМОСТ\" г. Кострома",4,"п/зач  ",null,3,"01.11.2017  ",null,3,"01.11.2017  ",null,4,"01.11.2017  ",null,4,"2018-05-17",null,3,"2018-05-18",919,3,"01.11.2017  ",null,3,"01.11.2017  ",null,5,"2017-11-21",210,6,"01.11.2017  ",null,6,"01.11.2017  ",null,6,"01.11.2017  ",null,3,"2018-05-18","ФГБОУ ВО Костромская ГСХА, кафедра бухгалтерский учет, анализ и аудит",3,"2018-05-18","ООО \"Автомост\" г. Кострома Костромской обл.",{"$f":"(JL1*3+JM1*4+JN1*5)/50","v":3.26},null,{"$f":"COUNTIF(CC1:JG1,3)","v":35},{"$f":"COUNTIF(CC1:JG1,4)","v":12},{"$f":"COUNTIF(CC1:JG1,5)","v":2},{"$f":"COUNTIF(CC1:JG1,6)","v":13},{"$f":"SUM(JL1:JN1)","v":49},{"$f":"SUMIF(CC1:JG1,\">0\",$CC$3:$JG$3)","v":216475},{"$f":"INT(JQ1/8+0.5)","v":27059}]
[{"$f":"A1+1","v":2},"Чулкова","Анастасия","Леонидовна","Чулкова А. Л.",null,"Чулковой","Анастасии","Леонидовне","1990-05-06","п. Караваево Костромского р-на Костромской обл.","РФ","ж","МОУ Караваевская СОШ",2007,"не замужем","Костромская обл., Костромской р-н, п. Караваево, ул. Шувалово, д. 24",null,null,null,null,null,null,null,13129,"Экономический","38.03.01","Экономика","Бухгалтерский учет, анализ и аудит","5 лет","БАКАЛАВР","2-552","2013-08-30","по договору с полным возмещение затрат","000000967","2013-08-19",null,null,null,null,null,null,null,null,null,null,null,null,null,"2-532","2014-09-01","2-571","2015-09-01","2-672","2017-08-01","2-339","2018-05-03",null,null,null,null,"2-395","2018-05-21","Государственный экзамен","01.06.2018.",3,null,null,null,"Бухгалтерский учет затрат и анализ себестоимости молока в ООО «Сущево» Костромского района Костромской области",4,30,"2018-06-27",null,"36226","104406","0018164","2018-06-29",5,"252z",4,"2017-11-01",null,6,"2017-11-01",null,4,"2014-05-29",null,6,"2014-06-03",null,3,"2018-04-26",769,4,"2014-06-03",null,5,"2014-05-30",null,3,"2015-12-24",null,6,"2014-12-24",null,6,"23.12.2014  ",null,5,"2014-12-25",null,3,"2015-06-29",null,6,"2016-06-07",null,4,"2015-04-27",null,4,"2015-04-23",null,4,"2015-04-21",null,3,"2018-05-08",803,4,"2016-06-07",null,6,"2014-05-21",null,6,"24.04.2014  ",null,null,null,null,3,"2018-04-28","ФГБОУ ВО Костромская ГСХА, кафедра экономической кибернетики",6,"2015-11-01",null,4,"2015-12-02",null,4,"2015-11-09",null,3,"2015-11-27",null,4,"2015-11-26",null,4,"2015-11-23",null,4,"2016-06-04",null,6,"2016-06-05",null,3,"2018-04-26",768,3,"2018-05-03",733,4,"2018-05-03","Основы организации и введения бухгалтерского учета на предприятиях",5,"2016-06-05",null,3,"2018-04-26","Оптимизация кормопроизводства сельскохозяйственного предприятия",4,"2018-05-17","ООО \"Торговый дом \"Кострома\" г. Кострома",3,"2016-12-01",null,6,"2016-12-10",null,3,"10.12.2016  ",null,3,"2018-05-11","Формирование и использование прибыли\nорганизации (предприятия)",4,"2018-04-20",708,4,"2017-04-11",null,3,"11.04.2017  ",null,3,"2018-04-28","Учет и анализ денежных средств на предприятии",3,"11.04.2017  ",null,4,"11.04.2017  ",null,5,"11.04.2017  ",null,4,"2018-05-03","Сущность аудита и его место в системе финансового контроля РФ",3,"2018-05-17","ООО \"ГеоСтройизыскания\" г. Кострома",5,"01.11.2017  ",null,4,"01.11.2017  ",null,3,"01.11.2017  ",null,4,"01.11.2017  ",null,4,"2018-05-17","Анализ финансовых результатов деятельности ООО \"Сущёво\" Костромского района Костромской области",3,"01.11.2017  ",null,4,"01.11.2017  ",null,4,"01.11.2017  ",null,5,"01.11.2017  ",null,6,"01.11.2017  ",null,6,"01.11.2017  ",null,6,"01.11.2017  ",null,3,"2018-05-18","ФГБОУ ВО Костромская ГСХА, кафедра бухгалтерский учет, анализ и аудит",3,"2018-05-18","ООО \"Сущево\" Костромского р-на Костромской обл.",{"$f":"(JL2*3+JM2*4+JN2*5)/50","v":3.64},null,{"$f":"COUNTIF(CC2:JG2,3)","v":20},{"$f":"COUNTIF(CC2:JG2,4)","v":23},{"$f":"COUNTIF(CC2:JG2,5)","v":6},{"$f":"COUNTIF(CC2:JG2,6)","v":13},{"$f":"SUM(JL2:JN2)","v":49},{"$f":"SUMIF(CC2:JG2,\">0\",$CC$3:$JG$3)","v":300980},{"$f":"INT(JQ2/8+0.5)","v":37623}]
[{"$f":"A2+1","v":3},"Гогина","Лидия","Владимировна","Гогина Л. В.",null,"Гогиной","Лидии","Владимировне","1979-11-27","п. Караваево Костромского р-на Костромской обл.","РФ","ж","МСШ 7 г. Кострома",1997,"замужем","г. Кострома, мкр. Давыдовский 2, д. 69, кв. 28   ",null,null,null,null,null,null,null,13111,"Экономический","38.03.01","Экономика","Бухгалтерский учет, анализ и аудит","5 лет","БАКАЛАВР","2-522","2013-08-16","по договору с полным возмещение затрат","000000873","2013-08-12",null,null,null,null,null,null,null,null,null,null,null,null,null,"2-532","2014-09-01","2-571","2015-09-01","2-561","2016-09-01","2-703","2017-09-01",null,null,null,null,"2-395","2018-05-21","Государственный экзамен","2018-06-01",3,null,null,null,"Бухгалтерский учет и анализ предоставления услуг по подбору недвижимости в ООО «Строймеханизация» г. Кострома",3,25,"2018-06-27",null,"36223","104406","0018161","2018-06-29",5,"254z",4,"2017-11-01",null,6,"2017-11-01",null,4,"22.01.2014  ",null,6,"03.02.2014  ",null,4,"18.06.2014  ",null,5,"09.04.2014  ",null,5,"27.06.2014  ",null,4,"26.06.2014  ",null,6,"26.06.2014  ",null,6,"23.12.2014  ",null,4,"25.12.2014  ",null,4,"26.12.2014  ",null,6,"27.12.2014  ",null,4,"27.04.2015  ",null,3,"15.09.2015  ",null,5,"21.04.2015  ",null,4,"18.04.2015  ",null,4,"25.04.2015  ",null,6,"24.04.2014  ",null,6,"24.04.2014  ",null,null,null,null,5,"2016-09-09","ФГБОУ ВО Костромская ГСХА, кафедра \"Экономическая кибернетика\"",6,"03.12.2015  ",null,4,"02.12.2015  ",null,5,"06.12.2015  ",null,3,"29.08.2016  ",null,3,"12.09.2016  ",null,5,"31.08.2016  ",null,4,"05.06.2016  ",null,6,"05.06.2016  ",null,5,"04.06.2016  ",null,5,"04.06.2016  ",null,3,"11.04.2017","История развития бухгалтерского учёта",3,"04.06.2016  ",null,4,"06.09.2016","Оптимизация рационов кормления птицы",4,"2016-08-31","ООО Строймеханизация г. Кострома",4,"10.12.2016  ",null,6,"10.12.2016  ",null,5,"10.12.2016  ",null,4,"18.10.2017","Себестоимость и рентабельностьпроизводства продукции растениеводства",4,"10.12.2016  ",null,5,"11.04.2017  ",null,4,"11.04.2017  ",null,4,"11.04.2017","Организация бухгалтерского учета",5,"11.04.2017  ",null,4,"11.04.2017  ",null,5,"11.04.2017  ",null,4,"04.06.2016","Сущность аудита и его место в системе финансового контроля РФ",5,"2017-08-31","ООО \"Строймеханизация\" г. Кострома",4,"2018-05-15",838,5,"2017-11-01","   Z-7679486",4,"2018-04-17",671,5,"2017-11-01","   Z-7679523",4,"2018-05-04","анализ себестоимости продукции растениеводства в предприятии",3,"1900-01-04",664,4,"2018-04-16",667,4,"2017-11-01","  Z-7679503",5,"2017-11-01","   Z-7679715",6,"2017-11-01","  Z-7679564",6,"2017-11-01"," Z-7679562",6,"2018-03-16",546,4,"2018-03-20","ФГБОУ ВО Костромская ГСХА, кафедра бухгалтерский учет, анализ и аудит",4,"2018-03-31","ООО \"Строймеханизация\" г. Кострома Костромской обл.",{"$f":"(JL3*3+JM3*4+JN3*5)/50","v":4.2},null,{"$f":"COUNTIF(CC3:JG3,3)","v":6},{"$f":"COUNTIF(CC3:JG3,4)","v":28},{"$f":"COUNTIF(CC3:JG3,5)","v":16},{"$f":"COUNTIF(CC3:JG3,6)","v":13},{"$f":"SUM(JL3:JN3)","v":50},{"$f":"SUMIF(CC3:JG3,\">0\",$CC$3:$JG$3)","v":735433},{"$f":"INT(JQ3/8+0.5)","v":91929}]
[4,"Судзиловская (Калашникова)","Ксения ","Игоревна","Судзиловская (Калашникова) К. И.",null,"Судзиловской","Ксении","Игоревне","1995-03-03","г. Кострома","РФ","ж","МБОУ \"Средняя общеообразовательная школа  7\" города Костромы",2013,"замужем","г. Кострома, Кинешемское шоссе, д. 15, кв. 181",null,null,null,null,null,null,null,13130,"Экономический","38.03.01","Экономика","Бухгалтерский учет, анализ и аудит","5 лет","БАКАЛАВР","2-552","2013-08-30","по договору с полным возмещение затрат","000000924","2013-08-16",null,null,null,null,null,null,null,null,null,null,null,null,null,"2-532","2014-09-01","2-571","2015-09-01","2-561","2016-09-01","2-339","2018-05-03",null,null,null,null,"2-395","2018-05-21","Государственный экзамен","2018-06-01",3,null,null,null,"Бухгалтерский учет и анализ эффективности использования основных средств в ЗАО «Птицефабрика «Костромская» Костромского района Костромской области",3,29,"2018-06-27",null,"36225","104406","0018163","2018-06-29",5,"254z",4,"2017-11-01",null,6,"2017-11-01",null,4,"21.12.2013  ",null,6,"16.01.2014  ",null,4,"18.06.2014  ",null,4,"20.12.2013  ",null,4,"27.06.2014  ",null,4,"26.06.2014  ",null,6,"24.12.2014  ",null,6,"23.12.2014  ",null,4,"25.12.2014  ",null,4,"26.12.2014  ",null,6,"27.12.2014  ",null,4,"27.04.2015  ",null,4,"23.04.2015  ",null,3,"01.07.2016  ",null,4,"18.04.2015  ",null,3,"25.04.2015  ",null,6,"24.04.2014  ",null,6,"24.04.2014  ",null,null,null,null,5,"2016-09-09","ФГБОУ ВО Костромская ГСХА, кафедра экономической кибернетики",6,"03.12.2015  ",null,3,"28.06.2016  ",null,4,"31.08.2016  ",null,3,"22.09.2016  ",null,4,"28.01.2016  ",null,4,"31.08.2016  ",null,3,"30.12.2016  ",null,6,"13.09.2016  ",null,4,"04.06.2016  ",null,4,"04.06.2016  ",null,4,"28.06.2016","Основные направления и перспективы развития бухгалтерского учёта в РФ",3,"04.06.2016  ",null,4,"04.06.2016","Оптимизация распределения заготовленных кормов",4,"2018-03-15","ЗАО \"Птицефабрика Костромская\" Костромского р-на Костромской обл.",4,"10.12.2016  ",null,6,"2018-05-10",814,4,"2018-04-10",621,3,"18.10.2017","Финансовые ресурсы организации (предприятия) и эффективность их использования",5,"18.12.2017  ",null,5,"11.04.2017  ",null,3,"2018-05-10",815,4,"2018-05-10","Учет производственных запасов в организации",5,"18.09.2017  ",null,3,"11.04.2017  ",null,4,"05.09.2017  ",null,4,"2018-04-27","Сущность аудита и его место в системе финансового контроля Российской Федерации",4,"2018-04-28","ЗАО \"Птицефабрика Костромская\" Костромской р-на Костромская обл.",3,"2018-05-15",839,5,"2017-11-01","   Z-7679486",3,"2017-11-01","  Z-7679713",5,"2017-11-01","   Z-7679523",4,"2018-05-16","Анализ финансовых результатов деятельности ЗАО Птицефабрика \"костромская\"",4,"2017-11-01","  Z-7679506",5,"2017-11-01","   Z-7679507",4,"2017-11-01","  Z-7679503",4,"2018-04-24",758,6,"2017-11-01","   Z-7679564",6,"2017-11-01","   Z-7679562",6,"2018-05-03",741,4,"2018-05-04","ФГБОУ ВО Костромская ГСХА, кафедра бухгалтерский учет, анализ и аудит",4,"2018-05-04","ЗАО \"Птицефабрика \"Костромская\" Костромского р-на Костромской обл.",3.84,null,11,31,7,13,49,733431,91679]